{"text_format":"1","workbook":"xlsx","n_sheets":6,"sheets":["UITLEG","INIT","CALCULATE","HIST-TM-Players","HIST-Teams","TABLE_GRAPH"],"not_rendered":{"charts":1,"images":1,"macros":1,"external_links":0,"defined_names":2,"comments":3,"pivot_tables":0},"unopened":[],"bounds":{"document_bytes":16777216,"sheet_cells":100000,"rows_first":2000,"rows_last":500,"rows_between":2000,"halvings":0,"cell_chars":16384,"cell_head_chars":4096},"cells_cut":0,"cells_raw":0,"read":"whole","date_system":"1900"}

{"sheet":"UITLEG","index":0,"n_rows":20,"n_cols":4,"rows_kept":20,"cut":false,"hidden":false,"merged":[[19,1,19,8],[7,1,7,8],[13,1,13,8],[10,1,10,8],[16,1,16,8]]}
[]
[null,"Profcoach - Data ophalen en subleague weergeven"]
[null,"Door Ruben Woudsma",null,"ruben.woudsma@gmail.com"]
[null,"www.rubenwoudsma.nl"]
[null,"Datum: 12-October-2012"]
[]
[null,"Uitleg"]
[null,"Deze sheet maakt het mogelijk om via ProfCoach website gegevens op te halen van Profcoach spelers. De gegevens kunnen worden gebruikt voor het bijhouden van je eigen subleague, alsmede voor het generen van een overzicht per week. De gegevens worden opgehaald op basis van de informatie op het INIT werkblad."]
[]
[null,"Eerste keer:"]
[null,"Wanneer je voor de eerst keer gebruik maakt van dit sheet is het belangrijk dat de gegevens op het INIT tabblad worden gevuld.\n\nHet gaat hierbij om de kolommen \"Ploegen\", \"Naam\" en \"ID\". De laatste is het belangrijkst. Op basis van het ID wordt de informatie van de desbetreffende deelnemer opgehaald. Het ID kan worden achterhaald op basis van de URL van de desbetreffende deelnemer (zie screenshot).\n\nNadat alles gegevens zijn doorgevoerd, is het mogelijk om middels de 'historie' knop + selectie week gegevens van de desbetreffende week op te halen om zo je historie op te bouwen. \nLET OP: Eerst officiële week start op: 9 september 2011 = Week 5\n\nNa het ophalen van de desbetreffende week kan je op het tabblad 'HISTORY' met de knoppen 'Opmaak kolommen' en 'Laatste stap' de historie opbouwen en de vulling genereren voor TABLE_GRAPH en het daarbij behorende grafiek.\nLET OP: Voor tabblad 'HISTORY' staat er al enkele informatie voor week 5 en 6 in verband met Excel formules/berekeningen. De VBA code houdt hier rekening mee, gelieve dit niet te wijzigen."]
[]
[null,"Wekelijkse Stappen:"]
[null,"1. Ga naar het 'INIT' werkblad\n2. Druk op de 'Profcoach DataOphalen' knop om de gegevens op te halen.\nLET OP: Dit kan enige tijd duren voordat het verwerkt is.\n3. Ga naar het tabblad 'HISTORY'\n4. Druk op de KNOP \"Opmaak kolommen\"\nDe functie achter deze knop kopieert de gegevens van het tabblad INIT naar HISTORY en genereerd de berekeningsgegevens (weekrank, cumulatieve scores, etc.)\n5. Druk op de knop \"Laatste stap\"\nDeze functie kopieert de ranking gegevens naar het tablad TABLE_GRAPH en zorgt voor de vergelijking tussen de huidige week en vorige week. Daarnaast wordt het bereik van de grafiek gewijzigd."]
[]
[null,"Feiten voor een 'weekbericht'"]
[null,"Met behulp van al deze informatie kan je eenvoudig een weekbericht opmaken met de (bijvoorbeeld) de volgende punten:\nA. Weekstand (te verkrijgen op tabblad 'INIT' nadat je de informatie hebt opgehaald)\nB. Stijgers/Dalers (of klapperrrr/zakkerrrr van de week)\nC. Lijngrafiek met wisselingen per week;\nD. Beste scout --> dit op basis van de totaaltelling weekscore/bankscore;\nE. Periodekampioen (op basis van perioden in HELPTBL)\nF. Slaapbank (verkeerde basisopstelling) --> niet mogelijk met dit tool, hiervoor dien je profcoach.nl te doorlopen en te analyseren.\nG. Overige feiten? --> Ik hou mij van harte aanbevolen voor suggestie en/of aanvullingen"]
[]
[null,"Changelog"]
[null,"0.1 - Initiële release\n* Tabbladen toegevoegd + screenscraper (middels Internet Explorer) om gegevens op te halen.\n0.2 - Bugfix release\n* Verbeteringen screenscraper\n* Wijziging code vanuit werkbladen naar module\n0.3 - Nieuwe eigenschappen\n* Nieuwe knoppen om opmaak op te maken ('Opmaak kolommen' en 'Laatste stap')\n* Lijngrafiek toegevoegd\n0.4 - Nieuwe eigenschappen + namen tabbladen\n* Op tabblad 'INIT' nu ook een weekranking toegevoegd\n* Naamgeving voor tabbladen toegevoegd\n* Hulptabel toegevoegd voor toekomstig gebruik\n0.5 - Nieuwe functie om historie te verwerken\n* Nieuwe functie toegevoegd om historie op te halen\n* De uitleg verder uitgewerkt met de nodige informatie\n* VBA Code gedocumenteerd\n0.6 - Bugfix release\n* Diverse bugfixes na eerste testrun met historie opbouw\n0.7 - Bugfix release\n* Afrondingsprobleem in ophalen bankgegevens opgelost (Double ipv Single gebruiken)"]

{"sheet":"INIT","index":1,"n_rows":38,"n_cols":12,"rows_kept":38,"cut":false,"hidden":false,"merged":[]}
["ProfCoach - DataOphalen"]
[]
["Overzicht deelnemers",null,null,null,null,null,"Huidige teaminformatie voor afgelopen week!"]
[]
["Overzicht spelers subleague",null,null,null,null,null,"Team:","Don_Diego",{"$f":"SUMIF(I7:I24,\"Basisspeler\",K7:K24)","v":18},{"$f":"SUMIF(I7:I24,\"Bankspeler\",K7:K24)","v":20}]
["Speler","Teamnaam","ID",null,null,null,"Captain?","Positie","Basis/bank","Naam","Punten","Correctie"]
["Ruben Woudsma","De Woudlopers","3e6b62fe-b970-4c13-99d6-089933c03d53",null,null,null,"Nee","Aanvaller","Basisspeler","Rydell Poepon",2,{"$f":"IF(G7=\"Ja\",K7/2,K7)","v":2}]
["Ruben Woudsma","De Woudlopers","1ddb8b2d-d8c3-4c74-a1a2-51abaa61d944",null,null,null,"Nee","Aanvaller","Basisspeler","Luc Castaignos",7,{"$f":"IF(G8=\"Ja\",K8/2,K8)","v":7}]
["Ruben Woudsma","De Woudlopers","a72e0b9a-1a9c-4404-92de-5127974bc259",null,null,null,"Nee","Aanvaller","Basisspeler","Tim Matavz",0,0]
["Ruben Woudsma","De Woudlopers","e67b7704-a55c-4a2c-bba9-8fd99515c16d",null,null,null,"Nee","Middevelder","Basisspeler","Siem de Jong",2,2]
["Ruben Woudsma","De Woudlopers","0e22b6ec-3235-46ad-9deb-f2a8eb582254",null,null,null,"Nee","Middevelder","Basisspeler","Joost Broerse",1,1]
["Ruben Woudsma","De Woudlopers","ccdbb619-b239-4738-ab1f-2af0528f840b",null,null,null,"Ja","Middevelder","Basisspeler","Theo Janssen",4,2]
["Ruben Woudsma","De Woudlopers","f3cdd701-2002-459d-bf23-01c4455a2116",null,null,null,"Nee","Verdediger","Basisspeler","Nick Viergever",-1,-1]
["Ruben Woudsma","De Woudlopers","3cee7283-2fda-4d5f-8e43-4dd102cc2648",null,null,null,"Nee","Verdediger","Basisspeler","Pavel Cmovs",2,2]
["Ruben Woudsma","De Woudlopers","973ef9cb-d491-4ce6-bf2d-c1e6444c44b2",null,null,null,"Nee","Verdediger","Basisspeler","Jeffrey Gouweleeuw",0,0]
["Ruben Woudsma","De Woudlopers","c27ad1f7-5611-4205-b2d7-a7ef15972cac",null,null,null,"Nee","Verdediger","Basisspeler","Robbie Wielaert",0,0]
["Ruben Woudsma","De Woudlopers","1839c1df-88cd-4378-b9a6-83a1f08b7e49",null,null,null,"Nee","Keeper","Basisspeler","Jeroen Zoet",1,1]
["Ruben Woudsma","De Woudlopers","b813f022-114d-442f-aa59-13fd775b9884",null,null,null,"Nee","Keeper","Bankspeler","Erwin Mulder",0,0]
["Ruben Woudsma","De Woudlopers","4a9b4aee-eed6-4aea-83a9-bbfdadcb6c9d",null,null,null,"Nee","Verdediger","Bankspeler","Jan Wuytens",2,2]
["Ruben Woudsma","De Woudlopers","07f51888-c135-4c1e-877f-7c23d327aeba",null,null,null,"Nee","Middevelder","Bankspeler","Willie Overtoom",8,8]
["Ruben Woudsma","De Woudlopers","3e2f8318-9140-4627-98da-cd38d82f6d20",null,null,null,"Nee","Middevelder","Bankspeler","Leandro Bacuna",6,6]
["Ruben Woudsma","De Woudlopers","7efff845-5fd1-440c-ad5a-630419b71955",null,null,null,"Nee","Middevelder","Bankspeler","Ricky van Haaren",1,1]
["Ruben Woudsma","De Woudlopers","8b21cb39-eb58-4120-af51-a89009b5cfa1",null,null,null,"Nee","Aanvaller","Bankspeler","Alex Schalk",1,1]
["Ruben Woudsma","De Woudlopers","346b59de-b0f2-4353-8f59-b5700a63e4f1",null,null,null,"Nee","Aanvaller","Bankspeler","Marc Höcher",2,2]
["Ruben Woudsma","De Woudlopers","cbc3509c-7e3d-4f58-803e-59663575df4c",null,null,null,"Weekscore","Totaal",{"$f":"I5","v":18},"Bank:",{"$f":"J5","v":20},"Bst Sstm"]
[null,null,null,null,null,null,"Rendement",{"$f":"I25/I26","v":0.42857142857142855},{"$f":"MAX(G38:J38)","v":42},"Verspeelde pnt",{"$f":"L38","v":24},{"$f":"INDEX(G37:J38,1,MATCH(I26,G38:J38))","v":"4-3-3"}]
[]
[]
[]
[null,null,null,null,null,null,"Beste 2/3/4 of 5? (Optelling ervan) - Hulptabel"]
[null,null,null,null,null,null,null,1,2,3,4,5]
[null,null,null,null,null,null,"Keeper",{"$f":"IFERROR(SUM(LARGE(IF($H$7:$H$24=$G32,$L$7:$L$24,\"\"),ROW(INDIRECT(\"1:\"&H$31)))),\"\")","v":1},{"$f":"IFERROR(SUM(LARGE(IF($H$7:$H$24=$G32,$L$7:$L$24,\"\"),ROW(INDIRECT(\"1:\"&I$31)))),\"\")","v":1},{"$f":"IFERROR(SUM(LARGE(IF($H$7:$H$24=$G32,$L$7:$L$24,\"\"),ROW(INDIRECT(\"1:\"&J$31)))),\"\")","v":""},{"$f":"IFERROR(SUM(LARGE(IF($H$7:$H$24=$G32,$L$7:$L$24,\"\"),ROW(INDIRECT(\"1:\"&K$31)))),\"\")","v":""},{"$f":"IFERROR(SUM(LARGE(IF($H$7:$H$24=$G32,$L$7:$L$24,\"\"),ROW(INDIRECT(\"1:\"&L$31)))),\"\")","v":""}]
[null,null,null,null,null,null,"Verdediger",{"$f":"IFERROR(SUM(LARGE(IF($H$7:$H$24=$G33,$L$7:$L$24,\"\"),ROW(INDIRECT(\"1:\"&H$31)))),\"\")","v":2},{"$f":"IFERROR(SUM(LARGE(IF($H$7:$H$24=$G33,$L$7:$L$24,\"\"),ROW(INDIRECT(\"1:\"&I$31)))),\"\")","v":4},{"$f":"IFERROR(SUM(LARGE(IF($H$7:$H$24=$G33,$L$7:$L$24,\"\"),ROW(INDIRECT(\"1:\"&J$31)))),\"\")","v":4},{"$f":"IFERROR(SUM(LARGE(IF($H$7:$H$24=$G33,$L$7:$L$24,\"\"),ROW(INDIRECT(\"1:\"&K$31)))),\"\")","v":4},{"$f":"IFERROR(SUM(LARGE(IF($H$7:$H$24=$G33,$L$7:$L$24,\"\"),ROW(INDIRECT(\"1:\"&L$31)))),\"\")","v":3}]
[null,null,null,null,null,null,"Middevelder",{"$f":"IFERROR(SUM(LARGE(IF($H$7:$H$24=$G34,$L$7:$L$24,\"\"),ROW(INDIRECT(\"1:\"&H$31)))),\"\")","v":8},{"$f":"IFERROR(SUM(LARGE(IF($H$7:$H$24=$G34,$L$7:$L$24,\"\"),ROW(INDIRECT(\"1:\"&I$31)))),\"\")","v":14},{"$f":"IFERROR(SUM(LARGE(IF($H$7:$H$24=$G34,$L$7:$L$24,\"\"),ROW(INDIRECT(\"1:\"&J$31)))),\"\")","v":16},{"$f":"IFERROR(SUM(LARGE(IF($H$7:$H$24=$G34,$L$7:$L$24,\"\"),ROW(INDIRECT(\"1:\"&K$31)))),\"\")","v":18},{"$f":"IFERROR(SUM(LARGE(IF($H$7:$H$24=$G34,$L$7:$L$24,\"\"),ROW(INDIRECT(\"1:\"&L$31)))),\"\")","v":19}]
[null,null,null,null,null,null,"Aanvaller",{"$f":"IFERROR(SUM(LARGE(IF($H$7:$H$24=$G35,$L$7:$L$24,\"\"),ROW(INDIRECT(\"1:\"&H$31)))),\"\")","v":7},{"$f":"IFERROR(SUM(LARGE(IF($H$7:$H$24=$G35,$L$7:$L$24,\"\"),ROW(INDIRECT(\"1:\"&I$31)))),\"\")","v":9},{"$f":"IFERROR(SUM(LARGE(IF($H$7:$H$24=$G35,$L$7:$L$24,\"\"),ROW(INDIRECT(\"1:\"&J$31)))),\"\")","v":11},{"$f":"IFERROR(SUM(LARGE(IF($H$7:$H$24=$G35,$L$7:$L$24,\"\"),ROW(INDIRECT(\"1:\"&K$31)))),\"\")","v":12},{"$f":"IFERROR(SUM(LARGE(IF($H$7:$H$24=$G35,$L$7:$L$24,\"\"),ROW(INDIRECT(\"1:\"&L$31)))),\"\")","v":12}]
[]
[null,null,null,null,null,null,"3-4-3","3-5-2","4-4-2","4-3-3","Rend","Verspeeld"]
[null,null,null,null,null,null,{"$f":"(((H32+J33+K34+J35)-MAX(L7:L24)))+(MAX(L7:L24)*2)","v":42},{"$f":"(((H32+J33+L34+I35)-MAX(L7:L24)))+(MAX(L7:L24)*2)","v":41},{"$f":"(((H32+K33+K34+I35)-MAX(L7:L24)))+(MAX(L7:L24)*2)","v":40},{"$f":"(((H32+K33+J34+J35)-MAX(L7:L24)))+(MAX(L7:L24)*2)","v":40},{"$f":"I5/MAX(G38:J38)","v":0.42857142857142855},{"$f":"MAX(G38:J38)-I5","v":24}]

{"sheet":"CALCULATE","index":2,"n_rows":72,"n_cols":114,"rows_kept":72,"cut":false,"hidden":false,"merged":[]}
["ProfCoach - Berekeningssheet (tussentabel?)"]
[]
["Team:","De Woudlopers",28,13,null,null,"Team:","Jong Belegen",36,17,null,null,"Team:","Ultimate Knooierd",18,13,null,null,"Team:","Master Krosse",30,16,null,null,"Team:","Rwobbie",39,2,null,null,"Team:","Slyfox",40,18,null,null,"Team:","Kesman",39,21,null,null,"Team:","Rising Star",34,22,null,null,"Team:","Buttons",39,27,null,null,"Team:","MASTER PLAYER",54,5,null,null,"Team:","FC Bramovich",44,11,null,null,"Team:","Kamp Nijbob",27,21,null,null,"Team:","Denstar United",22,16,null,null,"Team:","Voetbal Toestanden",37,17,null,null,"Team:","Amazing Crippled",57,8,null,null,"Team:","P.R.Utsers",39,12,null,null,"Team:","Maffioso's",20,22,null,null,"Team:","FCLangsDeLijn",38,19,null,null,"Team:","Don_Diego",18,20]
["Captain?","Positie","Basis/bank","Naam","Punten","Correctie","Captain?","Positie","Basis/bank","Naam","Punten","Correctie","Captain?","Positie","Basis/bank","Naam","Punten","Correctie","Captain?","Positie","Basis/bank","Naam","Punten","Correctie","Captain?","Positie","Basis/bank","Naam","Punten","Correctie","Captain?","Positie","Basis/bank","Naam","Punten","Correctie","Captain?","Positie","Basis/bank","Naam","Punten","Correctie","Captain?","Positie","Basis/bank","Naam","Punten","Correctie","Captain?","Positie","Basis/bank","Naam","Punten","Correctie","Captain?","Positie","Basis/bank","Naam","Punten","Correctie","Captain?","Positie","Basis/bank","Naam","Punten","Correctie","Captain?","Positie","Basis/bank","Naam","Punten","Correctie","Captain?","Positie","Basis/bank","Naam","Punten","Correctie","Captain?","Positie","Basis/bank","Naam","Punten","Correctie","Captain?","Positie","Basis/bank","Naam","Punten","Correctie","Captain?","Positie","Basis/bank","Naam","Punten","Correctie","Captain?","Positie","Basis/bank","Naam","Punten","Correctie","Captain?","Positie","Basis/bank","Naam","Punten","Correctie","Captain?","Positie","Basis/bank","Naam","Punten","Correctie"]
["Ja","Aanvaller","Basisspeler","Dries Mertens",8,4,"Nee","Aanvaller","Basisspeler","Jozy Altidore",-3,-3,"Nee","Aanvaller","Basisspeler","Marc Höcher",2,2,"Nee","Aanvaller","Basisspeler","Dusan Tadic",5,5,"Nee","Aanvaller","Basisspeler","Yanic Wildschut",1,1,"Nee","Aanvaller","Basisspeler","Sanharib Malki",10,10,"Nee","Aanvaller","Basisspeler","Jozy Altidore",-3,-3,"Nee","Aanvaller","Basisspeler","Dries Mertens",4,4,"Ja","Aanvaller","Basisspeler","Dries Mertens",8,4,"Nee","Aanvaller","Basisspeler","Sanharib Malki",10,10,"Nee","Aanvaller","Basisspeler","Dries Mertens",4,4,"Nee","Aanvaller","Basisspeler","Jonathan Reis",2,2,"Nee","Aanvaller","Basisspeler","Dries Mertens",4,4,"Nee","Aanvaller","Basisspeler","Fred Benson",1,1,"Nee","Aanvaller","Basisspeler","Wilfried Bony",9,9,"Nee","Aanvaller","Basisspeler","David Texeira",0,0,"Nee","Aanvaller","Basisspeler","Dries Mertens",4,4,"Nee","Aanvaller","Basisspeler","Yanic Wildschut",1,1,"Nee","Aanvaller","Basisspeler","Rydell Poepon",2,2]
["Nee","Aanvaller","Basisspeler","Jozy Altidore",-3,-3,"Ja","Aanvaller","Basisspeler","Dries Mertens",8,4,"Ja","Aanvaller","Basisspeler","Jozy Altidore",-6,-3,"Nee","Aanvaller","Basisspeler","Dries Mertens",4,4,"Nee","Aanvaller","Basisspeler","Sanharib Malki",10,10,"Ja","Aanvaller","Basisspeler","Dries Mertens",8,4,"Nee","Aanvaller","Basisspeler","Alfred Finnbogason",8,8,"Nee","Aanvaller","Basisspeler","Alfred Finnbogason",8,8,"Nee","Aanvaller","Basisspeler","Wilfried Bony",9,9,"Nee","Aanvaller","Basisspeler","Alfred Finnbogason",8,8,"Nee","Aanvaller","Basisspeler","Wilfried Bony",9,9,"Nee","Aanvaller","Basisspeler","Alex Schalk",1,1,"Nee","Aanvaller","Basisspeler","Dusan Tadic",5,5,"Ja","Aanvaller","Basisspeler","Wilfried Bony",18,9,"Nee","Aanvaller","Basisspeler","Jozy Altidore",-3,-3,"Nee","Aanvaller","Basisspeler","Jonathan Reis",2,2,"Nee","Aanvaller","Basisspeler","Alfred Finnbogason",8,8,"Nee","Aanvaller","Basisspeler","Alfred Finnbogason",8,8,"Nee","Aanvaller","Basisspeler","Luc Castaignos",7,7]
["Nee","Middevelder","Basisspeler","Siem de Jong",2,2,"Nee","Aanvaller","Basisspeler","Sanharib Malki",10,10,"Nee","Aanvaller","Basisspeler","Dusan Tadic",5,5,"Nee","Middevelder","Basisspeler","Theo Janssen",2,2,"Nee","Middevelder","Basisspeler","Siem de Jong",2,2,"Nee","Middevelder","Basisspeler","Michael de Leeuw",0,0,"Nee","Middevelder","Basisspeler","Rodney Sneijder",1,1,"Nee","Middevelder","Basisspeler","Tjaronn Chery",2,2,"Nee","Aanvaller","Basisspeler","Yanic Wildschut",1,1,"Nee","Aanvaller","Basisspeler","Yanic Wildschut",1,1,"Nee","Aanvaller","Basisspeler","Sanharib Malki",10,10,"Nee","Middevelder","Basisspeler","Willie Overtoom",8,8,"Nee","Aanvaller","Basisspeler","Everton",4,4,"Nee","Middevelder","Basisspeler","Christian Eriksen",2,2,"Ja","Aanvaller","Basisspeler","Sanharib Malki",20,10,"Nee","Aanvaller","Basisspeler","Dries Mertens",4,4,"Nee","Aanvaller","Basisspeler","Mitchell Schet",2,2,"Nee","Aanvaller","Basisspeler","Marc Höcher",2,2,"Nee","Aanvaller","Basisspeler","Tim Matavz",0,0]
["Nee","Middevelder","Basisspeler","Michael de Leeuw",0,0,"Nee","Middevelder","Basisspeler","Siem de Jong",2,2,"Nee","Middevelder","Basisspeler","Filip Djuricic",2,2,"Nee","Middevelder","Basisspeler","Evander Sno",0,0,"Nee","Middevelder","Basisspeler","Ola Toivonen",8,8,"Nee","Middevelder","Basisspeler","Willie Overtoom",8,8,"Ja","Middevelder","Basisspeler","Siem de Jong",4,2,"Nee","Middevelder","Basisspeler","Willie Overtoom",8,8,"Nee","Middevelder","Basisspeler","Filip Djuricic",2,2,"Nee","Middevelder","Basisspeler","Siem de Jong",2,2,"Nee","Middevelder","Basisspeler","Tjaronn Chery",2,2,"Ja","Middevelder","Basisspeler","Christian Eriksen",4,2,"Nee","Middevelder","Basisspeler","Siem de Jong",2,2,"Nee","Middevelder","Basisspeler","Filip Djuricic",2,2,"Nee","Middevelder","Basisspeler","Willie Overtoom",8,8,"Nee","Middevelder","Basisspeler","Siem de Jong",2,2,"Nee","Middevelder","Basisspeler","Jordy Clasie",2,2,"Nee","Middevelder","Basisspeler","Willie Overtoom",8,8,"Nee","Middevelder","Basisspeler","Siem de Jong",2,2]
["Nee","Middevelder","Basisspeler","Willie Overtoom",8,8,"Nee","Middevelder","Basisspeler","Filip Djuricic",2,2,"Nee","Middevelder","Basisspeler","Willie Overtoom",8,8,"Ja","Middevelder","Basisspeler","Willie Overtoom",16,8,"Nee","Middevelder","Basisspeler","Jens Toornstra",2,2,"Nee","Middevelder","Basisspeler","Jens Toornstra",2,2,"Nee","Middevelder","Basisspeler","Tjaronn Chery",2,2,"Nee","Middevelder","Basisspeler","Nana Asare",2,2,"Nee","Middevelder","Basisspeler","Willie Overtoom",8,8,"Nee","Middevelder","Basisspeler","Jordy Clasie",2,2,"Nee","Middevelder","Basisspeler","Siem de Jong",2,2,"Nee","Middevelder","Basisspeler","Rodney Sneijder",1,1,"Nee","Middevelder","Basisspeler","Kees Kwakman",2,2,"Nee","Middevelder","Basisspeler","Willie Overtoom",8,8,"Nee","Middevelder","Basisspeler","Jens Toornstra",2,2,"Nee","Middevelder","Basisspeler","Filip Djuricic",2,2,"Nee","Middevelder","Basisspeler","Leroy Fer",0,0,"Nee","Middevelder","Basisspeler","Theo Janssen",2,2,"Nee","Middevelder","Basisspeler","Joost Broerse",1,1]
["Nee","Middevelder","Basisspeler","Tjaronn Chery",2,2,"Nee","Middevelder","Basisspeler","Willie Overtoom",8,8,"Nee","Middevelder","Basisspeler","Leandro Bacuna",6,6,"Nee","Middevelder","Basisspeler","Rodney Sneijder",1,1,"Nee","Middevelder","Basisspeler","Willie Overtoom",8,8,"Nee","Middevelder","Basisspeler","Rodney Sneijder",1,1,"Nee","Middevelder","Basisspeler","Willie Overtoom",8,8,"Nee","Middevelder","Basisspeler","Rodney Sneijder",1,1,"Nee","Middevelder","Basisspeler","Siem de Jong",2,2,"Nee","Middevelder","Basisspeler","Willie Overtoom",8,8,"Ja","Middevelder","Basisspeler","Willie Overtoom",16,8,"Nee","Middevelder","Basisspeler","Leandro Bacuna",6,6,"Nee","Middevelder","Basisspeler","Rodney Sneijder",1,1,"Nee","Middevelder","Basisspeler","Jordy Clasie",2,2,"Nee","Middevelder","Basisspeler","Nemanja Gudelj",1,1,"Nee","Middevelder","Basisspeler","Willie Overtoom",8,8,"Ja","Middevelder","Basisspeler","Siem de Jong",4,2,"Nee","Middevelder","Basisspeler","Tim Sparv",2,2,"Ja","Middevelder","Basisspeler","Theo Janssen",4,2]
["Nee","Verdediger","Basisspeler","Jeffrey Gouweleeuw",0,0,"Nee","Middevelder","Basisspeler","Rodney Sneijder",1,1,"Nee","Middevelder","Basisspeler","Tjaronn Chery",2,2,"Nee","Verdediger","Basisspeler","Toby Alderweireld",2,2,"Nee","Middevelder","Basisspeler","Filip Djuricic",2,2,"Nee","Middevelder","Basisspeler","Ryan Koolwijk",2,2,"Nee","Middevelder","Basisspeler","Michael de Leeuw",0,0,"Nee","Verdediger","Basisspeler","Daryl Janmaat",-1,-1,"Nee","Verdediger","Basisspeler","Roberto Rosales",8,8,"Ja","Middevelder","Basisspeler","Ola Toivonen",16,8,"Nee","Verdediger","Basisspeler","Daryl Janmaat",-1,-1,"Nee","Verdediger","Basisspeler","Daryl Janmaat",-1,-1,"Nee","Middevelder","Basisspeler","Ryan Koolwijk",2,2,"Nee","Middevelder","Basisspeler","Leandro Bacuna",6,6,"Nee","Middevelder","Basisspeler","Leandro Bacuna",6,6,"Nee","Middevelder","Basisspeler","Nana Asare",2,2,"Nee","Middevelder","Basisspeler","Danny Holla",0,0,"Nee","Verdediger","Basisspeler","Niklas Moisander",2,2,"Nee","Verdediger","Basisspeler","Nick Viergever",-1,-1]
["Nee","Verdediger","Basisspeler","Daryl Janmaat",-1,-1,"Nee","Verdediger","Basisspeler","Michel Breuer",2,2,"Nee","Verdediger","Basisspeler","Niklas Moisander",2,2,"Nee","Verdediger","Basisspeler","Jan Wuytens",2,2,"Nee","Verdediger","Basisspeler","Ard van Peppen",1,1,"Nee","Verdediger","Basisspeler","Patrick van Aanholt",0,0,"Nee","Verdediger","Basisspeler","Guram Kashia",0,0,"Nee","Verdediger","Basisspeler","Guram Kashia",0,0,"Nee","Verdediger","Basisspeler","Michel Breuer",2,2,"Nee","Verdediger","Basisspeler","Douglas",7,7,"Nee","Verdediger","Basisspeler","Peter Wisgerhof",0,0,"Nee","Verdediger","Basisspeler","Nick Viergever",-1,-1,"Nee","Verdediger","Basisspeler","Bart van Hintum",-1,-1,"Nee","Verdediger","Basisspeler","Eric Botteghin",-2,-2,"Nee","Verdediger","Basisspeler","Mitchell Piqué",5,5,"Nee","Verdediger","Basisspeler","Nick Viergever",-1,-1,"Nee","Verdediger","Basisspeler","Michel Breuer",2,2,"Ja","Verdediger","Basisspeler","Marcelo",14,7,"Nee","Verdediger","Basisspeler","Pavel Cmovs",2,2]
["Nee","Verdediger","Basisspeler","Michel Breuer",2,2,"Nee","Verdediger","Basisspeler","Daryl Janmaat",-1,-1,"Nee","Verdediger","Basisspeler","Guram Kashia",0,0,"Nee","Verdediger","Basisspeler","Daryl Janmaat",-1,-1,"Nee","Verdediger","Basisspeler","Douglas",7,7,"Nee","Verdediger","Basisspeler","Niklas Moisander",2,2,"Nee","Verdediger","Basisspeler","Bruno Martins Indi",4,4,"Ja","Verdediger","Basisspeler","Niklas Moisander",4,2,"Nee","Verdediger","Basisspeler","Ard van Peppen",1,1,"Nee","Verdediger","Basisspeler","Guram Kashia",0,0,"Nee","Verdediger","Basisspeler","Jan Wuytens",2,2,"Nee","Verdediger","Basisspeler","Jeffrey Gouweleeuw",0,0,"Nee","Verdediger","Basisspeler","Bruno Martins Indi",4,4,"Nee","Verdediger","Basisspeler","Peter Wisgerhof",0,0,"Nee","Verdediger","Basisspeler","Niklas Moisander",2,2,"Nee","Verdediger","Basisspeler","Bruno Martins Indi",4,4,"Nee","Verdediger","Basisspeler","Nick Viergever",-1,-1,"Nee","Verdediger","Basisspeler","Daryl Janmaat",-1,-1,"Nee","Verdediger","Basisspeler","Jeffrey Gouweleeuw",0,0]
["Nee","Verdediger","Basisspeler","Jan Wuytens",2,2,"Nee","Verdediger","Basisspeler","Douglas",7,7,"Nee","Verdediger","Basisspeler","Daryl Janmaat",-1,-1,"Nee","Verdediger","Basisspeler","Jeffrey Gouweleeuw",0,0,"Ja","Verdediger","Basisspeler","Daryl Janmaat",-2,-1,"Nee","Verdediger","Basisspeler","Daryl Janmaat",-1,-1,"Nee","Verdediger","Basisspeler","Atiba Hutchinson",7,7,"Nee","Verdediger","Basisspeler","Douglas",7,7,"Nee","Verdediger","Basisspeler","Daryl Janmaat",-1,-1,"Nee","Verdediger","Basisspeler","Ard van Peppen",1,1,"Nee","Verdediger","Basisspeler","Ard van Peppen",1,1,"Nee","Verdediger","Basisspeler","Marcel Seip",-1,-1,"Nee","Verdediger","Basisspeler","Nick Viergever",-1,-1,"Nee","Verdediger","Basisspeler","Jetro Willems",0,0,"Nee","Verdediger","Basisspeler","Daryl Janmaat",-1,-1,"Nee","Verdediger","Basisspeler","Ruud van der Rijt",0,0,"Nee","Verdediger","Basisspeler","Kees Luijckx",-2,-2,"Nee","Verdediger","Basisspeler","Ard van Peppen",1,1,"Nee","Verdediger","Basisspeler","Robbie Wielaert",0,0]
["Nee","Keeper","Basisspeler","Nikolay Mihaylov",8,8,"Nee","Keeper","Basisspeler","Piet Velthuizen",0,0,"Nee","Keeper","Basisspeler","Jelle ten Rouwelaar",-2,-2,"Nee","Keeper","Basisspeler","Esteban",-1,-1,"Nee","Keeper","Basisspeler","Piet Velthuizen",0,0,"Nee","Keeper","Basisspeler","Nikolay Mihaylov",8,8,"Nee","Keeper","Basisspeler","Nikolay Mihaylov",8,8,"Nee","Keeper","Basisspeler","Esteban",-1,-1,"Nee","Keeper","Basisspeler","Esteban",-1,-1,"Nee","Keeper","Basisspeler","Esteban",-1,-1,"Nee","Keeper","Basisspeler","Esteban",-1,-1,"Nee","Keeper","Basisspeler","Nikolay Mihaylov",8,8,"Ja","Keeper","Basisspeler","Piet Velthuizen",0,0,"Nee","Keeper","Basisspeler","Gino Coutinho",0,0,"Nee","Keeper","Basisspeler","Nikolay Mihaylov",8,8,"Ja","Keeper","Basisspeler","Nikolay Mihaylov",16,8,"Nee","Keeper","Basisspeler","Jeroen Zoet",1,1,"Nee","Keeper","Basisspeler","Esteban",-1,-1,"Nee","Keeper","Basisspeler","Jeroen Zoet",1,1]
["Nee","Keeper","Bankspeler","Jelle ten Rouwelaar",-2,-2,"Nee","Keeper","Bankspeler","David Meul",8,8,"Nee","Keeper","Bankspeler","Przemyslaw Tyton",0,0,"Nee","Keeper","Bankspeler","Jelle ten Rouwelaar",-2,-2,"Nee","Keeper","Bankspeler","Luciano Da Silva",1,1,"Nee","Keeper","Bankspeler","David Meul",8,8,"Nee","Keeper","Bankspeler","David Meul",8,8,"Nee","Keeper","Bankspeler","Jelle ten Rouwelaar",-2,-2,"Nee","Keeper","Bankspeler","David Meul",8,8,"Nee","Keeper","Bankspeler","Gino Coutinho",0,0,"Nee","Keeper","Bankspeler","David Meul",8,8,"Nee","Keeper","Bankspeler","David Meul",8,8,"Nee","Keeper","Bankspeler","Gino Coutinho",0,0,"Nee","Keeper","Bankspeler","Esteban",-1,-1,"Nee","Keeper","Bankspeler","Gábor Babos",2,2,"Nee","Keeper","Bankspeler","Gino Coutinho",0,0,"Nee","Keeper","Bankspeler","Piet Velthuizen",0,0,"Nee","Keeper","Bankspeler","Diederik Boer",0,0,"Nee","Keeper","Bankspeler","Erwin Mulder",0,0]
["Nee","Verdediger","Bankspeler","Darryl Lachman",-1,-1,"Nee","Verdediger","Bankspeler","Jan Wuytens",2,2,"Nee","Verdediger","Bankspeler","Ard van Peppen",1,1,"Nee","Verdediger","Bankspeler","Nils Röseler",0,0,"Nee","Verdediger","Bankspeler","Nick Viergever",-1,-1,"Nee","Verdediger","Bankspeler","Nick Viergever",-1,-1,"Nee","Verdediger","Bankspeler","Bart van Hintum",-1,-1,"Nee","Verdediger","Bankspeler","Virgil van Dijk",6,6,"Nee","Verdediger","Bankspeler","Jan Wuytens",2,2,"Nee","Verdediger","Bankspeler","Jan Wuytens",2,2,"Nee","Verdediger","Bankspeler","Bart van Hintum",-1,-1,"Nee","Verdediger","Bankspeler","Darryl Lachman",-1,-1,"Nee","Verdediger","Bankspeler","Marcus Nilsson",0,0,"Nee","Verdediger","Bankspeler","Jan Wuytens",2,2,"Nee","Verdediger","Bankspeler","Gianni Zuiverloon",0,0,"Nee","Verdediger","Bankspeler","Ard van Peppen",1,1,"Nee","Verdediger","Bankspeler","Jan Wuytens",2,2,"Nee","Verdediger","Bankspeler","Roberto Rosales",8,8,"Nee","Verdediger","Bankspeler","Jan Wuytens",2,2]
["Nee","Middevelder","Bankspeler","Rodney Sneijder",1,1,"Nee","Verdediger","Bankspeler","Vito Wormgoor",2,2,"Nee","Verdediger","Bankspeler","Jan Wuytens",2,2,"Nee","Middevelder","Bankspeler","Arne Slot",0,0,"Nee","Verdediger","Bankspeler","Darryl Lachman",-1,-1,"Nee","Verdediger","Bankspeler","Bart van Hintum",-1,-1,"Nee","Verdediger","Bankspeler","Jan Wuytens",2,2,"Nee","Middevelder","Bankspeler","Evander Sno",0,0,"Nee","Verdediger","Bankspeler","Virgil van Dijk",6,6,"Nee","Verdediger","Bankspeler","Johan Kappelhof",1,1,"Nee","Verdediger","Bankspeler","Lorenzo Burnet",0,0,"Nee","Middevelder","Bankspeler","Jens Toornstra",2,2,"Nee","Verdediger","Bankspeler","Gianni Zuiverloon",0,0,"Nee","Verdediger","Bankspeler","Michel Breuer",2,2,"Nee","Verdediger","Bankspeler","Jan Wuytens",2,2,"Nee","Verdediger","Bankspeler","Marcel Seip",-1,-1,"Nee","Verdediger","Bankspeler","Bart van Hintum",-1,-1,"Nee","Middevelder","Bankspeler","Danny Holla",0,0,"Nee","Middevelder","Bankspeler","Willie Overtoom",8,8]
["Nee","Aanvaller","Bankspeler","Jonathan Reis",2,2,"Nee","Middevelder","Bankspeler","Nemanja Gudelj",1,1,"Nee","Middevelder","Bankspeler","Rochdi Achenteh",-1,-1,"Nee","Middevelder","Bankspeler","Leandro Bacuna",6,6,"Nee","Middevelder","Bankspeler","Evander Sno",0,0,"Nee","Middevelder","Bankspeler","Nana Asare",2,2,"Nee","Middevelder","Bankspeler","Evander Sno",0,0,"Nee","Middevelder","Bankspeler","Arne Slot",0,0,"Nee","Middevelder","Bankspeler","Danny Holla",0,0,"Nee","Middevelder","Bankspeler","Joost Broerse",1,1,"Nee","Middevelder","Bankspeler","Filip Djuricic",2,2,"Nee","Middevelder","Bankspeler","Evander Sno",0,0,"Nee","Middevelder","Bankspeler","Nemanja Gudelj",1,1,"Nee","Middevelder","Bankspeler","Rodney Sneijder",1,1,"Nee","Middevelder","Bankspeler","Joost Broerse",1,1,"Nee","Middevelder","Bankspeler","Navarone Foor",0,0,"Nee","Middevelder","Bankspeler","Lerin Duarte",4,4,"Nee","Middevelder","Bankspeler","Evander Sno",0,0,"Nee","Middevelder","Bankspeler","Leandro Bacuna",6,6]
["Nee","Aanvaller","Bankspeler","Sanharib Malki",10,10,"Nee","Aanvaller","Bankspeler","Yanic Wildschut",1,1,"Nee","Middevelder","Bankspeler","Evander Sno",0,0,"Nee","Aanvaller","Bankspeler","Sanharib Malki",10,10,"Nee","Aanvaller","Bankspeler","Alex Schalk",1,1,"Nee","Aanvaller","Bankspeler","Yanic Wildschut",1,1,"Nee","Aanvaller","Bankspeler","Alex Schalk",1,1,"Nee","Aanvaller","Bankspeler","Yanic Wildschut",1,1,"Nee","Middevelder","Bankspeler","Nemanja Gudelj",1,1,"Nee","Middevelder","Bankspeler","Evander Sno",0,0,"Nee","Middevelder","Bankspeler","Evander Sno",0,0,"Nee","Aanvaller","Bankspeler","Sanharib Malki",10,10,"Nee","Middevelder","Bankspeler","Hans Mulder",4,4,"Nee","Aanvaller","Bankspeler","Sanharib Malki",10,10,"Nee","Aanvaller","Bankspeler","Dries Mertens",4,4,"Nee","Aanvaller","Bankspeler","Youness Mokhtar",1,1,"Nee","Middevelder","Bankspeler","Niek Vossebelt",6,6,"Nee","Aanvaller","Bankspeler","Sanharib Malki",10,10,"Nee","Middevelder","Bankspeler","Ricky van Haaren",1,1]
["Nee","Aanvaller","Bankspeler","Marc Höcher",2,2,"Nee","Aanvaller","Bankspeler","Género Zeefuik",2,2,"Nee","Aanvaller","Bankspeler","Yanic Wildschut",1,1,"Nee","Aanvaller","Bankspeler","Rydell Poepon",2,2,"Nee","Aanvaller","Bankspeler","Marc Höcher",2,2,"Nee","Aanvaller","Bankspeler","Alfred Finnbogason",8,8,"Nee","Aanvaller","Bankspeler","Sanharib Malki",10,10,"Nee","Aanvaller","Bankspeler","Aurélien Joachim",7,7,"Nee","Aanvaller","Bankspeler","Sanharib Malki",10,10,"Nee","Aanvaller","Bankspeler","Virgil Misidjan",0,0,"Nee","Aanvaller","Bankspeler","Yanic Wildschut",1,1,"Nee","Aanvaller","Bankspeler","Cedric van der Gun",2,2,"Nee","Aanvaller","Bankspeler","Sanharib Malki",10,10,"Nee","Aanvaller","Bankspeler","Yanic Wildschut",1,1,"Nee","Aanvaller","Bankspeler","Florian Jozefzoon",-1,-1,"Nee","Aanvaller","Bankspeler","Anthony Lurling",1,1,"Nee","Aanvaller","Bankspeler","Yanic Wildschut",1,1,"Nee","Aanvaller","Bankspeler","Edouard Duplan",0,0,"Nee","Aanvaller","Bankspeler","Alex Schalk",1,1]
["Nee","Aanvaller","Bankspeler","Yanic Wildschut",1,1,"Nee","Aanvaller","Bankspeler","Wiljan Pluim",1,1,"Nee","Aanvaller","Bankspeler","Sanharib Malki",10,10,"Nee","Aanvaller","Bankspeler","Donny de Groot",0,0,"Nee","Aanvaller","Bankspeler","Edouard Duplan",0,0,"Nee","Aanvaller","Bankspeler","Alex Schalk",1,1,"Nee","Aanvaller","Bankspeler","Yanic Wildschut",1,1,"Nee","Aanvaller","Bankspeler","Sanharib Malki",10,10,"Nee","Aanvaller","Bankspeler","Denni Avdic",0,0,"Nee","Aanvaller","Bankspeler","Alex Schalk",1,1,"Nee","Aanvaller","Bankspeler","Alex Schalk",1,1,"Nee","Aanvaller","Bankspeler","Tim Matavz",0,0,"Nee","Aanvaller","Bankspeler","Yanic Wildschut",1,1,"Nee","Aanvaller","Bankspeler","Marc Höcher",2,2,"Nee","Aanvaller","Bankspeler","Uche Nwofor",0,0,"Nee","Aanvaller","Bankspeler","Sanharib Malki",10,10,"Nee","Aanvaller","Bankspeler","Sanharib Malki",10,10,"Nee","Aanvaller","Bankspeler","Alex Schalk",1,1,"Nee","Aanvaller","Bankspeler","Marc Höcher",2,2]
["Weekscore","Totaal",28,"Bank:",13,"Bst Sstm","Weekscore","Totaal",36,"Bank:",17,"Bst Sstm","Weekscore","Totaal",18,"Bank:",13,"Bst Sstm","Weekscore","Totaal",30,"Bank:",16,"Bst Sstm","Weekscore","Totaal",39,"Bank:",2,"Bst Sstm","Weekscore","Totaal",40,"Bank:",18,"Bst Sstm","Weekscore","Totaal",39,"Bank:",21,"Bst Sstm","Weekscore","Totaal",34,"Bank:",22,"Bst Sstm","Weekscore","Totaal",39,"Bank:",27,"Bst Sstm","Weekscore","Totaal",54,"Bank:",5,"Bst Sstm","Weekscore","Totaal",44,"Bank:",11,"Bst Sstm","Weekscore","Totaal",27,"Bank:",21,"Bst Sstm","Weekscore","Totaal",22,"Bank:",16,"Bst Sstm","Weekscore","Totaal",37,"Bank:",17,"Bst Sstm","Weekscore","Totaal",57,"Bank:",8,"Bst Sstm","Weekscore","Totaal",39,"Bank:",12,"Bst Sstm","Weekscore","Totaal",20,"Bank:",22,"Bst Sstm","Weekscore","Totaal",38,"Bank:",19,"Bst Sstm","Weekscore","Totaal",18,"Bank:",20,"Bst Sstm"]
["Rendement",0.5490196078431373,51,"Verspeelde pnt",23,"4-3-3","Rendement",0.61016949152542377,59,"Verspeelde pnt",23,"4-3-3","Rendement",0.36,50,"Verspeelde pnt",32,"4-3-3","Rendement",0.61224489795918369,49,"Verspeelde pnt",19,"4-3-3","Rendement",0.75,52,"Verspeelde pnt",13,"3-5-2","Rendement",0.72727272727272729,55,"Verspeelde pnt",15,"4-3-3","Rendement",0.61904761904761907,63,"Verspeelde pnt",24,"4-3-3","Rendement",0.54838709677419351,62,"Verspeelde pnt",28,"4-3-3","Rendement",0.54929577464788737,71,"Verspeelde pnt",32,"4-3-3","Rendement",0.9152542372881356,59,"Verspeelde pnt",5,"4-4-2","Rendement",0.75862068965517238,58,"Verspeelde pnt",14,"4-3-3","Rendement",0.5625,48,"Verspeelde pnt",21,"4-3-3","Rendement",0.51162790697674421,43,"Verspeelde pnt",21,"4-3-3","Rendement",0.69811320754716977,53,"Verspeelde pnt",16,"3-5-2","Rendement",0.85074626865671643,67,"Verspeelde pnt",10,"4-3-3","Rendement",0.73584905660377353,53,"Verspeelde pnt",14,"4-3-3","Rendement",0.4,50,"Verspeelde pnt",30,"4-3-3","Rendement",0.6333333333333333,60,"Verspeelde pnt",22,"4-3-3","Rendement",0.42857142857142855,42,"Verspeelde pnt",24,"4-3-3"]
[]
["Pos","Teamnaam","Score","Bank","Rendement","MaxScore","Verspeeld","Bst Syst","Rank",null,"Pos","Naam","Score","Bank","Rendement","Max score","Verspeeld","Beste Syst"]
[1,{"$f":"OFFSET($A$3:$DJ$24,0,1,1,1)","v":"De Woudlopers"},{"$f":"OFFSET($A$3:$DJ$24,0,2,1,1)","v":28},{"$f":"OFFSET($A$3:$DJ$24,0,3,1,1)","v":13},{"$f":"OFFSET($A$3:$DJ$24,21,1,1,1)","v":0.5490196078431373},{"$f":"OFFSET($A$3:$DJ$24,21,2,1,1)","v":51},{"$f":"OFFSET($A$3:$DJ$24,21,4,1,1)","v":23},{"$f":"OFFSET($A$3:$DJ$24,21,5,1,1)","v":"4-3-3"},{"$f":"IF(OR(ISNA(RANK(C27,$C$27:$C$50,0)),C27=\"\"),\"\",RANK(C27,$C$27:$C$50,0)+COUNTIF($C$27:C27,C27)-1)","v":14},null,1,{"$f":"IF(B27<>\"\",OFFSET(B$27,MATCH(SMALL(I$27:I$50,ROW()-ROW(I$27)+1),I$27:I$50,0)-1,0),\"\")","v":"Amazing Crippled"},{"$f":"IF(B27<>\"\",OFFSET(C$27,MATCH(SMALL(I$27:I$50,ROW()-ROW(I$27)+1),I$27:I$50,0)-1,0),\"\")","v":57},{"$f":"IF(B27<>\"\",OFFSET(D$27,MATCH(SMALL(I$27:I$50,ROW()-ROW(I$27)+1),I$27:I$50,0)-1,0),\"\")","v":8},{"$f":"IF(B27<>\"\",OFFSET(E$27,MATCH(SMALL(I$27:I$50,ROW()-ROW(I$27)+1),I$27:I$50,0)-1,0),\"\")","v":0.85074626865671643},{"$f":"IF(B27<>\"\",OFFSET(F$27,MATCH(SMALL(I$27:I$50,ROW()-ROW(I$27)+1),I$27:I$50,0)-1,0),\"\")","v":67},{"$f":"IF(B27<>\"\",OFFSET(G$27,MATCH(SMALL(I$27:I$50,ROW()-ROW(I$27)+1),I$27:I$50,0)-1,0),\"\")","v":10},{"$f":"IF(B27<>\"\",OFFSET(H$27,MATCH(SMALL(I$27:I$50,ROW()-ROW(I$27)+1),I$27:I$50,0)-1,0),\"\")","v":"4-3-3"}]
[2,{"$f":"OFFSET($A$3:$DJ$24,0,1+((A28-1)*6),1,1)","v":"Jong Belegen"},{"$f":"OFFSET($A$3:$DJ$24,0,2+((A28-1)*6),1,1)","v":36},{"$f":"OFFSET($A$3:$DJ$24,0,3+((A28-1)*6),1,1)","v":17},{"$f":"OFFSET($A$3:$DJ$24,21,1+((A28-1)*6),1,1)","v":0.61016949152542377},{"$f":"OFFSET($A$3:$DJ$24,21,2+((A28-1)*6),1,1)","v":59},{"$f":"OFFSET($A$3:$DJ$24,21,4+((A28-1)*6),1,1)","v":23},{"$f":"OFFSET($A$3:$DJ$24,21,5+((A28-1)*6),1,1)","v":"4-3-3"},{"$f":"IF(OR(ISNA(RANK(C28,$C$27:$C$50,0)),C28=\"\"),\"\",RANK(C28,$C$27:$C$50,0)+COUNTIF($C$27:C28,C28)-1)","v":11},null,2,{"$f":"IF(B28<>\"\",OFFSET(B$27,MATCH(SMALL(I$27:I$50,ROW()-ROW(I$27)+1),I$27:I$50,0)-1,0),\"\")","v":"MASTER PLAYER"},{"$f":"IF(B28<>\"\",OFFSET(C$27,MATCH(SMALL(I$27:I$50,ROW()-ROW(I$27)+1),I$27:I$50,0)-1,0),\"\")","v":54},{"$f":"IF(B28<>\"\",OFFSET(D$27,MATCH(SMALL(I$27:I$50,ROW()-ROW(I$27)+1),I$27:I$50,0)-1,0),\"\")","v":5},{"$f":"IF(B28<>\"\",OFFSET(E$27,MATCH(SMALL(I$27:I$50,ROW()-ROW(I$27)+1),I$27:I$50,0)-1,0),\"\")","v":0.9152542372881356},{"$f":"IF(B28<>\"\",OFFSET(F$27,MATCH(SMALL(I$27:I$50,ROW()-ROW(I$27)+1),I$27:I$50,0)-1,0),\"\")","v":59},{"$f":"IF(B28<>\"\",OFFSET(G$27,MATCH(SMALL(I$27:I$50,ROW()-ROW(I$27)+1),I$27:I$50,0)-1,0),\"\")","v":5},{"$f":"IF(B28<>\"\",OFFSET(H$27,MATCH(SMALL(I$27:I$50,ROW()-ROW(I$27)+1),I$27:I$50,0)-1,0),\"\")","v":"4-4-2"}]
[3,"Ultimate Knooierd",18,13,0.36,50,32,"4-3-3",{"$f":"IF(OR(ISNA(RANK(C29,$C$27:$C$50,0)),C29=\"\"),\"\",RANK(C29,$C$27:$C$50,0)+COUNTIF($C$27:C29,C29)-1)","v":18},null,3,"FC Bramovich",44,11,0.75862068965517238,58,14,"4-3-3"]
[4,"Master Krosse",30,16,0.61224489795918369,49,19,"4-3-3",{"$f":"IF(OR(ISNA(RANK(C30,$C$27:$C$50,0)),C30=\"\"),\"\",RANK(C30,$C$27:$C$50,0)+COUNTIF($C$27:C30,C30)-1)","v":13},null,4,"Slyfox",40,18,0.72727272727272729,55,15,"4-3-3"]
[5,"Rwobbie",39,2,0.75,52,13,"3-5-2",{"$f":"IF(OR(ISNA(RANK(C31,$C$27:$C$50,0)),C31=\"\"),\"\",RANK(C31,$C$27:$C$50,0)+COUNTIF($C$27:C31,C31)-1)","v":5},null,5,"Rwobbie",39,2,0.75,52,13,"3-5-2"]
[6,"Slyfox",40,18,0.72727272727272729,55,15,"4-3-3",{"$f":"IF(OR(ISNA(RANK(C32,$C$27:$C$50,0)),C32=\"\"),\"\",RANK(C32,$C$27:$C$50,0)+COUNTIF($C$27:C32,C32)-1)","v":4},null,6,"Kesman",39,21,0.61904761904761907,63,24,"4-3-3"]
[7,"Kesman",39,21,0.61904761904761907,63,24,"4-3-3",{"$f":"IF(OR(ISNA(RANK(C33,$C$27:$C$50,0)),C33=\"\"),\"\",RANK(C33,$C$27:$C$50,0)+COUNTIF($C$27:C33,C33)-1)","v":6},null,7,"Buttons",39,27,0.54929577464788737,71,32,"4-3-3"]
[8,"Rising Star",34,22,0.54838709677419351,62,28,"4-3-3",{"$f":"IF(OR(ISNA(RANK(C34,$C$27:$C$50,0)),C34=\"\"),\"\",RANK(C34,$C$27:$C$50,0)+COUNTIF($C$27:C34,C34)-1)","v":12},null,8,"P.R.Utsers",39,12,0.73584905660377353,53,14,"4-3-3"]
[9,"Buttons",39,27,0.54929577464788737,71,32,"4-3-3",{"$f":"IF(OR(ISNA(RANK(C35,$C$27:$C$50,0)),C35=\"\"),\"\",RANK(C35,$C$27:$C$50,0)+COUNTIF($C$27:C35,C35)-1)","v":7},null,9,"FCLangsDeLijn",38,19,0.6333333333333333,60,22,"4-3-3"]
[10,"MASTER PLAYER",54,5,0.9152542372881356,59,5,"4-4-2",{"$f":"IF(OR(ISNA(RANK(C36,$C$27:$C$50,0)),C36=\"\"),\"\",RANK(C36,$C$27:$C$50,0)+COUNTIF($C$27:C36,C36)-1)","v":2},null,10,"Voetbal Toestanden",37,17,0.69811320754716977,53,16,"3-5-2"]
[11,"FC Bramovich",44,11,0.75862068965517238,58,14,"4-3-3",{"$f":"IF(OR(ISNA(RANK(C37,$C$27:$C$50,0)),C37=\"\"),\"\",RANK(C37,$C$27:$C$50,0)+COUNTIF($C$27:C37,C37)-1)","v":3},null,11,"Jong Belegen",36,17,0.61016949152542377,59,23,"4-3-3"]
[12,"Kamp Nijbob",27,21,0.5625,48,21,"4-3-3",{"$f":"IF(OR(ISNA(RANK(C38,$C$27:$C$50,0)),C38=\"\"),\"\",RANK(C38,$C$27:$C$50,0)+COUNTIF($C$27:C38,C38)-1)","v":15},null,12,"Rising Star",34,22,0.54838709677419351,62,28,"4-3-3"]
[13,"Denstar United",22,16,0.51162790697674421,43,21,"4-3-3",{"$f":"IF(OR(ISNA(RANK(C39,$C$27:$C$50,0)),C39=\"\"),\"\",RANK(C39,$C$27:$C$50,0)+COUNTIF($C$27:C39,C39)-1)","v":16},null,13,"Master Krosse",30,16,0.61224489795918369,49,19,"4-3-3"]
[14,"Voetbal Toestanden",37,17,0.69811320754716977,53,16,"3-5-2",{"$f":"IF(OR(ISNA(RANK(C40,$C$27:$C$50,0)),C40=\"\"),\"\",RANK(C40,$C$27:$C$50,0)+COUNTIF($C$27:C40,C40)-1)","v":10},null,14,"De Woudlopers",28,13,0.5490196078431373,51,23,"4-3-3"]
[15,"Amazing Crippled",57,8,0.85074626865671643,67,10,"4-3-3",{"$f":"IF(OR(ISNA(RANK(C41,$C$27:$C$50,0)),C41=\"\"),\"\",RANK(C41,$C$27:$C$50,0)+COUNTIF($C$27:C41,C41)-1)","v":1},null,15,"Kamp Nijbob",27,21,0.5625,48,21,"4-3-3"]
[16,"P.R.Utsers",39,12,0.73584905660377353,53,14,"4-3-3",{"$f":"IF(OR(ISNA(RANK(C42,$C$27:$C$50,0)),C42=\"\"),\"\",RANK(C42,$C$27:$C$50,0)+COUNTIF($C$27:C42,C42)-1)","v":8},null,16,"Denstar United",22,16,0.51162790697674421,43,21,"4-3-3"]
[17,"Maffioso's",20,22,0.4,50,30,"4-3-3",{"$f":"IF(OR(ISNA(RANK(C43,$C$27:$C$50,0)),C43=\"\"),\"\",RANK(C43,$C$27:$C$50,0)+COUNTIF($C$27:C43,C43)-1)","v":17},null,17,"Maffioso's",20,22,0.4,50,30,"4-3-3"]
[18,"FCLangsDeLijn",38,19,0.6333333333333333,60,22,"4-3-3",{"$f":"IF(OR(ISNA(RANK(C44,$C$27:$C$50,0)),C44=\"\"),\"\",RANK(C44,$C$27:$C$50,0)+COUNTIF($C$27:C44,C44)-1)","v":9},null,18,"Ultimate Knooierd",18,13,0.36,50,32,"4-3-3"]
[19,"Don_Diego",18,20,0.42857142857142855,42,24,"4-3-3",{"$f":"IF(OR(ISNA(RANK(C45,$C$27:$C$50,0)),C45=\"\"),\"\",RANK(C45,$C$27:$C$50,0)+COUNTIF($C$27:C45,C45)-1)","v":19},null,19,"Don_Diego",18,20,0.42857142857142855,42,24,"4-3-3"]
[20,0,0,0,0,0,0,0,{"$f":"IF(OR(ISNA(RANK(C46,$C$27:$C$50,0)),C46=\"\"),\"\",RANK(C46,$C$27:$C$50,0)+COUNTIF($C$27:C46,C46)-1)","v":20},null,20,0,0,0,0,0,0,0]
[]
[]
[]
[]
[]
["Speelronde 7"]
["Pos_tot","Teamnaam","Score","Bank","Rendement","MaxScore","Verspeeld","Bst Syst","WK_Rank","Cum_Score","Cum_Bank","Cum_Max"]
[5,"Amazing Crippled",57,8,0.85074626865671643,67,10,"4-3-3",1,176,67,262]
[6,"MASTER PLAYER",54,5,0.9152542372881356,59,5,"4-4-2",2,175,26,207]
[3,"FC Bramovich",44,11,0.75862068965517238,58,14,"4-3-3",3,181,48,246]
[1,"Slyfox",40,18,0.72727272727272729,55,15,"4-3-3",4,203,48,247]
[13,"Rwobbie",39,2,0.75,52,13,"3-5-2",5,151,40,208]
[6,"Kesman",39,21,0.61904761904761907,63,24,"4-3-3",6,175,70,256]
[11,"Buttons",39,27,0.54929577464788737,71,32,"4-3-3",7,153,50,234]
[15,"P.R.Utsers",39,12,0.73584905660377353,53,14,"4-3-3",8,145,27,195]
[8,"FCLangsDeLijn",38,19,0.6333333333333333,60,22,"4-3-3",9,167,47,217]
[14,"Voetbal Toestanden",37,17,0.69811320754716977,53,16,"3-5-2",10,150,51,208]
[2,"Jong Belegen",36,17,0.61016949152542377,59,23,"4-3-3",11,200,40,254]
[3,"Rising Star",34,22,0.54838709677419351,62,28,"4-3-3",12,181,39,237]
[12,"Master Krosse",30,16,0.61224489795918369,49,19,"4-3-3",13,152,42,221]
[9,"De Woudlopers",28,13,0.5490196078431373,51,23,"4-3-3",14,160,64,249]
[10,"Kamp Nijbob",27,21,0.5625,48,21,"4-3-3",15,156,48,207]
[16,"Denstar United",22,16,0.51162790697674421,43,21,"4-3-3",16,134,28,183]
[18,"Maffioso's",20,22,0.4,50,30,"4-3-3",17,122,70,220]
[17,"Ultimate Knooierd",18,13,0.36,50,32,"4-3-3",18,131,55,225]
[19,"Don_Diego",18,20,0.42857142857142855,42,24,"4-3-3",19,96,59,174]

{"sheet":"HIST-TM-Players","index":3,"n_rows":92,"n_cols":114,"rows_kept":92,"cut":false,"hidden":false,"merged":[]}
["Speelronde 5"]
["Team:","De Woudlopers",58,18,null,null,"Team:","Jong Belegen",61,10,null,null,"Team:","Ultimate Knooierd",58,23,null,null,"Team:","Master Krosse",57,10,null,null,"Team:","Rwobbie",56,6,null,null,"Team:","Slyfox",56,2,null,null,"Team:","Kesman",55,9,null,null,"Team:","Rising Star",54,8,null,null,"Team:","Buttons",51,5,null,null,"Team:","MASTER PLAYER",51,5,null,null,"Team:","FC Bramovich",50,9,null,null,"Team:","Kamp Nijbob",50,8,null,null,"Team:","Denstar United",48,3,null,null,"Team:","Voetbal Toestanden",43,17,null,null,"Team:","Amazing Crippled",41,27,null,null,"Team:","P.R.Utsers",38,2,null,null,"Team:","Maffioso's",31,23,null,null,"Team:","FCLangsDeLijn",49,12,null,null,"Team:","Don_Diego",40,13]
["Captain?","Positie","Basis/bank","Naam","Punten","Correctie","Captain?","Positie","Basis/bank","Naam","Punten","Correctie","Captain?","Positie","Basis/bank","Naam","Punten","Correctie","Captain?","Positie","Basis/bank","Naam","Punten","Correctie","Captain?","Positie","Basis/bank","Naam","Punten","Correctie","Captain?","Positie","Basis/bank","Naam","Punten","Correctie","Captain?","Positie","Basis/bank","Naam","Punten","Correctie","Captain?","Positie","Basis/bank","Naam","Punten","Correctie","Captain?","Positie","Basis/bank","Naam","Punten","Correctie","Captain?","Positie","Basis/bank","Naam","Punten","Correctie","Captain?","Positie","Basis/bank","Naam","Punten","Correctie","Captain?","Positie","Basis/bank","Naam","Punten","Correctie","Captain?","Positie","Basis/bank","Naam","Punten","Correctie","Captain?","Positie","Basis/bank","Naam","Punten","Correctie","Captain?","Positie","Basis/bank","Naam","Punten","Correctie","Captain?","Positie","Basis/bank","Naam","Punten","Correctie","Captain?","Positie","Basis/bank","Naam","Punten","Correctie","Captain?","Positie","Basis/bank","Naam","Punten","Correctie","Captain?","Positie","Basis/bank","Naam","Punten","Correctie"]
["Nee","Aanvaller","Basisspeler","Dries Mertens",1,1,"Nee","Aanvaller","Basisspeler","Jozy Altidore",14,14,"Ja","Aanvaller","Basisspeler","Dusan Tadic",10,5,"Nee","Aanvaller","Basisspeler","Sanharib Malki",1,1,"Nee","Aanvaller","Basisspeler","Alex Schalk",2,2,"Nee","Aanvaller","Basisspeler","Alfred Finnbogason",2,2,"Nee","Aanvaller","Basisspeler","Tim Matavz",1,1,"Nee","Aanvaller","Basisspeler","Dries Mertens",1,1,"Nee","Aanvaller","Basisspeler","Tim Matavz",1,1,"Nee","Aanvaller","Basisspeler","Sanharib Malki",1,1,"Nee","Aanvaller","Basisspeler","Dries Mertens",1,1,"Nee","Aanvaller","Basisspeler","Sanharib Malki",1,1,"Nee","Aanvaller","Basisspeler","Dries Mertens",1,1,"Nee","Aanvaller","Basisspeler","Sanharib Malki",1,1,"Nee","Aanvaller","Basisspeler","Wilfried Bony",5,5,"Nee","Aanvaller","Basisspeler","Sanharib Malki",1,1,"Nee","Aanvaller","Basisspeler","Dries Mertens",1,1,"Nee","Aanvaller","Basisspeler","Alex Schalk",2,2,"Nee","Aanvaller","Basisspeler","Tim Matavz",1,1]
["Nee","Aanvaller","Basisspeler","Jozy Altidore",14,14,"Nee","Aanvaller","Basisspeler","Dries Mertens",1,1,"Nee","Aanvaller","Basisspeler","Jozy Altidore",14,14,"Nee","Aanvaller","Basisspeler","Dries Mertens",1,1,"Nee","Aanvaller","Basisspeler","Tim Matavz",1,1,"Nee","Aanvaller","Basisspeler","Dries Mertens",1,1,"Nee","Aanvaller","Basisspeler","Alfred Finnbogason",2,2,"Nee","Aanvaller","Basisspeler","Alfred Finnbogason",2,2,"Nee","Aanvaller","Basisspeler","Jonathan Reis",4,4,"Nee","Aanvaller","Basisspeler","Alfred Finnbogason",2,2,"Nee","Aanvaller","Basisspeler","Wilfried Bony",5,5,"Nee","Aanvaller","Basisspeler","Tim Matavz",1,1,"Nee","Aanvaller","Basisspeler","Dusan Tadic",5,5,"Nee","Aanvaller","Basisspeler","Wilfried Bony",5,5,"Nee","Aanvaller","Basisspeler","Dries Mertens",1,1,"Nee","Aanvaller","Basisspeler","Jonathan Reis",4,4,"Nee","Aanvaller","Basisspeler","Alfred Finnbogason",2,2,"Nee","Aanvaller","Basisspeler","Alfred Finnbogason",2,2,"Nee","Aanvaller","Basisspeler","Luc Castaignos",7,7]
["Ja","Middevelder","Basisspeler","Siem de Jong",8,4,"Nee","Aanvaller","Basisspeler","Género Zeefuik",1,1,"Nee","Aanvaller","Basisspeler","Yanic Wildschut",2,2,"Ja","Aanvaller","Basisspeler","Dusan Tadic",10,5,"Nee","Middevelder","Basisspeler","Siem de Jong",4,4,"Nee","Middevelder","Basisspeler","Michael de Leeuw",1,1,"Nee","Middevelder","Basisspeler","Rodney Sneijder",1,1,"Nee","Aanvaller","Basisspeler","Yanic Wildschut",2,2,"Nee","Aanvaller","Basisspeler","Yanic Wildschut",2,2,"Nee","Middevelder","Basisspeler","Siem de Jong",4,4,"Nee","Aanvaller","Basisspeler","Sanharib Malki",1,1,"Nee","Aanvaller","Basisspeler","Jonathan Reis",4,4,"Nee","Aanvaller","Basisspeler","Everton",8,8,"Nee","Middevelder","Basisspeler","Christian Eriksen",6,6,"Nee","Aanvaller","Basisspeler","Sanharib Malki",1,1,"Nee","Aanvaller","Basisspeler","Dries Mertens",1,1,"Nee","Aanvaller","Basisspeler","Mitchell Schet",1,1,"Nee","Middevelder","Basisspeler","Willie Overtoom",8,8,"Nee","Aanvaller","Basisspeler","Rydell Poepon",7,7]
["Nee","Middevelder","Basisspeler","Rodney Sneijder",1,1,"Nee","Middevelder","Basisspeler","Siem de Jong",4,4,"Nee","Middevelder","Basisspeler","Filip Djuricic",1,1,"Nee","Middevelder","Basisspeler","Theo Janssen",2,2,"Nee","Middevelder","Basisspeler","Evander Sno",2,2,"Nee","Middevelder","Basisspeler","Jens Toornstra",6,6,"Nee","Middevelder","Basisspeler","Siem de Jong",4,4,"Nee","Middevelder","Basisspeler","Willie Overtoom",8,8,"Nee","Middevelder","Basisspeler","Filip Djuricic",1,1,"Ja","Middevelder","Basisspeler","Jordy Clasie",8,4,"Nee","Middevelder","Basisspeler","Evander Sno",2,2,"Nee","Middevelder","Basisspeler","Willie Overtoom",8,8,"Ja","Middevelder","Basisspeler","Siem de Jong",8,4,"Nee","Middevelder","Basisspeler","Filip Djuricic",1,1,"Nee","Middevelder","Basisspeler","Willie Overtoom",8,8,"Nee","Middevelder","Basisspeler","Siem de Jong",4,4,"Nee","Middevelder","Basisspeler","Jordy Clasie",4,4,"Nee","Middevelder","Basisspeler","Theo Janssen",2,2,"Nee","Middevelder","Basisspeler","Siem de Jong",4,4]
["Nee","Middevelder","Basisspeler","Tjaronn Chery",10,10,"Nee","Middevelder","Basisspeler","Filip Djuricic",1,1,"Nee","Middevelder","Basisspeler","Willie Overtoom",8,8,"Nee","Middevelder","Basisspeler","Evander Sno",2,2,"Nee","Middevelder","Basisspeler","Jens Toornstra",6,6,"Nee","Middevelder","Basisspeler","Evander Sno",2,2,"Nee","Middevelder","Basisspeler","Tjaronn Chery",10,10,"Nee","Middevelder","Basisspeler","Evander Sno",2,2,"Nee","Middevelder","Basisspeler","Willie Overtoom",8,8,"Nee","Middevelder","Basisspeler","Willie Overtoom",8,8,"Nee","Middevelder","Basisspeler","Siem de Jong",4,4,"Ja","Middevelder","Basisspeler","Christian Eriksen",12,6,"Nee","Middevelder","Basisspeler","Nemanja Gudelj",1,1,"Nee","Middevelder","Basisspeler","Willie Overtoom",8,8,"Nee","Middevelder","Basisspeler","Jens Toornstra",6,6,"Nee","Middevelder","Basisspeler","Filip Djuricic",1,1,"Nee","Middevelder","Basisspeler","Leroy Fer",0,0,"Nee","Middevelder","Basisspeler","Evander Sno",2,2,"Nee","Middevelder","Basisspeler","Leandro Bacuna",1,1]
["Nee","Middevelder","Basisspeler","Willie Overtoom",8,8,"Nee","Middevelder","Basisspeler","Willie Overtoom",8,8,"Nee","Middevelder","Basisspeler","Leandro Bacuna",1,1,"Nee","Middevelder","Basisspeler","Willie Overtoom",8,8,"Nee","Middevelder","Basisspeler","Filip Djuricic",1,1,"Nee","Middevelder","Basisspeler","Willie Overtoom",8,8,"Nee","Middevelder","Basisspeler","Willie Overtoom",8,8,"Nee","Middevelder","Basisspeler","Tjaronn Chery",10,10,"Ja","Middevelder","Basisspeler","Siem de Jong",8,4,"Nee","Middevelder","Basisspeler","Ola Toivonen",1,1,"Nee","Middevelder","Basisspeler","Willie Overtoom",8,8,"Nee","Middevelder","Basisspeler","Leandro Bacuna",1,1,"Nee","Middevelder","Basisspeler","Rodney Sneijder",1,1,"Nee","Middevelder","Basisspeler","Jordy Clasie",4,4,"Nee","Middevelder","Basisspeler","Leandro Bacuna",1,1,"Nee","Middevelder","Basisspeler","Willie Overtoom",8,8,"Ja","Middevelder","Basisspeler","Siem de Jong",8,4,"Nee","Middevelder","Basisspeler","Tim Sparv",1,1,"Nee","Middevelder","Basisspeler","Theo Janssen",2,2]
["Nee","Middevelder","Basisspeler","Evander Sno",2,2,"Nee","Middevelder","Basisspeler","Nemanja Gudelj",1,1,"Nee","Middevelder","Basisspeler","Evander Sno",2,2,"Nee","Verdediger","Basisspeler","Jeffrey Gouweleeuw",4,4,"Nee","Middevelder","Basisspeler","Willie Overtoom",8,8,"Nee","Verdediger","Basisspeler","Nick Viergever",7,7,"Nee","Middevelder","Basisspeler","Evander Sno",2,2,"Nee","Verdediger","Basisspeler","Virgil van Dijk",-1,-1,"Nee","Middevelder","Basisspeler","Danny Holla",2,2,"Nee","Middevelder","Basisspeler","Evander Sno",2,2,"Nee","Middevelder","Basisspeler","Filip Djuricic",1,1,"Nee","Middevelder","Basisspeler","Evander Sno",2,2,"Nee","Middevelder","Basisspeler","Ryan Koolwijk",2,2,"Nee","Middevelder","Basisspeler","Leandro Bacuna",1,1,"Nee","Middevelder","Basisspeler","Nemanja Gudelj",1,1,"Nee","Middevelder","Basisspeler","Nana Asare",0,0,"Nee","Middevelder","Basisspeler","Danny Holla",2,2,"Nee","Verdediger","Basisspeler","Niklas Moisander",5,5,"Nee","Verdediger","Basisspeler","Nick Viergever",7,7]
["Nee","Verdediger","Basisspeler","Jeffrey Gouweleeuw",4,4,"Ja","Verdediger","Basisspeler","Daryl Janmaat",14,7,"Nee","Verdediger","Basisspeler","Niklas Moisander",5,5,"Nee","Verdediger","Basisspeler","Jan Wuytens",7,7,"Nee","Verdediger","Basisspeler","Nick Viergever",7,7,"Nee","Verdediger","Basisspeler","Niklas Moisander",5,5,"Nee","Verdediger","Basisspeler","Guram Kashia",7,7,"Nee","Verdediger","Basisspeler","Douglas",3,3,"Nee","Verdediger","Basisspeler","Roberto Rosales",4,4,"Nee","Verdediger","Basisspeler","Douglas",3,3,"Ja","Verdediger","Basisspeler","Peter Wisgerhof",6,3,"Nee","Verdediger","Basisspeler","Daryl Janmaat",7,7,"Nee","Verdediger","Basisspeler","Gianni Zuiverloon",0,0,"Nee","Verdediger","Basisspeler","Eric Botteghin",0,0,"Nee","Verdediger","Basisspeler","Gianni Zuiverloon",0,0,"Nee","Verdediger","Basisspeler","Nick Viergever",7,7,"Nee","Verdediger","Basisspeler","Michel Breuer",6,6,"Nee","Verdediger","Basisspeler","Marcelo",1,1,"Nee","Verdediger","Basisspeler","Jan Wuytens",7,7]
["Nee","Verdediger","Basisspeler","Daryl Janmaat",7,7,"Nee","Verdediger","Basisspeler","Douglas",3,3,"Nee","Verdediger","Basisspeler","Guram Kashia",7,7,"Nee","Verdediger","Basisspeler","Daryl Janmaat",7,7,"Nee","Verdediger","Basisspeler","Douglas",3,3,"Ja","Verdediger","Basisspeler","Daryl Janmaat",14,7,"Nee","Verdediger","Basisspeler","Bruno Martins Indi",7,7,"Ja","Verdediger","Basisspeler","Daryl Janmaat",14,7,"Nee","Verdediger","Basisspeler","Michel Breuer",6,6,"Nee","Verdediger","Basisspeler","Guram Kashia",7,7,"Nee","Verdediger","Basisspeler","Daryl Janmaat",7,7,"Nee","Verdediger","Basisspeler","Nick Viergever",7,7,"Nee","Verdediger","Basisspeler","Bruno Martins Indi",7,7,"Nee","Verdediger","Basisspeler","Peter Wisgerhof",3,3,"Nee","Verdediger","Basisspeler","Niklas Moisander",5,5,"Nee","Verdediger","Basisspeler","Bruno Martins Indi",7,7,"Nee","Verdediger","Basisspeler","Nick Viergever",7,7,"Ja","Verdediger","Basisspeler","Daryl Janmaat",14,7,"Nee","Verdediger","Basisspeler","Jeffrey Gouweleeuw",4,4]
["Nee","Verdediger","Basisspeler","Johan Kappelhof",0,0,"Nee","Verdediger","Basisspeler","Michel Breuer",6,6,"Nee","Verdediger","Basisspeler","Daryl Janmaat",7,7,"Nee","Verdediger","Basisspeler","Toby Alderweireld",7,7,"Ja","Verdediger","Basisspeler","Daryl Janmaat",14,7,"Nee","Verdediger","Basisspeler","Guram Kashia",7,7,"Nee","Verdediger","Basisspeler","Nick Viergever",7,7,"Nee","Verdediger","Basisspeler","Niklas Moisander",5,5,"Nee","Verdediger","Basisspeler","Daryl Janmaat",7,7,"Nee","Verdediger","Basisspeler","Jan Wuytens",7,7,"Nee","Verdediger","Basisspeler","Jan Wuytens",7,7,"Nee","Verdediger","Basisspeler","Jeffrey Gouweleeuw",4,4,"Nee","Verdediger","Basisspeler","Nick Viergever",7,7,"Nee","Verdediger","Basisspeler","Michel Breuer",6,6,"Nee","Verdediger","Basisspeler","Daryl Janmaat",7,7,"Nee","Verdediger","Basisspeler","Marcel Seip",-1,-1,"Nee","Verdediger","Basisspeler","Kees Luijckx",0,0,"Nee","Verdediger","Basisspeler","Roberto Rosales",4,4,"Nee","Keeper","Basisspeler","Erwin Mulder",0,0]
["Nee","Keeper","Basisspeler","Nikolay Mihaylov",3,3,"Nee","Keeper","Basisspeler","Piet Velthuizen",8,8,"Nee","Keeper","Basisspeler","Przemyslaw Tyton",1,1,"Nee","Keeper","Basisspeler","Esteban",8,8,"Nee","Keeper","Basisspeler","Piet Velthuizen",8,8,"Nee","Keeper","Basisspeler","Nikolay Mihaylov",3,3,"Ja","Keeper","Basisspeler","Nikolay Mihaylov",6,3,"Nee","Keeper","Basisspeler","Esteban",8,8,"Nee","Keeper","Basisspeler","Esteban",8,8,"Nee","Keeper","Basisspeler","Esteban",8,8,"Nee","Keeper","Basisspeler","Esteban",8,8,"Nee","Keeper","Basisspeler","Nikolay Mihaylov",3,3,"Nee","Keeper","Basisspeler","Piet Velthuizen",8,8,"Nee","Keeper","Basisspeler","Esteban",8,8,"Ja","Keeper","Basisspeler","Nikolay Mihaylov",6,3,"Ja","Keeper","Basisspeler","Nikolay Mihaylov",6,3,"Nee","Keeper","Basisspeler","Jeroen Zoet",0,0,"Nee","Keeper","Basisspeler","Esteban",8,8,"Nee","Keeper","Bankspeler","Jeroen Zoet",0,0]
["Nee","Keeper","Bankspeler","Jelle ten Rouwelaar",0,0,"Nee","Keeper","Bankspeler","David Meul",-4,-4,"Nee","Keeper","Bankspeler","Jelle ten Rouwelaar",0,0,"Nee","Keeper","Bankspeler","Jelle ten Rouwelaar",0,0,"Nee","Keeper","Bankspeler","Luciano Da Silva",-1,-1,"Nee","Keeper","Bankspeler","David Meul",-4,-4,"Nee","Keeper","Bankspeler","David Meul",-4,-4,"Nee","Keeper","Bankspeler","Jelle ten Rouwelaar",0,0,"Nee","Keeper","Bankspeler","David Meul",-4,-4,"Nee","Keeper","Bankspeler","Gino Coutinho",2,2,"Nee","Keeper","Bankspeler","David Meul",-4,-4,"Nee","Keeper","Bankspeler","David Meul",-4,-4,"Nee","Keeper","Bankspeler","Gino Coutinho",2,2,"Nee","Keeper","Bankspeler","Gino Coutinho",2,2,"Nee","Keeper","Bankspeler","Gábor Babos",1,1,"Nee","Keeper","Bankspeler","Gino Coutinho",2,2,"Nee","Keeper","Bankspeler","Piet Velthuizen",8,8,"Nee","Verdediger","Bankspeler","Ard van Peppen",0,0,"Nee","Verdediger","Bankspeler","Robbie Wielaert",-2,-2]
["Nee","Verdediger","Bankspeler","Darryl Lachman",0,0,"Nee","Verdediger","Bankspeler","Jan Wuytens",7,7,"Nee","Verdediger","Bankspeler","Jan Wuytens",7,7,"Nee","Verdediger","Bankspeler","Nils Röseler",1,1,"Nee","Verdediger","Bankspeler","Darryl Lachman",0,0,"Nee","Verdediger","Bankspeler","Bart van Hintum",0,0,"Nee","Verdediger","Bankspeler","Jan Wuytens",7,7,"Nee","Verdediger","Bankspeler","Guram Kashia",7,7,"Nee","Verdediger","Bankspeler","Jan Wuytens",7,7,"Nee","Verdediger","Bankspeler","Johan Kappelhof",0,0,"Nee","Verdediger","Bankspeler","Lorenzo Burnet",-1,-1,"Nee","Verdediger","Bankspeler","Marcel Seip",-1,-1,"Nee","Verdediger","Bankspeler","Marcus Nilsson",0,0,"Nee","Verdediger","Bankspeler","Jan Wuytens",7,7,"Nee","Verdediger","Bankspeler","Mitchell Piqué",-1,-1,"Nee","Verdediger","Bankspeler","Ruud van der Rijt",-4,-4,"Nee","Verdediger","Bankspeler","Jan Wuytens",7,7,"Nee","Middevelder","Bankspeler","Danny Holla",2,2,"Nee","Middevelder","Bankspeler","Willie Overtoom",8,8]
["Nee","Verdediger","Bankspeler","Jan Wuytens",7,7,"Nee","Verdediger","Bankspeler","Vito Wormgoor",4,4,"Nee","Verdediger","Bankspeler","Ard van Peppen",0,0,"Nee","Middevelder","Bankspeler","Arne Slot",0,0,"Nee","Verdediger","Bankspeler","Ard van Peppen",0,0,"Nee","Middevelder","Bankspeler","Nana Asare",0,0,"Nee","Verdediger","Bankspeler","Bart van Hintum",0,0,"Nee","Middevelder","Bankspeler","Nana Asare",0,0,"Nee","Verdediger","Bankspeler","Ard van Peppen",0,0,"Nee","Verdediger","Bankspeler","Mark Looms",0,0,"Nee","Verdediger","Bankspeler","Bart van Hintum",0,0,"Nee","Verdediger","Bankspeler","Darryl Lachman",0,0,"Nee","Verdediger","Bankspeler","Bart van Hintum",0,0,"Nee","Verdediger","Bankspeler","Jetro Willems",1,1,"Nee","Verdediger","Bankspeler","Jan Wuytens",7,7,"Nee","Verdediger","Bankspeler","Ard van Peppen",0,0,"Nee","Verdediger","Bankspeler","Bart van Hintum",0,0,"Nee","Aanvaller","Bankspeler","Marc Höcher",4,4,"Nee","Middevelder","Bankspeler","Joost Broerse",-1,-1]
["Nee","Aanvaller","Bankspeler","Yanic Wildschut",2,2,"Nee","Middevelder","Bankspeler","Rodney Sneijder",1,1,"Nee","Middevelder","Bankspeler","Rochdi Achenteh",1,1,"Nee","Middevelder","Bankspeler","Rodney Sneijder",1,1,"Nee","Middevelder","Bankspeler","Nana Asare",0,0,"Nee","Middevelder","Bankspeler","Rodney Sneijder",1,1,"Nee","Middevelder","Bankspeler","Michael de Leeuw",1,1,"Nee","Middevelder","Bankspeler","Rodney Sneijder",1,1,"Nee","Verdediger","Bankspeler","Virgil van Dijk",-1,-1,"Nee","Middevelder","Bankspeler","Joost Broerse",-1,-1,"Nee","Verdediger","Bankspeler","Ard van Peppen",0,0,"Nee","Middevelder","Bankspeler","Jens Toornstra",6,6,"Nee","Middevelder","Bankspeler","Hans Mulder",-1,-1,"Nee","Middevelder","Bankspeler","Rodney Sneijder",1,1,"Nee","Middevelder","Bankspeler","Joost Broerse",-1,-1,"Nee","Middevelder","Bankspeler","Navarone Foor",2,2,"Nee","Middevelder","Bankspeler","Lerin Duarte",4,4,"Nee","Aanvaller","Bankspeler","Sanharib Malki",1,1,"Nee","Middevelder","Bankspeler","Ricky van Haaren",2,2]
["Nee","Aanvaller","Bankspeler","Jonathan Reis",4,4,"Nee","Aanvaller","Bankspeler","Yanic Wildschut",2,2,"Nee","Middevelder","Bankspeler","Tjaronn Chery",10,10,"Nee","Middevelder","Bankspeler","Leandro Bacuna",1,1,"Nee","Aanvaller","Bankspeler","Sanharib Malki",1,1,"Nee","Aanvaller","Bankspeler","Sanharib Malki",1,1,"Nee","Aanvaller","Bankspeler","Yanic Wildschut",2,2,"Nee","Middevelder","Bankspeler","Arne Slot",0,0,"Nee","Middevelder","Bankspeler","Nemanja Gudelj",1,1,"Nee","Aanvaller","Bankspeler","Yanic Wildschut",2,2,"Nee","Middevelder","Bankspeler","Tjaronn Chery",10,10,"Nee","Middevelder","Bankspeler","Rodney Sneijder",1,1,"Nee","Middevelder","Bankspeler","Kees Kwakman",-1,-1,"Nee","Aanvaller","Bankspeler","Fred Benson",0,0,"Nee","Aanvaller","Bankspeler","Jozy Altidore",14,14,"Nee","Aanvaller","Bankspeler","Youness Mokhtar",1,1,"Nee","Middevelder","Bankspeler","Niek Vossebelt",1,1,"Nee","Aanvaller","Bankspeler","Edouard Duplan",4,4,"Nee","Aanvaller","Bankspeler","Alex Schalk",2,2]
["Nee","Aanvaller","Bankspeler","Sanharib Malki",1,1,"Nee","Aanvaller","Bankspeler","Sanharib Malki",1,1,"Nee","Aanvaller","Bankspeler","Marc Höcher",4,4,"Nee","Aanvaller","Bankspeler","Rydell Poepon",7,7,"Nee","Aanvaller","Bankspeler","Yanic Wildschut",2,2,"Nee","Aanvaller","Bankspeler","Alex Schalk",2,2,"Nee","Aanvaller","Bankspeler","Alex Schalk",2,2,"Nee","Aanvaller","Bankspeler","Aurélien Joachim",-1,-1,"Nee","Aanvaller","Bankspeler","Denni Avdic",1,1,"Nee","Aanvaller","Bankspeler","Florian Jozefzoon",1,1,"Nee","Aanvaller","Bankspeler","Yanic Wildschut",2,2,"Nee","Aanvaller","Bankspeler","Cedric van der Gun",4,4,"Nee","Aanvaller","Bankspeler","Sanharib Malki",1,1,"Nee","Aanvaller","Bankspeler","Yanic Wildschut",2,2,"Nee","Aanvaller","Bankspeler","Florian Jozefzoon",1,1,"Nee","Aanvaller","Bankspeler","Anthony Lurling",1,1,"Nee","Aanvaller","Bankspeler","Yanic Wildschut",2,2,"Nee","Aanvaller","Bankspeler","Género Zeefuik",1,1,"Nee","Aanvaller","Bankspeler","Marc Höcher",4,4]
["Nee","Aanvaller","Bankspeler","Marc Höcher",4,4,"Nee","Aanvaller","Bankspeler","Wiljan Pluim",-1,-1,"Nee","Aanvaller","Bankspeler","Sanharib Malki",1,1,"Nee","Aanvaller","Bankspeler","Donny de Groot",0,0,"Nee","Aanvaller","Bankspeler","Marc Höcher",4,4,"Nee","Aanvaller","Bankspeler","Yanic Wildschut",2,2,"Nee","Aanvaller","Bankspeler","Sanharib Malki",1,1,"Nee","Aanvaller","Bankspeler","Sanharib Malki",1,1,"Nee","Aanvaller","Bankspeler","Sanharib Malki",1,1,"Nee","Aanvaller","Bankspeler","Virgil Misidjan",1,1,"Nee","Aanvaller","Bankspeler","Alex Schalk",2,2,"Nee","Aanvaller","Bankspeler","Alex Schalk",2,2,"Nee","Aanvaller","Bankspeler","Yanic Wildschut",2,2,"Nee","Aanvaller","Bankspeler","Marc Höcher",4,4,"Nee","Aanvaller","Bankspeler","Uche Nwofor",6,6,"Nee","Aanvaller","Bankspeler","David Texeira",0,0,"Nee","Aanvaller","Bankspeler","Sanharib Malki",1,1,"Nee","Aanvaller","Bankspeler","Genaro Snijders",0,0,"Nee","Aanvaller","Bankspeler","Genaro Snijders",0,0]
["Weekscore","Totaal",58,"Bank:",18,"Bst Sstm","Weekscore","Totaal",61,"Bank:",10,"Bst Sstm","Weekscore","Totaal",58,"Bank:",23,"Bst Sstm","Weekscore","Totaal",57,"Bank:",10,"Bst Sstm","Weekscore","Totaal",56,"Bank:",6,"Bst Sstm","Weekscore","Totaal",56,"Bank:",2,"Bst Sstm","Weekscore","Totaal",55,"Bank:",9,"Bst Sstm","Weekscore","Totaal",54,"Bank:",8,"Bst Sstm","Weekscore","Totaal",51,"Bank:",5,"Bst Sstm","Weekscore","Totaal",51,"Bank:",5,"Bst Sstm","Weekscore","Totaal",50,"Bank:",9,"Bst Sstm","Weekscore","Totaal",50,"Bank:",8,"Bst Sstm","Weekscore","Totaal",48,"Bank:",3,"Bst Sstm","Weekscore","Totaal",43,"Bank:",17,"Bst Sstm","Weekscore","Totaal",41,"Bank:",27,"Bst Sstm","Weekscore","Totaal",38,"Bank:",2,"Bst Sstm","Weekscore","Totaal",31,"Bank:",23,"Bst Sstm","Weekscore","Totaal",49,"Bank:",12,"Bst Sstm","Weekscore","Totaal",40,"Bank:",13,"Bst Sstm"]
["Rendement",0.71604938271604934,81,"Verspeelde pnt",23,"4-3-3","Rendement",0.80263157894736847,76,"Verspeelde pnt",15,"4-3-3","Rendement",0.69047619047619047,84,"Verspeelde pnt",26,"4-3-3","Rendement",0.86363636363636365,66,"Verspeelde pnt",9,"4-3-3","Rendement",0.91803278688524592,61,"Verspeelde pnt",5,"4-3-3","Rendement",0.94915254237288138,59,"Verspeelde pnt",3,"4-3-3","Rendement",0.79710144927536231,69,"Verspeelde pnt",14,"4-3-3","Rendement",0.83076923076923082,65,"Verspeelde pnt",11,"4-3-3","Rendement",0.83606557377049184,61,"Verspeelde pnt",10,"4-3-3","Rendement",0.9107142857142857,56,"Verspeelde pnt",5,"3-5-2","Rendement",0.73529411764705888,68,"Verspeelde pnt",18,"4-3-3","Rendement",0.81967213114754101,61,"Verspeelde pnt",11,"4-3-3","Rendement",0.90566037735849059,53,"Verspeelde pnt",5,"4-3-3","Rendement",0.69354838709677424,62,"Verspeelde pnt",19,"4-3-3","Rendement",0.53246753246753242,77,"Verspeelde pnt",36,"4-3-3","Rendement",0.82608695652173914,46,"Verspeelde pnt",8,"4-3-3","Rendement",0.5636363636363636,55,"Verspeelde pnt",24,"3-5-2","Rendement",0.875,56,"Verspeelde pnt",7,"4-3-3","Rendement",0.66666666666666663,60,"Verspeelde pnt",20,"4-3-3"]
["Speelronde 6"]
["Team:","De Woudlopers",26,20,null,null,"Team:","Jong Belegen",51,11,null,null,"Team:","Ultimate Knooierd",14,20,null,null,"Team:","Master Krosse",31,9,null,null,"Team:","Rwobbie",16,18,null,null,"Team:","Slyfox",38,15,null,null,"Team:","Kesman",28,27,null,null,"Team:","Rising Star",34,9,null,null,"Team:","Buttons",28,23,null,null,"Team:","MASTER PLAYER",33,11,null,null,"Team:","FC Bramovich",39,12,null,null,"Team:","Kamp Nijbob",26,20,null,null,"Team:","Denstar United",23,8,null,null,"Team:","Voetbal Toestanden",37,13,null,null,"Team:","Amazing Crippled",39,14,null,null,"Team:","P.R.Utsers",33,15,null,null,"Team:","Maffioso's",35,13,null,null,"Team:","FCLangsDeLijn",23,17,null,null,"Team:","Don_Diego",19,18]
["Captain?","Positie","Basis/bank","Naam","Punten","Correctie","Captain?","Positie","Basis/bank","Naam","Punten","Correctie","Captain?","Positie","Basis/bank","Naam","Punten","Correctie","Captain?","Positie","Basis/bank","Naam","Punten","Correctie","Captain?","Positie","Basis/bank","Naam","Punten","Correctie","Captain?","Positie","Basis/bank","Naam","Punten","Correctie","Captain?","Positie","Basis/bank","Naam","Punten","Correctie","Captain?","Positie","Basis/bank","Naam","Punten","Correctie","Captain?","Positie","Basis/bank","Naam","Punten","Correctie","Captain?","Positie","Basis/bank","Naam","Punten","Correctie","Captain?","Positie","Basis/bank","Naam","Punten","Correctie","Captain?","Positie","Basis/bank","Naam","Punten","Correctie","Captain?","Positie","Basis/bank","Naam","Punten","Correctie","Captain?","Positie","Basis/bank","Naam","Punten","Correctie","Captain?","Positie","Basis/bank","Naam","Punten","Correctie","Captain?","Positie","Basis/bank","Naam","Punten","Correctie","Captain?","Positie","Basis/bank","Naam","Punten","Correctie","Captain?","Positie","Basis/bank","Naam","Punten","Correctie","Captain?","Positie","Basis/bank","Naam","Punten","Correctie"]
["Nee","Aanvaller","Basisspeler","Jonathan Reis",2,2,"Nee","Aanvaller","Basisspeler","Jozy Altidore",1,1,"Ja","Aanvaller","Basisspeler","Sanharib Malki",0,0,"Nee","Aanvaller","Bankspeler","Rydell Poepon",2,2,"Nee","Aanvaller","Basisspeler","Marc Höcher",2,2,"Nee","Aanvaller","Basisspeler","Yanic Wildschut",2,2,"Nee","Aanvaller","Basisspeler","Tim Matavz",0,0,"Nee","Aanvaller","Basisspeler","Dries Mertens",5,5,"Nee","Aanvaller","Basisspeler","Tim Matavz",0,0,"Nee","Aanvaller","Basisspeler","Sanharib Malki",0,0,"Nee","Aanvaller","Basisspeler","Dries Mertens",5,5,"Nee","Aanvaller","Basisspeler","Sanharib Malki",0,0,"Nee","Aanvaller","Basisspeler","Dries Mertens",5,5,"Nee","Aanvaller","Basisspeler","Sanharib Malki",0,0,"Nee","Aanvaller","Basisspeler","Wilfried Bony",3,3,"Nee","Aanvaller","Basisspeler","Sanharib Malki",0,0,"Nee","Aanvaller","Basisspeler","Dries Mertens",5,5,"Nee","Aanvaller","Basisspeler","Yanic Wildschut",2,2,"Nee","Aanvaller","Basisspeler","Tim Matavz",0,0]
["Nee","Aanvaller","Basisspeler","Jozy Altidore",1,1,"Nee","Aanvaller","Basisspeler","Dries Mertens",5,5,"Nee","Aanvaller","Basisspeler","Jozy Altidore",1,1,"Nee","Aanvaller","Bankspeler","Donny de Groot",0,0,"Nee","Aanvaller","Basisspeler","Tim Matavz",0,0,"Nee","Aanvaller","Basisspeler","Dries Mertens",5,5,"Nee","Aanvaller","Basisspeler","Alfred Finnbogason",1,1,"Nee","Aanvaller","Basisspeler","Alfred Finnbogason",1,1,"Nee","Aanvaller","Basisspeler","Jonathan Reis",2,2,"Nee","Aanvaller","Basisspeler","Alfred Finnbogason",1,1,"Ja","Aanvaller","Basisspeler","Wilfried Bony",6,3,"Nee","Aanvaller","Basisspeler","Tim Matavz",0,0,"Nee","Aanvaller","Basisspeler","Dusan Tadic",5,5,"Nee","Aanvaller","Basisspeler","Wilfried Bony",3,3,"Nee","Aanvaller","Basisspeler","Dries Mertens",5,5,"Nee","Aanvaller","Basisspeler","Jonathan Reis",2,2,"Nee","Aanvaller","Basisspeler","Alfred Finnbogason",1,1,"Nee","Aanvaller","Basisspeler","Sanharib Malki",0,0,"Nee","Aanvaller","Basisspeler","Luc Castaignos",4,4]
["Nee","Aanvaller","Basisspeler","Sanharib Malki",0,0,"Nee","Aanvaller","Basisspeler","Género Zeefuik",7,7,"Nee","Aanvaller","Basisspeler","Dusan Tadic",5,5,"Ja","Aanvaller","Basisspeler","Dusan Tadic",10,5,"Nee","Aanvaller","Basisspeler","Sanharib Malki",0,0,"Nee","Middevelder","Basisspeler","Michael de Leeuw",8,8,"Nee","Middevelder","Basisspeler","Rodney Sneijder",2,2,"Nee","Middevelder","Basisspeler","Tjaronn Chery",2,2,"Nee","Aanvaller","Basisspeler","Sanharib Malki",0,0,"Nee","Middevelder","Basisspeler","Siem de Jong",2,2,"Nee","Middevelder","Basisspeler","Evander Sno",2,2,"Nee","Aanvaller","Basisspeler","Jonathan Reis",2,2,"Nee","Aanvaller","Basisspeler","Sanharib Malki",0,0,"Nee","Middevelder","Basisspeler","Christian Eriksen",2,2,"Nee","Aanvaller","Basisspeler","Sanharib Malki",0,0,"Nee","Aanvaller","Basisspeler","Dries Mertens",5,5,"Nee","Aanvaller","Basisspeler","Mitchell Schet",4,4,"Nee","Aanvaller","Basisspeler","Edouard Duplan",4,4,"Nee","Aanvaller","Basisspeler","Rydell Poepon",2,2]
["Ja","Middevelder","Basisspeler","Siem de Jong",4,2,"Nee","Middevelder","Basisspeler","Siem de Jong",2,2,"Nee","Middevelder","Basisspeler","Filip Djuricic",1,1,"Nee","Aanvaller","Basisspeler","Dries Mertens",5,5,"Nee","Middevelder","Basisspeler","Siem de Jong",2,2,"Nee","Middevelder","Basisspeler","Willie Overtoom",2,2,"Nee","Middevelder","Basisspeler","Siem de Jong",2,2,"Nee","Middevelder","Basisspeler","Evander Sno",2,2,"Nee","Middevelder","Basisspeler","Filip Djuricic",1,1,"Ja","Middevelder","Basisspeler","Jordy Clasie",2,1,"Nee","Middevelder","Basisspeler","Siem de Jong",2,2,"Nee","Middevelder","Basisspeler","Willie Overtoom",2,2,"Ja","Middevelder","Basisspeler","Siem de Jong",4,2,"Nee","Middevelder","Basisspeler","Filip Djuricic",1,1,"Nee","Middevelder","Basisspeler","Willie Overtoom",2,2,"Nee","Middevelder","Basisspeler","Siem de Jong",2,2,"Nee","Middevelder","Basisspeler","Jordy Clasie",1,1,"Nee","Middevelder","Basisspeler","Willie Overtoom",2,2,"Nee","Middevelder","Basisspeler","Siem de Jong",2,2]
["Nee","Middevelder","Basisspeler","Rodney Sneijder",2,2,"Nee","Middevelder","Basisspeler","Rodney Sneijder",2,2,"Nee","Middevelder","Basisspeler","Willie Overtoom",2,2,"Nee","Aanvaller","Basisspeler","Sanharib Malki",0,0,"Nee","Middevelder","Basisspeler","Evander Sno",2,2,"Nee","Middevelder","Basisspeler","Evander Sno",2,2,"Nee","Middevelder","Basisspeler","Tjaronn Chery",2,2,"Nee","Middevelder","Basisspeler","Rodney Sneijder",2,2,"Nee","Middevelder","Basisspeler","Willie Overtoom",2,2,"Nee","Middevelder","Basisspeler","Willie Overtoom",2,2,"Nee","Middevelder","Basisspeler","Willie Overtoom",2,2,"Nee","Middevelder","Basisspeler","Christian Eriksen",2,2,"Nee","Middevelder","Basisspeler","Kees Kwakman",4,4,"Nee","Middevelder","Basisspeler","Willie Overtoom",2,2,"Nee","Middevelder","Basisspeler","Jens Toornstra",0,0,"Nee","Middevelder","Basisspeler","Filip Djuricic",1,1,"Nee","Middevelder","Basisspeler","Leroy Fer",0,0,"Nee","Middevelder","Basisspeler","Theo Janssen",2,2,"Nee","Middevelder","Basisspeler","Leandro Bacuna",2,2]
["Nee","Middevelder","Basisspeler","Tjaronn Chery",2,2,"Nee","Middevelder","Basisspeler","Willie Overtoom",2,2,"Nee","Middevelder","Basisspeler","Leandro Bacuna",2,2,"Nee","Keeper","Bankspeler","Jelle ten Rouwelaar",4,4,"Nee","Middevelder","Basisspeler","Jens Toornstra",0,0,"Nee","Middevelder","Basisspeler","Rodney Sneijder",2,2,"Nee","Middevelder","Basisspeler","Willie Overtoom",2,2,"Nee","Middevelder","Basisspeler","Nana Asare",4,4,"Nee","Middevelder","Basisspeler","Siem de Jong",2,2,"Nee","Middevelder","Basisspeler","Ola Toivonen",8,8,"Nee","Middevelder","Basisspeler","Tjaronn Chery",2,2,"Nee","Middevelder","Basisspeler","Rodney Sneijder",2,2,"Nee","Middevelder","Basisspeler","Rodney Sneijder",2,2,"Nee","Middevelder","Basisspeler","Jordy Clasie",1,1,"Nee","Middevelder","Basisspeler","Nemanja Gudelj",4,4,"Nee","Middevelder","Basisspeler","Willie Overtoom",2,2,"Ja","Middevelder","Basisspeler","Siem de Jong",4,2,"Nee","Middevelder","Basisspeler","Evander Sno",2,2,"Nee","Middevelder","Basisspeler","Theo Janssen",2,2]
["Nee","Middevelder","Basisspeler","Willie Overtoom",2,2,"Nee","Middevelder","Basisspeler","Nemanja Gudelj",4,4,"Nee","Verdediger","Basisspeler","Niklas Moisander",0,0,"Nee","Keeper","Basisspeler","Esteban",0,0,"Ja","Verdediger","Basisspeler","Nick Viergever",0,0,"Nee","Verdediger","Basisspeler","Nick Viergever",0,0,"Nee","Middevelder","Basisspeler","Evander Sno",2,2,"Ja","Verdediger","Basisspeler","Guram Kashia",4,2,"Nee","Verdediger","Basisspeler","Roberto Rosales",5,5,"Nee","Middevelder","Basisspeler","Evander Sno",2,2,"Nee","Verdediger","Basisspeler","Peter Wisgerhof",7,7,"Nee","Middevelder","Basisspeler","Evander Sno",2,2,"Nee","Middevelder","Basisspeler","Ryan Koolwijk",2,2,"Nee","Middevelder","Basisspeler","Leandro Bacuna",2,2,"Nee","Middevelder","Basisspeler","Leandro Bacuna",2,2,"Nee","Middevelder","Basisspeler","Nana Asare",4,4,"Nee","Middevelder","Basisspeler","Danny Holla",4,4,"Nee","Middevelder","Basisspeler","Tim Sparv",4,4,"Nee","Verdediger","Basisspeler","Nick Viergever",0,0]
["Nee","Verdediger","Basisspeler","Jeffrey Gouweleeuw",-1,-1,"Nee","Verdediger","Basisspeler","Jan Wuytens",7,7,"Nee","Verdediger","Basisspeler","Guram Kashia",2,2,"Nee","Middevelder","Bankspeler","Leandro Bacuna",2,2,"Nee","Verdediger","Basisspeler","Douglas",7,7,"Nee","Verdediger","Basisspeler","Niklas Moisander",0,0,"Nee","Verdediger","Basisspeler","Guram Kashia",2,2,"Nee","Verdediger","Basisspeler","Douglas",7,7,"Nee","Verdediger","Basisspeler","Michel Breuer",5,5,"Nee","Verdediger","Basisspeler","Douglas",7,7,"Nee","Verdediger","Basisspeler","Ard van Peppen",2,2,"Nee","Verdediger","Basisspeler","Daryl Janmaat",-1,-1,"Nee","Verdediger","Basisspeler","Gianni Zuiverloon",0,0,"Nee","Verdediger","Basisspeler","Eric Botteghin",7,7,"Nee","Verdediger","Basisspeler","Gianni Zuiverloon",0,0,"Nee","Verdediger","Basisspeler","Nick Viergever",0,0,"Nee","Verdediger","Basisspeler","Michel Breuer",5,5,"Nee","Verdediger","Basisspeler","Ard van Peppen",2,2,"Nee","Verdediger","Basisspeler","Jan Wuytens",7,7]
["Nee","Verdediger","Basisspeler","Daryl Janmaat",-1,-1,"Ja","Verdediger","Basisspeler","Douglas",14,7,"Nee","Verdediger","Basisspeler","Daryl Janmaat",-1,-1,"Nee","Middevelder","Bankspeler","Arne Slot",0,0,"Nee","Verdediger","Basisspeler","Daryl Janmaat",-1,-1,"Nee","Verdediger","Basisspeler","Daryl Janmaat",-1,-1,"Nee","Verdediger","Basisspeler","Bruno Martins Indi",-1,-1,"Nee","Verdediger","Basisspeler","Niklas Moisander",0,0,"Ja","Verdediger","Basisspeler","Ard van Peppen",4,2,"Nee","Verdediger","Basisspeler","Guram Kashia",2,2,"Nee","Verdediger","Basisspeler","Jan Wuytens",7,7,"Nee","Verdediger","Basisspeler","Nick Viergever",0,0,"Nee","Verdediger","Basisspeler","Bruno Martins Indi",-1,-1,"Ja","Verdediger","Basisspeler","Peter Wisgerhof",14,7,"Nee","Verdediger","Basisspeler","Niklas Moisander",0,0,"Nee","Verdediger","Basisspeler","Bruno Martins Indi",-1,-1,"Nee","Verdediger","Basisspeler","Nick Viergever",0,0,"Ja","Verdediger","Basisspeler","Niklas Moisander",0,0,"Nee","Verdediger","Basisspeler","Jeffrey Gouweleeuw",-1,-1]
["Nee","Verdediger","Basisspeler","Jan Wuytens",7,7,"Nee","Verdediger","Basisspeler","Michel Breuer",5,5,"Nee","Verdediger","Basisspeler","Ard van Peppen",2,2,"Nee","Middevelder","Basisspeler","Theo Janssen",2,2,"Nee","Verdediger","Basisspeler","Ard van Peppen",2,2,"Nee","Verdediger","Basisspeler","Guram Kashia",2,2,"Nee","Verdediger","Basisspeler","Nick Viergever",0,0,"Nee","Verdediger","Basisspeler","Virgil van Dijk",7,7,"Nee","Verdediger","Basisspeler","Jan Wuytens",7,7,"Nee","Verdediger","Basisspeler","Jan Wuytens",7,7,"Nee","Verdediger","Basisspeler","Lorenzo Burnet",4,4,"Nee","Verdediger","Basisspeler","Darryl Lachman",1,1,"Nee","Verdediger","Basisspeler","Nick Viergever",0,0,"Nee","Verdediger","Basisspeler","Michel Breuer",5,5,"Nee","Verdediger","Basisspeler","Jan Wuytens",7,7,"Nee","Verdediger","Basisspeler","Ard van Peppen",2,2,"Nee","Verdediger","Basisspeler","Kees Luijckx",9,9,"Nee","Verdediger","Basisspeler","Roberto Rosales",5,5,"Nee","Verdediger","Basisspeler","Robbie Wielaert",1,1]
["Nee","Keeper","Basisspeler","Nikolay Mihaylov",8,8,"Nee","Keeper","Basisspeler","Piet Velthuizen",2,2,"Nee","Keeper","Basisspeler","Przemyslaw Tyton",0,0,"Nee","Middevelder","Basisspeler","Evander Sno",2,2,"Nee","Keeper","Basisspeler","Piet Velthuizen",2,2,"Ja","Keeper","Basisspeler","Nikolay Mihaylov",16,8,"Ja","Keeper","Basisspeler","Nikolay Mihaylov",16,8,"Nee","Keeper","Basisspeler","Esteban",0,0,"Nee","Keeper","Basisspeler","Esteban",0,0,"Nee","Keeper","Basisspeler","Esteban",0,0,"Nee","Keeper","Basisspeler","Esteban",0,0,"Ja","Keeper","Basisspeler","Nikolay Mihaylov",16,8,"Nee","Keeper","Basisspeler","Piet Velthuizen",2,2,"Nee","Keeper","Basisspeler","Esteban",0,0,"Ja","Keeper","Basisspeler","Nikolay Mihaylov",16,8,"Ja","Keeper","Basisspeler","Nikolay Mihaylov",16,8,"Nee","Keeper","Basisspeler","Jeroen Zoet",2,2,"Nee","Keeper","Basisspeler","Esteban",0,0,"Nee","Keeper","Basisspeler","Erwin Mulder",0,0]
["Nee","Keeper","Bankspeler","Jelle ten Rouwelaar",4,4,"Nee","Keeper","Bankspeler","David Meul",6,6,"Nee","Keeper","Bankspeler","Jelle ten Rouwelaar",4,4,"Nee","Middevelder","Basisspeler","Willie Overtoom",2,2,"Nee","Keeper","Bankspeler","Luciano Da Silva",4,4,"Nee","Keeper","Bankspeler","David Meul",6,6,"Nee","Keeper","Bankspeler","David Meul",6,6,"Nee","Keeper","Bankspeler","Jelle ten Rouwelaar",4,4,"Nee","Keeper","Bankspeler","David Meul",6,6,"Nee","Keeper","Bankspeler","Gino Coutinho",0,0,"Nee","Keeper","Bankspeler","David Meul",6,6,"Nee","Keeper","Bankspeler","David Meul",6,6,"Nee","Keeper","Bankspeler","Gino Coutinho",0,0,"Nee","Keeper","Bankspeler","Gino Coutinho",0,0,"Nee","Keeper","Bankspeler","Gábor Babos",6,6,"Nee","Keeper","Bankspeler","Gino Coutinho",0,0,"Nee","Keeper","Bankspeler","Piet Velthuizen",2,2,"Nee","Keeper","Bankspeler","Diederik Boer",0,0,"Nee","Keeper","Bankspeler","Jeroen Zoet",2,2]
["Nee","Verdediger","Bankspeler","Darryl Lachman",1,1,"Nee","Verdediger","Bankspeler","Daryl Janmaat",-1,-1,"Nee","Verdediger","Bankspeler","Jan Wuytens",7,7,"Nee","Middevelder","Basisspeler","Rodney Sneijder",2,2,"Nee","Verdediger","Bankspeler","Darryl Lachman",1,1,"Nee","Verdediger","Bankspeler","Bart van Hintum",0,0,"Nee","Verdediger","Bankspeler","Jan Wuytens",7,7,"Nee","Verdediger","Bankspeler","Daryl Janmaat",-1,-1,"Nee","Verdediger","Bankspeler","Daryl Janmaat",-1,-1,"Nee","Verdediger","Bankspeler","Johan Kappelhof",4,4,"Nee","Verdediger","Bankspeler","Bart van Hintum",0,0,"Nee","Verdediger","Bankspeler","Marcel Seip",5,5,"Nee","Verdediger","Bankspeler","Marcus Nilsson",0,0,"Nee","Verdediger","Bankspeler","Jan Wuytens",7,7,"Nee","Verdediger","Bankspeler","Mitchell Piqué",5,5,"Nee","Verdediger","Bankspeler","Ruud van der Rijt",0,0,"Nee","Verdediger","Bankspeler","Jan Wuytens",7,7,"Nee","Verdediger","Bankspeler","Daryl Janmaat",-1,-1,"Nee","Verdediger","Bankspeler","Pavel Cmovs",5,5]
["Nee","Verdediger","Bankspeler","Johan Kappelhof",4,4,"Nee","Verdediger","Bankspeler","Vito Wormgoor",2,2,"Nee","Middevelder","Bankspeler","Evander Sno",2,2,"Nee","Verdediger","Bankspeler","Nils Röseler",2,2,"Nee","Middevelder","Bankspeler","Willie Overtoom",2,2,"Nee","Middevelder","Bankspeler","Nana Asare",4,4,"Nee","Verdediger","Bankspeler","Bart van Hintum",0,0,"Nee","Middevelder","Bankspeler","Willie Overtoom",2,2,"Nee","Verdediger","Bankspeler","Virgil van Dijk",7,7,"Nee","Verdediger","Bankspeler","Mark Looms",0,0,"Nee","Verdediger","Bankspeler","Daryl Janmaat",-1,-1,"Nee","Verdediger","Bankspeler","Jeffrey Gouweleeuw",-1,-1,"Nee","Verdediger","Bankspeler","Bart van Hintum",0,0,"Nee","Verdediger","Bankspeler","Jetro Willems",0,0,"Nee","Verdediger","Bankspeler","Daryl Janmaat",-1,-1,"Nee","Verdediger","Bankspeler","Marcel Seip",5,5,"Nee","Verdediger","Bankspeler","Bart van Hintum",0,0,"Nee","Verdediger","Bankspeler","Marcelo",7,7,"Nee","Middevelder","Bankspeler","Willie Overtoom",2,2]
["Nee","Middevelder","Bankspeler","Evander Sno",2,2,"Nee","Middevelder","Bankspeler","Filip Djuricic",1,1,"Nee","Middevelder","Bankspeler","Rochdi Achenteh",1,1,"Nee","Verdediger","Bankspeler","Jeffrey Gouweleeuw",-1,-1,"Nee","Middevelder","Bankspeler","Filip Djuricic",1,1,"Nee","Middevelder","Bankspeler","Jens Toornstra",0,0,"Nee","Middevelder","Bankspeler","Michael de Leeuw",8,8,"Nee","Middevelder","Bankspeler","Arne Slot",0,0,"Nee","Middevelder","Bankspeler","Danny Holla",4,4,"Nee","Middevelder","Bankspeler","Joost Broerse",1,1,"Nee","Middevelder","Bankspeler","Filip Djuricic",1,1,"Nee","Middevelder","Bankspeler","Jens Toornstra",0,0,"Nee","Middevelder","Bankspeler","Hans Mulder",0,0,"Nee","Middevelder","Bankspeler","Rodney Sneijder",2,2,"Nee","Middevelder","Bankspeler","Joost Broerse",1,1,"Nee","Middevelder","Bankspeler","Navarone Foor",2,2,"Nee","Middevelder","Bankspeler","Lerin Duarte",2,2,"Nee","Middevelder","Bankspeler","Danny Holla",4,4,"Nee","Middevelder","Bankspeler","Joost Broerse",1,1]
["Nee","Aanvaller","Bankspeler","Dries Mertens",5,5,"Nee","Aanvaller","Bankspeler","Sanharib Malki",0,0,"Nee","Middevelder","Bankspeler","Tjaronn Chery",2,2,"Nee","Verdediger","Basisspeler","Jan Wuytens",7,7,"Nee","Middevelder","Bankspeler","Nana Asare",4,4,"Nee","Aanvaller","Bankspeler","Alfred Finnbogason",1,1,"Nee","Aanvaller","Bankspeler","Yanic Wildschut",2,2,"Nee","Aanvaller","Bankspeler","Yanic Wildschut",2,2,"Nee","Middevelder","Bankspeler","Nemanja Gudelj",4,4,"Nee","Aanvaller","Bankspeler","Yanic Wildschut",2,2,"Nee","Aanvaller","Bankspeler","Sanharib Malki",0,0,"Nee","Middevelder","Bankspeler","Leandro Bacuna",2,2,"Nee","Middevelder","Bankspeler","Nemanja Gudelj",4,4,"Nee","Aanvaller","Bankspeler","Fred Benson",0,0,"Nee","Aanvaller","Bankspeler","Jozy Altidore",1,1,"Nee","Aanvaller","Bankspeler","Youness Mokhtar",4,4,"Nee","Middevelder","Bankspeler","Niek Vossebelt",0,0,"Nee","Aanvaller","Bankspeler","Alex Schalk",4,4,"Nee","Middevelder","Bankspeler","Ricky van Haaren",2,2]
["Nee","Aanvaller","Bankspeler","Marc Höcher",2,2,"Nee","Aanvaller","Bankspeler","Yanic Wildschut",2,2,"Nee","Aanvaller","Bankspeler","Yanic Wildschut",2,2,"Nee","Verdediger","Basisspeler","Toby Alderweireld",2,2,"Nee","Aanvaller","Bankspeler","Yanic Wildschut",2,2,"Nee","Aanvaller","Bankspeler","Sanharib Malki",0,0,"Nee","Aanvaller","Bankspeler","Alex Schalk",4,4,"Nee","Aanvaller","Bankspeler","Aurélien Joachim",2,2,"Nee","Aanvaller","Bankspeler","Denni Avdic",1,1,"Nee","Aanvaller","Bankspeler","Florian Jozefzoon",2,2,"Nee","Aanvaller","Bankspeler","Yanic Wildschut",2,2,"Nee","Aanvaller","Bankspeler","Cedric van der Gun",4,4,"Nee","Aanvaller","Bankspeler","Everton",2,2,"Nee","Aanvaller","Bankspeler","Yanic Wildschut",2,2,"Nee","Aanvaller","Bankspeler","Florian Jozefzoon",2,2,"Nee","Aanvaller","Bankspeler","Anthony Lurling",0,0,"Nee","Aanvaller","Bankspeler","Yanic Wildschut",2,2,"Nee","Aanvaller","Bankspeler","Marc Höcher",2,2,"Nee","Aanvaller","Bankspeler","Alex Schalk",4,4]
["Nee","Aanvaller","Bankspeler","Yanic Wildschut",2,2,"Nee","Aanvaller","Bankspeler","Wiljan Pluim",1,1,"Nee","Aanvaller","Bankspeler","Marc Höcher",2,2,"Nee","Verdediger","Basisspeler","Daryl Janmaat",-1,-1,"Nee","Aanvaller","Bankspeler","Alex Schalk",4,4,"Nee","Aanvaller","Bankspeler","Alex Schalk",4,4,"Nee","Aanvaller","Bankspeler","Sanharib Malki",0,0,"Nee","Aanvaller","Bankspeler","Sanharib Malki",0,0,"Nee","Aanvaller","Bankspeler","Yanic Wildschut",2,2,"Nee","Aanvaller","Bankspeler","Virgil Misidjan",2,2,"Nee","Aanvaller","Bankspeler","Alex Schalk",4,4,"Nee","Aanvaller","Bankspeler","Alex Schalk",4,4,"Nee","Aanvaller","Bankspeler","Yanic Wildschut",2,2,"Nee","Aanvaller","Bankspeler","Marc Höcher",2,2,"Nee","Aanvaller","Bankspeler","Uche Nwofor",0,0,"Nee","Aanvaller","Bankspeler","David Texeira",4,4,"Nee","Aanvaller","Bankspeler","Sanharib Malki",0,0,"Nee","Aanvaller","Bankspeler","Alfred Finnbogason",1,1,"Nee","Aanvaller","Bankspeler","Marc Höcher",2,2]
["Weekscore","Totaal",26,"Bank:",20,"Bst Sstm","Weekscore","Totaal",51,"Bank:",11,"Bst Sstm","Weekscore","Totaal",14,"Bank:",20,"Bst Sstm","Weekscore","Totaal",31,"Bank:",9,"Bst Sstm","Weekscore","Totaal",16,"Bank:",18,"Bst Sstm","Weekscore","Totaal",38,"Bank:",15,"Bst Sstm","Weekscore","Totaal",28,"Bank:",27,"Bst Sstm","Weekscore","Totaal",34,"Bank:",9,"Bst Sstm","Weekscore","Totaal",28,"Bank:",23,"Bst Sstm","Weekscore","Totaal",33,"Bank:",11,"Bst Sstm","Weekscore","Totaal",39,"Bank:",12,"Bst Sstm","Weekscore","Totaal",26,"Bank:",20,"Bst Sstm","Weekscore","Totaal",23,"Bank:",8,"Bst Sstm","Weekscore","Totaal",37,"Bank:",13,"Bst Sstm","Weekscore","Totaal",39,"Bank:",14,"Bst Sstm","Weekscore","Totaal",33,"Bank:",15,"Bst Sstm","Weekscore","Totaal",35,"Bank:",13,"Bst Sstm","Weekscore","Totaal",23,"Bank:",17,"Bst Sstm","Weekscore","Totaal",19,"Bank:",18,"Bst Sstm"]
["Rendement",0.57777777777777772,45,"Verspeelde pnt",19,"3-5-2","Rendement",0.9107142857142857,56,"Verspeelde pnt",5,"4-3-3","Rendement",0.35897435897435898,39,"Verspeelde pnt",25,"4-3-3","Rendement",0.73809523809523814,42,"Verspeelde pnt",11,"3-5-2","Rendement",0.41025641025641024,39,"Verspeelde pnt",23,"4-3-3","Rendement",0.84444444444444444,45,"Verspeelde pnt",7,"3-5-2","Rendement",0.5957446808510638,47,"Verspeelde pnt",19,"3-5-2","Rendement",0.73913043478260865,46,"Verspeelde pnt",12,"3-5-2","Rendement",0.52830188679245282,53,"Verspeelde pnt",25,"4-4-2","Rendement",0.71739130434782605,46,"Verspeelde pnt",13,"4-3-3","Rendement",0.76470588235294112,51,"Verspeelde pnt",12,"4-3-3","Rendement",0.65,40,"Verspeelde pnt",14,"3-5-2","Rendement",0.74193548387096775,31,"Verspeelde pnt",8,"3-5-2","Rendement",0.80434782608695654,46,"Verspeelde pnt",9,"4-3-3","Rendement",0.82978723404255317,47,"Verspeelde pnt",8,"4-3-3","Rendement",0.71739130434782605,46,"Verspeelde pnt",13,"4-3-3","Rendement",0.67307692307692313,52,"Verspeelde pnt",17,"4-3-3","Rendement",0.53488372093023251,43,"Verspeelde pnt",20,"3-5-2","Rendement",0.47499999999999998,40,"Verspeelde pnt",21,"3-5-2"]
["Speelronde 7"]
["Team:","De Woudlopers",48,13,null,null,"Team:","Jong Belegen",52,2,null,null,"Team:","Ultimate Knooierd",41,-1,null,null,"Team:","Master Krosse",34,7,null,null,"Team:","Rwobbie",40,14,null,null,"Team:","Slyfox",69,13,null,null,"Team:","Kesman",53,13,null,null,"Team:","Rising Star",59,0,null,null,"Team:","Buttons",35,-5,null,null,"Team:","MASTER PLAYER",37,5,null,null,"Team:","FC Bramovich",48,16,null,null,"Team:","Kamp Nijbob",53,-1,null,null,"Team:","Denstar United",41,1,null,null,"Team:","Voetbal Toestanden",33,4,null,null,"Team:","Amazing Crippled",39,18,null,null,"Team:","P.R.Utsers",35,-2,null,null,"Team:","Maffioso's",36,12,null,null,"Team:","FCLangsDeLijn",57,-1,null,null,"Team:","Don_Diego",19,8]
["Captain?","Positie","Basis/bank","Naam","Punten","Correctie","Captain?","Positie","Basis/bank","Naam","Punten","Correctie","Captain?","Positie","Basis/bank","Naam","Punten","Correctie","Captain?","Positie","Basis/bank","Naam","Punten","Correctie","Captain?","Positie","Basis/bank","Naam","Punten","Correctie","Captain?","Positie","Basis/bank","Naam","Punten","Correctie","Captain?","Positie","Basis/bank","Naam","Punten","Correctie","Captain?","Positie","Basis/bank","Naam","Punten","Correctie","Captain?","Positie","Basis/bank","Naam","Punten","Correctie","Captain?","Positie","Basis/bank","Naam","Punten","Correctie","Captain?","Positie","Basis/bank","Naam","Punten","Correctie","Captain?","Positie","Basis/bank","Naam","Punten","Correctie","Captain?","Positie","Basis/bank","Naam","Punten","Correctie","Captain?","Positie","Basis/bank","Naam","Punten","Correctie","Captain?","Positie","Basis/bank","Naam","Punten","Correctie","Captain?","Positie","Basis/bank","Naam","Punten","Correctie","Captain?","Positie","Basis/bank","Naam","Punten","Correctie","Captain?","Positie","Basis/bank","Naam","Punten","Correctie","Captain?","Positie","Basis/bank","Naam","Punten","Correctie"]
["Nee","Aanvaller","Basisspeler","Marc Höcher",1,1,"Ja","Aanvaller","Basisspeler","Jozy Altidore",12,6,"Nee","Aanvaller","Basisspeler","Marc Höcher",1,1,"Nee","Aanvaller","Basisspeler","Sanharib Malki",0,0,"Nee","Aanvaller","Basisspeler","Edouard Duplan",0,0,"Nee","Aanvaller","Basisspeler","Alfred Finnbogason",7,7,"Ja","Aanvaller","Basisspeler","Jozy Altidore",12,6,"Nee","Aanvaller","Basisspeler","Dries Mertens",13,13,"Nee","Aanvaller","Basisspeler","Yanic Wildschut",-1,-1,"Nee","Aanvaller","Basisspeler","Virgil Misidjan",1,1,"Ja","Aanvaller","Basisspeler","Dries Mertens",26,13,"Nee","Aanvaller","Basisspeler","Jonathan Reis",4,4,"Nee","Aanvaller","Basisspeler","Dries Mertens",13,13,"Nee","Aanvaller","Basisspeler","Sanharib Malki",0,0,"Nee","Aanvaller","Basisspeler","Wilfried Bony",8,8,"Nee","Aanvaller","Basisspeler","David Texeira",1,1,"Nee","Aanvaller","Basisspeler","Dries Mertens",13,13,"Nee","Aanvaller","Basisspeler","Marc Höcher",1,1,"Nee","Aanvaller","Basisspeler","Alex Schalk",1,1]
["Ja","Aanvaller","Basisspeler","Jozy Altidore",12,6,"Nee","Aanvaller","Basisspeler","Dries Mertens",13,13,"Ja","Aanvaller","Basisspeler","Jozy Altidore",12,6,"Nee","Aanvaller","Basisspeler","Dries Mertens",13,13,"Nee","Aanvaller","Basisspeler","Marc Höcher",1,1,"Nee","Aanvaller","Basisspeler","Dries Mertens",13,13,"Nee","Aanvaller","Basisspeler","Alfred Finnbogason",7,7,"Nee","Aanvaller","Basisspeler","Alfred Finnbogason",7,7,"Nee","Aanvaller","Basisspeler","Jonathan Reis",4,4,"Nee","Aanvaller","Basisspeler","Alfred Finnbogason",7,7,"Nee","Aanvaller","Basisspeler","Wilfried Bony",8,8,"Nee","Aanvaller","Basisspeler","Tim Matavz",0,0,"Nee","Aanvaller","Basisspeler","Dusan Tadic",-1,-1,"Nee","Aanvaller","Basisspeler","Wilfried Bony",8,8,"Ja","Aanvaller","Basisspeler","Jozy Altidore",12,6,"Nee","Aanvaller","Basisspeler","Jonathan Reis",4,4,"Nee","Aanvaller","Basisspeler","Alfred Finnbogason",7,7,"Nee","Aanvaller","Basisspeler","Alfred Finnbogason",7,7,"Nee","Aanvaller","Basisspeler","Luc Castaignos",1,1]
["Nee","Aanvaller","Basisspeler","Dries Mertens",13,13,"Nee","Aanvaller","Basisspeler","Género Zeefuik",4,4,"Nee","Aanvaller","Basisspeler","Dusan Tadic",-1,-1,"Ja","Aanvaller","Basisspeler","Dusan Tadic",-2,-1,"Nee","Aanvaller","Basisspeler","Sanharib Malki",0,0,"Nee","Middevelder","Basisspeler","Michael de Leeuw",16,16,"Nee","Middevelder","Basisspeler","Michael de Leeuw",16,16,"Nee","Aanvaller","Basisspeler","Aurélien Joachim",1,1,"Nee","Middevelder","Basisspeler","Filip Djuricic",6,6,"Nee","Middevelder","Basisspeler","Siem de Jong",4,4,"Nee","Aanvaller","Basisspeler","Sanharib Malki",0,0,"Nee","Middevelder","Basisspeler","Willie Overtoom",2,2,"Nee","Aanvaller","Basisspeler","Everton",2,2,"Nee","Middevelder","Basisspeler","Christian Eriksen",8,8,"Nee","Aanvaller","Basisspeler","Sanharib Malki",0,0,"Nee","Aanvaller","Basisspeler","Dries Mertens",13,13,"Nee","Aanvaller","Basisspeler","Mitchell Schet",4,4,"Nee","Middevelder","Basisspeler","Willie Overtoom",2,2,"Nee","Aanvaller","Basisspeler","Marc Höcher",1,1]
["Nee","Middevelder","Basisspeler","Siem de Jong",4,4,"Nee","Middevelder","Basisspeler","Siem de Jong",4,4,"Nee","Middevelder","Basisspeler","Filip Djuricic",6,6,"Nee","Middevelder","Basisspeler","Theo Janssen",4,4,"Nee","Middevelder","Basisspeler","Siem de Jong",4,4,"Nee","Middevelder","Basisspeler","Willie Overtoom",2,2,"Nee","Middevelder","Basisspeler","Siem de Jong",4,4,"Nee","Middevelder","Basisspeler","Tjaronn Chery",0,0,"Nee","Middevelder","Basisspeler","Willie Overtoom",2,2,"Nee","Middevelder","Basisspeler","Jordy Clasie",6,6,"Nee","Middevelder","Basisspeler","Evander Sno",0,0,"Nee","Middevelder","Basisspeler","Christian Eriksen",8,8,"Ja","Middevelder","Basisspeler","Siem de Jong",8,4,"Nee","Middevelder","Basisspeler","Filip Djuricic",6,6,"Nee","Middevelder","Basisspeler","Willie Overtoom",2,2,"Nee","Middevelder","Basisspeler","Siem de Jong",4,4,"Nee","Middevelder","Basisspeler","Jordy Clasie",6,6,"Nee","Middevelder","Basisspeler","Theo Janssen",4,4,"Nee","Middevelder","Basisspeler","Willie Overtoom",2,2]
["Nee","Middevelder","Basisspeler","Tjaronn Chery",0,0,"Nee","Middevelder","Basisspeler","Filip Djuricic",6,6,"Nee","Middevelder","Basisspeler","Willie Overtoom",2,2,"Nee","Middevelder","Basisspeler","Evander Sno",0,0,"Nee","Middevelder","Basisspeler","Ola Toivonen",8,8,"Nee","Middevelder","Basisspeler","Jens Toornstra",2,2,"Nee","Middevelder","Basisspeler","Tjaronn Chery",0,0,"Nee","Middevelder","Basisspeler","Willie Overtoom",2,2,"Nee","Middevelder","Basisspeler","Siem de Jong",4,4,"Nee","Middevelder","Basisspeler","Willie Overtoom",2,2,"Nee","Middevelder","Basisspeler","Siem de Jong",4,4,"Nee","Middevelder","Basisspeler","Rodney Sneijder",2,2,"Nee","Middevelder","Basisspeler","Kees Kwakman",2,2,"Nee","Middevelder","Basisspeler","Willie Overtoom",2,2,"Nee","Middevelder","Basisspeler","Jens Toornstra",2,2,"Nee","Middevelder","Basisspeler","Filip Djuricic",6,6,"Nee","Middevelder","Basisspeler","Leroy Fer",0,0,"Nee","Middevelder","Basisspeler","Danny Holla",5,5,"Nee","Middevelder","Basisspeler","Leandro Bacuna",4,4]
["Nee","Middevelder","Basisspeler","Evander Sno",0,0,"Nee","Middevelder","Basisspeler","Willie Overtoom",2,2,"Nee","Middevelder","Basisspeler","Leandro Bacuna",4,4,"Nee","Middevelder","Basisspeler","Willie Overtoom",2,2,"Nee","Middevelder","Basisspeler","Jens Toornstra",2,2,"Nee","Middevelder","Basisspeler","Nana Asare",1,1,"Nee","Middevelder","Basisspeler","Willie Overtoom",2,2,"Nee","Middevelder","Basisspeler","Nana Asare",1,1,"Nee","Middevelder","Basisspeler","Danny Holla",5,5,"Ja","Middevelder","Basisspeler","Ola Toivonen",16,8,"Nee","Middevelder","Basisspeler","Willie Overtoom",2,2,"Nee","Middevelder","Basisspeler","Leandro Bacuna",4,4,"Nee","Middevelder","Basisspeler","Rodney Sneijder",2,2,"Nee","Middevelder","Basisspeler","Jordy Clasie",6,6,"Nee","Middevelder","Basisspeler","Nemanja Gudelj",-1,-1,"Nee","Middevelder","Basisspeler","Willie Overtoom",2,2,"Ja","Middevelder","Basisspeler","Siem de Jong",8,4,"Nee","Middevelder","Basisspeler","Tim Sparv",4,4,"Ja","Middevelder","Basisspeler","Theo Janssen",8,4]
["Nee","Middevelder","Basisspeler","Willie Overtoom",2,2,"Nee","Verdediger","Basisspeler","Jan Wuytens",-2,-2,"Nee","Middevelder","Basisspeler","Tjaronn Chery",0,0,"Nee","Middevelder","Basisspeler","Rodney Sneijder",2,2,"Nee","Middevelder","Basisspeler","Willie Overtoom",2,2,"Nee","Verdediger","Basisspeler","Nick Viergever",-2,-2,"Nee","Verdediger","Basisspeler","Guram Kashia",2,2,"Ja","Verdediger","Basisspeler","Daryl Janmaat",20,10,"Nee","Verdediger","Basisspeler","Roberto Rosales",1,1,"Nee","Middevelder","Basisspeler","Evander Sno",0,0,"Nee","Middevelder","Basisspeler","Tjaronn Chery",0,0,"Ja","Verdediger","Basisspeler","Daryl Janmaat",20,10,"Nee","Middevelder","Basisspeler","Nemanja Gudelj",-1,-1,"Nee","Middevelder","Basisspeler","Leandro Bacuna",4,4,"Nee","Verdediger","Basisspeler","Gianni Zuiverloon",0,0,"Nee","Middevelder","Basisspeler","Nana Asare",1,1,"Nee","Middevelder","Basisspeler","Danny Holla",5,5,"Nee","Middevelder","Basisspeler","Evander Sno",0,0,"Nee","Verdediger","Basisspeler","Nick Viergever",-2,-2]
["Nee","Verdediger","Basisspeler","Jeffrey Gouweleeuw",7,7,"Nee","Verdediger","Basisspeler","Daryl Janmaat",10,10,"Nee","Verdediger","Basisspeler","Niklas Moisander",7,7,"Nee","Verdediger","Basisspeler","Toby Alderweireld",7,7,"Nee","Verdediger","Basisspeler","Nick Viergever",-2,-2,"Nee","Verdediger","Basisspeler","Niklas Moisander",7,7,"Nee","Verdediger","Basisspeler","Bruno Martins Indi",4,4,"Nee","Verdediger","Basisspeler","Guram Kashia",2,2,"Nee","Verdediger","Basisspeler","Jan Wuytens",-2,-2,"Nee","Verdediger","Basisspeler","Douglas",1,1,"Nee","Verdediger","Basisspeler","Daryl Janmaat",10,10,"Nee","Verdediger","Basisspeler","Nick Viergever",-2,-2,"Nee","Verdediger","Basisspeler","Bart van Hintum",10,10,"Nee","Verdediger","Basisspeler","Eric Botteghin",0,0,"Nee","Verdediger","Basisspeler","Niklas Moisander",7,7,"Nee","Verdediger","Basisspeler","Nick Viergever",-2,-2,"Nee","Verdediger","Basisspeler","Michel Breuer",-3,-3,"Nee","Verdediger","Basisspeler","Niklas Moisander",7,7,"Nee","Verdediger","Basisspeler","Jan Wuytens",-2,-2]
["Nee","Verdediger","Basisspeler","Daryl Janmaat",10,10,"Nee","Verdediger","Basisspeler","Douglas",1,1,"Nee","Verdediger","Basisspeler","Guram Kashia",2,2,"Nee","Verdediger","Basisspeler","Jan Wuytens",-2,-2,"Nee","Verdediger","Basisspeler","Douglas",1,1,"Ja","Verdediger","Basisspeler","Daryl Janmaat",20,10,"Nee","Verdediger","Basisspeler","Atiba Hutchinson",7,7,"Nee","Verdediger","Basisspeler","Niklas Moisander",7,7,"Nee","Verdediger","Basisspeler","Virgil van Dijk",6,6,"Nee","Verdediger","Basisspeler","Guram Kashia",2,2,"Nee","Verdediger","Basisspeler","Lorenzo Burnet",0,0,"Nee","Verdediger","Basisspeler","Jeffrey Gouweleeuw",7,7,"Nee","Verdediger","Basisspeler","Bruno Martins Indi",4,4,"Ja","Verdediger","Basisspeler","Peter Wisgerhof",2,1,"Nee","Verdediger","Basisspeler","Daryl Janmaat",10,10,"Nee","Verdediger","Basisspeler","Bruno Martins Indi",4,4,"Nee","Verdediger","Basisspeler","Nick Viergever",-2,-2,"Nee","Verdediger","Basisspeler","Marcelo",7,7,"Nee","Verdediger","Basisspeler","Jeffrey Gouweleeuw",7,7]
["Nee","Verdediger","Basisspeler","Jan Wuytens",-2,-2,"Nee","Verdediger","Basisspeler","Vito Wormgoor",-2,-2,"Nee","Verdediger","Basisspeler","Daryl Janmaat",10,10,"Nee","Verdediger","Basisspeler","Daryl Janmaat",10,10,"Ja","Verdediger","Basisspeler","Daryl Janmaat",20,10,"Nee","Verdediger","Basisspeler","Guram Kashia",2,2,"Nee","Verdediger","Basisspeler","Jan Wuytens",-2,-2,"Nee","Verdediger","Basisspeler","Virgil van Dijk",6,6,"Nee","Verdediger","Basisspeler","Daryl Janmaat",10,10,"Nee","Verdediger","Basisspeler","Jan Wuytens",-2,-2,"Nee","Verdediger","Basisspeler","Jan Wuytens",-2,-2,"Nee","Verdediger","Basisspeler","Darryl Lachman",7,7,"Nee","Verdediger","Basisspeler","Nick Viergever",-2,-2,"Nee","Verdediger","Basisspeler","Michel Breuer",-3,-3,"Nee","Verdediger","Basisspeler","Jan Wuytens",-2,-2,"Nee","Verdediger","Basisspeler","Ruud van der Rijt",0,0,"Nee","Verdediger","Basisspeler","Kees Luijckx",-2,-2,"Ja","Verdediger","Basisspeler","Daryl Janmaat",20,10,"Nee","Verdediger","Basisspeler","Robbie Wielaert",-1,-1]
["Nee","Keeper","Basisspeler","Nikolay Mihaylov",1,1,"Nee","Keeper","Basisspeler","Piet Velthuizen",4,4,"Nee","Keeper","Basisspeler","Jelle ten Rouwelaar",-2,-2,"Nee","Keeper","Basisspeler","Esteban",0,0,"Nee","Keeper","Basisspeler","Piet Velthuizen",4,4,"Nee","Keeper","Basisspeler","David Meul",1,1,"Nee","Keeper","Basisspeler","Nikolay Mihaylov",1,1,"Nee","Keeper","Basisspeler","Esteban",0,0,"Ja","Keeper","Basisspeler","Esteban",0,0,"Nee","Keeper","Basisspeler","Esteban",0,0,"Nee","Keeper","Basisspeler","Esteban",0,0,"Nee","Keeper","Basisspeler","David Meul",1,1,"Nee","Keeper","Basisspeler","Piet Velthuizen",4,4,"Nee","Keeper","Basisspeler","Esteban",0,0,"Nee","Keeper","Basisspeler","Nikolay Mihaylov",1,1,"Ja","Keeper","Basisspeler","Nikolay Mihaylov",2,1,"Nee","Keeper","Basisspeler","Jeroen Zoet",0,0,"Nee","Keeper","Basisspeler","Esteban",0,0,"Nee","Keeper","Basisspeler","Erwin Mulder",0,0]
["Nee","Keeper","Bankspeler","Jelle ten Rouwelaar",-2,-2,"Nee","Keeper","Bankspeler","David Meul",1,1,"Nee","Keeper","Bankspeler","Przemyslaw Tyton",0,0,"Nee","Keeper","Bankspeler","Jelle ten Rouwelaar",-2,-2,"Nee","Keeper","Bankspeler","Luciano Da Silva",3,3,"Nee","Keeper","Bankspeler","Nikolay Mihaylov",1,1,"Nee","Keeper","Bankspeler","David Meul",1,1,"Nee","Keeper","Bankspeler","Jelle ten Rouwelaar",-2,-2,"Nee","Keeper","Bankspeler","David Meul",1,1,"Nee","Keeper","Bankspeler","Gino Coutinho",0,0,"Nee","Keeper","Bankspeler","David Meul",1,1,"Nee","Keeper","Bankspeler","Nikolay Mihaylov",1,1,"Nee","Keeper","Bankspeler","Gino Coutinho",0,0,"Nee","Keeper","Bankspeler","Gino Coutinho",0,0,"Nee","Keeper","Bankspeler","Gábor Babos",-3,-3,"Nee","Keeper","Bankspeler","Gino Coutinho",0,0,"Nee","Keeper","Bankspeler","Piet Velthuizen",4,4,"Nee","Keeper","Bankspeler","Diederik Boer",0,0,"Nee","Keeper","Bankspeler","Jeroen Zoet",0,0]
["Nee","Verdediger","Bankspeler","Darryl Lachman",7,7,"Nee","Verdediger","Bankspeler","Michel Breuer",-3,-3,"Nee","Verdediger","Bankspeler","Ard van Peppen",-2,-2,"Nee","Verdediger","Bankspeler","Jeffrey Gouweleeuw",7,7,"Nee","Verdediger","Bankspeler","Ard van Peppen",-2,-2,"Nee","Verdediger","Bankspeler","Bart van Hintum",10,10,"Nee","Verdediger","Bankspeler","Bart van Hintum",10,10,"Nee","Verdediger","Bankspeler","Douglas",1,1,"Nee","Verdediger","Bankspeler","Michel Breuer",-3,-3,"Nee","Verdediger","Bankspeler","Johan Kappelhof",3,3,"Nee","Verdediger","Bankspeler","Ard van Peppen",-2,-2,"Nee","Verdediger","Bankspeler","Marcel Seip",-6,-6,"Nee","Verdediger","Bankspeler","Marcus Nilsson",0,0,"Nee","Verdediger","Bankspeler","Jan Wuytens",-2,-2,"Nee","Verdediger","Bankspeler","Mitchell Piqué",1,1,"Nee","Verdediger","Bankspeler","Ard van Peppen",-2,-2,"Nee","Verdediger","Bankspeler","Jan Wuytens",-2,-2,"Nee","Verdediger","Bankspeler","Roberto Rosales",1,1,"Nee","Verdediger","Bankspeler","Pavel Cmovs",-3,-3]
["Nee","Verdediger","Bankspeler","Johan Kappelhof",3,3,"Nee","Middevelder","Bankspeler","Nemanja Gudelj",-1,-1,"Nee","Verdediger","Bankspeler","Jan Wuytens",-2,-2,"Nee","Verdediger","Bankspeler","Nils Röseler",-4,-4,"Nee","Verdediger","Bankspeler","Darryl Lachman",7,7,"Nee","Middevelder","Bankspeler","Rodney Sneijder",2,2,"Nee","Middevelder","Bankspeler","Evander Sno",0,0,"Nee","Middevelder","Bankspeler","Rodney Sneijder",2,2,"Nee","Verdediger","Bankspeler","Ard van Peppen",-2,-2,"Nee","Verdediger","Bankspeler","Ard van Peppen",-2,-2,"Nee","Verdediger","Bankspeler","Bart van Hintum",10,10,"Nee","Middevelder","Bankspeler","Jens Toornstra",2,2,"Nee","Verdediger","Bankspeler","Gianni Zuiverloon",0,0,"Nee","Verdediger","Bankspeler","Jetro Willems",0,0,"Nee","Middevelder","Bankspeler","Leandro Bacuna",4,4,"Nee","Verdediger","Bankspeler","Marcel Seip",-6,-6,"Nee","Verdediger","Bankspeler","Bart van Hintum",10,10,"Nee","Verdediger","Bankspeler","Ard van Peppen",-2,-2,"Nee","Middevelder","Bankspeler","Siem de Jong",4,4]
["Nee","Middevelder","Bankspeler","Rodney Sneijder",2,2,"Nee","Middevelder","Bankspeler","Rodney Sneijder",2,2,"Nee","Middevelder","Bankspeler","Rochdi Achenteh",4,4,"Nee","Middevelder","Bankspeler","Arne Slot",0,0,"Nee","Middevelder","Bankspeler","Filip Djuricic",6,6,"Nee","Middevelder","Bankspeler","Evander Sno",0,0,"Nee","Middevelder","Bankspeler","Rodney Sneijder",2,2,"Nee","Middevelder","Bankspeler","Evander Sno",0,0,"Nee","Middevelder","Bankspeler","Nemanja Gudelj",-1,-1,"Nee","Middevelder","Bankspeler","Joost Broerse",4,4,"Nee","Verdediger","Bankspeler","Peter Wisgerhof",1,1,"Nee","Middevelder","Bankspeler","Evander Sno",0,0,"Nee","Middevelder","Bankspeler","Ryan Koolwijk",1,1,"Nee","Middevelder","Bankspeler","Rodney Sneijder",2,2,"Nee","Middevelder","Bankspeler","Joost Broerse",4,4,"Nee","Middevelder","Bankspeler","Navarone Foor",1,1,"Nee","Middevelder","Bankspeler","Lerin Duarte",0,0,"Nee","Aanvaller","Bankspeler","Alex Schalk",1,1,"Nee","Middevelder","Bankspeler","Joost Broerse",4,4]
["Nee","Aanvaller","Bankspeler","Jonathan Reis",4,4,"Nee","Aanvaller","Bankspeler","Sanharib Malki",0,0,"Nee","Middevelder","Bankspeler","Evander Sno",0,0,"Nee","Middevelder","Bankspeler","Leandro Bacuna",4,4,"Nee","Middevelder","Bankspeler","Evander Sno",0,0,"Nee","Aanvaller","Bankspeler","Yanic Wildschut",-1,-1,"Nee","Aanvaller","Bankspeler","Alex Schalk",1,1,"Nee","Middevelder","Bankspeler","Arne Slot",0,0,"Nee","Aanvaller","Bankspeler","Sanharib Malki",0,0,"Nee","Aanvaller","Bankspeler","Yanic Wildschut",-1,-1,"Nee","Middevelder","Bankspeler","Filip Djuricic",6,6,"Nee","Aanvaller","Bankspeler","Sanharib Malki",0,0,"Nee","Middevelder","Bankspeler","Hans Mulder",1,1,"Nee","Aanvaller","Bankspeler","Fred Benson",4,4,"Nee","Aanvaller","Bankspeler","Dries Mertens",13,13,"Nee","Aanvaller","Bankspeler","Youness Mokhtar",4,4,"Nee","Middevelder","Bankspeler","Niek Vossebelt",1,1,"Nee","Aanvaller","Bankspeler","Sanharib Malki",0,0,"Nee","Middevelder","Bankspeler","Ricky van Haaren",1,1]
["Nee","Aanvaller","Bankspeler","Sanharib Malki",0,0,"Nee","Aanvaller","Bankspeler","Yanic Wildschut",-1,-1,"Nee","Aanvaller","Bankspeler","Yanic Wildschut",-1,-1,"Nee","Aanvaller","Bankspeler","Rydell Poepon",2,2,"Nee","Aanvaller","Bankspeler","Alex Schalk",1,1,"Nee","Aanvaller","Bankspeler","Sanharib Malki",0,0,"Nee","Aanvaller","Bankspeler","Sanharib Malki",0,0,"Nee","Aanvaller","Bankspeler","Yanic Wildschut",-1,-1,"Nee","Aanvaller","Bankspeler","Denni Avdic",0,0,"Nee","Aanvaller","Bankspeler","Sanharib Malki",0,0,"Nee","Aanvaller","Bankspeler","Yanic Wildschut",-1,-1,"Nee","Aanvaller","Bankspeler","Cedric van der Gun",1,1,"Nee","Aanvaller","Bankspeler","Sanharib Malki",0,0,"Nee","Aanvaller","Bankspeler","Yanic Wildschut",-1,-1,"Nee","Aanvaller","Bankspeler","Florian Jozefzoon",2,2,"Nee","Aanvaller","Bankspeler","Anthony Lurling",1,1,"Nee","Aanvaller","Bankspeler","Yanic Wildschut",-1,-1,"Nee","Aanvaller","Bankspeler","Edouard Duplan",0,0,"Nee","Aanvaller","Bankspeler","Rydell Poepon",2,2]
["Nee","Aanvaller","Bankspeler","Yanic Wildschut",-1,-1,"Nee","Aanvaller","Bankspeler","Wiljan Pluim",4,4,"Nee","Aanvaller","Bankspeler","Sanharib Malki",0,0,"Nee","Aanvaller","Bankspeler","Donny de Groot",0,0,"Nee","Aanvaller","Bankspeler","Yanic Wildschut",-1,-1,"Nee","Aanvaller","Bankspeler","Alex Schalk",1,1,"Nee","Aanvaller","Bankspeler","Yanic Wildschut",-1,-1,"Nee","Aanvaller","Bankspeler","Sanharib Malki",0,0,"Nee","Aanvaller","Bankspeler","Tim Matavz",0,0,"Nee","Aanvaller","Bankspeler","Alex Schalk",1,1,"Nee","Aanvaller","Bankspeler","Alex Schalk",1,1,"Nee","Aanvaller","Bankspeler","Alex Schalk",1,1,"Nee","Aanvaller","Bankspeler","Yanic Wildschut",-1,-1,"Nee","Aanvaller","Bankspeler","Marc Höcher",1,1,"Nee","Aanvaller","Bankspeler","Uche Nwofor",-3,-3,"Nee","Aanvaller","Bankspeler","Sanharib Malki",0,0,"Nee","Aanvaller","Bankspeler","Sanharib Malki",0,0,"Nee","Aanvaller","Bankspeler","Yanic Wildschut",-1,-1,"Nee","Aanvaller","Bankspeler","Tim Matavz",0,0]
["Weekscore","Totaal",48,"Bank:",13,"Bst Sstm","Weekscore","Totaal",52,"Bank:",2,"Bst Sstm","Weekscore","Totaal",41,"Bank:",-1,"Bst Sstm","Weekscore","Totaal",34,"Bank:",7,"Bst Sstm","Weekscore","Totaal",40,"Bank:",14,"Bst Sstm","Weekscore","Totaal",69,"Bank:",13,"Bst Sstm","Weekscore","Totaal",53,"Bank:",13,"Bst Sstm","Weekscore","Totaal",59,"Bank:",0,"Bst Sstm","Weekscore","Totaal",35,"Bank:",-5,"Bst Sstm","Weekscore","Totaal",37,"Bank:",5,"Bst Sstm","Weekscore","Totaal",48,"Bank:",16,"Bst Sstm","Weekscore","Totaal",53,"Bank:",-1,"Bst Sstm","Weekscore","Totaal",41,"Bank:",1,"Bst Sstm","Weekscore","Totaal",33,"Bank:",4,"Bst Sstm","Weekscore","Totaal",39,"Bank:",18,"Bst Sstm","Weekscore","Totaal",35,"Bank:",-2,"Bst Sstm","Weekscore","Totaal",36,"Bank:",12,"Bst Sstm","Weekscore","Totaal",57,"Bank:",-1,"Bst Sstm","Weekscore","Totaal",19,"Bank:",8,"Bst Sstm"]
["Rendement",0.66666666666666663,72,"Verspeelde pnt",24,"4-3-3","Rendement",0.82539682539682535,63,"Verspeelde pnt",11,"4-3-3","Rendement",0.78846153846153844,52,"Verspeelde pnt",11,"3-5-2","Rendement",0.53125,64,"Verspeelde pnt",30,"3-5-2","Rendement",0.7142857142857143,56,"Verspeelde pnt",16,"3-5-2","Rendement",0.78409090909090906,88,"Verspeelde pnt",19,"4-4-2","Rendement",0.68831168831168832,77,"Verspeelde pnt",24,"4-4-2","Rendement",0.921875,64,"Verspeelde pnt",5,"4-3-3","Rendement",0.7142857142857143,49,"Verspeelde pnt",14,"4-3-3","Rendement",0.80434782608695654,46,"Verspeelde pnt",9,"3-5-2","Rendement",0.69565217391304346,69,"Verspeelde pnt",21,"4-3-3","Rendement",0.91379310344827591,58,"Verspeelde pnt",5,"3-5-2","Rendement",0.7321428571428571,56,"Verspeelde pnt",15,"3-5-2","Rendement",0.7021276595744681,47,"Verspeelde pnt",14,"3-5-2","Rendement",0.54929577464788737,71,"Verspeelde pnt",32,"4-3-3","Rendement",0.7,50,"Verspeelde pnt",15,"4-3-3","Rendement",0.5714285714285714,63,"Verspeelde pnt",27,"4-3-3","Rendement",0.98275862068965514,58,"Verspeelde pnt",1,"4-4-2","Rendement",0.59375,32,"Verspeelde pnt",13,"3-5-2"]
["Speelronde 8"]
["Team:","De Woudlopers",28,13,null,null,"Team:","Jong Belegen",36,17,null,null,"Team:","Ultimate Knooierd",18,13,null,null,"Team:","Master Krosse",30,16,null,null,"Team:","Rwobbie",39,2,null,null,"Team:","Slyfox",40,18,null,null,"Team:","Kesman",39,21,null,null,"Team:","Rising Star",34,22,null,null,"Team:","Buttons",39,27,null,null,"Team:","MASTER PLAYER",54,5,null,null,"Team:","FC Bramovich",44,11,null,null,"Team:","Kamp Nijbob",27,21,null,null,"Team:","Denstar United",22,16,null,null,"Team:","Voetbal Toestanden",37,17,null,null,"Team:","Amazing Crippled",57,8,null,null,"Team:","P.R.Utsers",39,12,null,null,"Team:","Maffioso's",20,22,null,null,"Team:","FCLangsDeLijn",38,19,null,null,"Team:","Don_Diego",18,20]
["Captain?","Positie","Basis/bank","Naam","Punten","Correctie","Captain?","Positie","Basis/bank","Naam","Punten","Correctie","Captain?","Positie","Basis/bank","Naam","Punten","Correctie","Captain?","Positie","Basis/bank","Naam","Punten","Correctie","Captain?","Positie","Basis/bank","Naam","Punten","Correctie","Captain?","Positie","Basis/bank","Naam","Punten","Correctie","Captain?","Positie","Basis/bank","Naam","Punten","Correctie","Captain?","Positie","Basis/bank","Naam","Punten","Correctie","Captain?","Positie","Basis/bank","Naam","Punten","Correctie","Captain?","Positie","Basis/bank","Naam","Punten","Correctie","Captain?","Positie","Basis/bank","Naam","Punten","Correctie","Captain?","Positie","Basis/bank","Naam","Punten","Correctie","Captain?","Positie","Basis/bank","Naam","Punten","Correctie","Captain?","Positie","Basis/bank","Naam","Punten","Correctie","Captain?","Positie","Basis/bank","Naam","Punten","Correctie","Captain?","Positie","Basis/bank","Naam","Punten","Correctie","Captain?","Positie","Basis/bank","Naam","Punten","Correctie","Captain?","Positie","Basis/bank","Naam","Punten","Correctie","Captain?","Positie","Basis/bank","Naam","Punten","Correctie"]
["Ja","Aanvaller","Basisspeler","Dries Mertens",8,4,"Nee","Aanvaller","Basisspeler","Jozy Altidore",-3,-3,"Nee","Aanvaller","Basisspeler","Marc Höcher",2,2,"Nee","Aanvaller","Basisspeler","Dusan Tadic",5,5,"Nee","Aanvaller","Basisspeler","Yanic Wildschut",1,1,"Nee","Aanvaller","Basisspeler","Sanharib Malki",10,10,"Nee","Aanvaller","Basisspeler","Jozy Altidore",-3,-3,"Nee","Aanvaller","Basisspeler","Dries Mertens",4,4,"Ja","Aanvaller","Basisspeler","Dries Mertens",8,4,"Nee","Aanvaller","Basisspeler","Sanharib Malki",10,10,"Nee","Aanvaller","Basisspeler","Dries Mertens",4,4,"Nee","Aanvaller","Basisspeler","Jonathan Reis",2,2,"Nee","Aanvaller","Basisspeler","Dries Mertens",4,4,"Nee","Aanvaller","Basisspeler","Fred Benson",1,1,"Nee","Aanvaller","Basisspeler","Wilfried Bony",9,9,"Nee","Aanvaller","Basisspeler","David Texeira",0,0,"Nee","Aanvaller","Basisspeler","Dries Mertens",4,4,"Nee","Aanvaller","Basisspeler","Yanic Wildschut",1,1,"Nee","Aanvaller","Basisspeler","Rydell Poepon",2,2]
["Nee","Aanvaller","Basisspeler","Jozy Altidore",-3,-3,"Ja","Aanvaller","Basisspeler","Dries Mertens",8,4,"Ja","Aanvaller","Basisspeler","Jozy Altidore",-6,-3,"Nee","Aanvaller","Basisspeler","Dries Mertens",4,4,"Nee","Aanvaller","Basisspeler","Sanharib Malki",10,10,"Ja","Aanvaller","Basisspeler","Dries Mertens",8,4,"Nee","Aanvaller","Basisspeler","Alfred Finnbogason",8,8,"Nee","Aanvaller","Basisspeler","Alfred Finnbogason",8,8,"Nee","Aanvaller","Basisspeler","Wilfried Bony",9,9,"Nee","Aanvaller","Basisspeler","Alfred Finnbogason",8,8,"Nee","Aanvaller","Basisspeler","Wilfried Bony",9,9,"Nee","Aanvaller","Basisspeler","Alex Schalk",1,1,"Nee","Aanvaller","Basisspeler","Dusan Tadic",5,5,"Ja","Aanvaller","Basisspeler","Wilfried Bony",18,9,"Nee","Aanvaller","Basisspeler","Jozy Altidore",-3,-3,"Nee","Aanvaller","Basisspeler","Jonathan Reis",2,2,"Nee","Aanvaller","Basisspeler","Alfred Finnbogason",8,8,"Nee","Aanvaller","Basisspeler","Alfred Finnbogason",8,8,"Nee","Aanvaller","Basisspeler","Luc Castaignos",7,7]
["Nee","Middevelder","Basisspeler","Siem de Jong",2,2,"Nee","Aanvaller","Basisspeler","Sanharib Malki",10,10,"Nee","Aanvaller","Basisspeler","Dusan Tadic",5,5,"Nee","Middevelder","Basisspeler","Theo Janssen",2,2,"Nee","Middevelder","Basisspeler","Siem de Jong",2,2,"Nee","Middevelder","Basisspeler","Michael de Leeuw",0,0,"Nee","Middevelder","Basisspeler","Rodney Sneijder",1,1,"Nee","Middevelder","Basisspeler","Tjaronn Chery",2,2,"Nee","Aanvaller","Basisspeler","Yanic Wildschut",1,1,"Nee","Aanvaller","Basisspeler","Yanic Wildschut",1,1,"Nee","Aanvaller","Basisspeler","Sanharib Malki",10,10,"Nee","Middevelder","Basisspeler","Willie Overtoom",8,8,"Nee","Aanvaller","Basisspeler","Everton",4,4,"Nee","Middevelder","Basisspeler","Christian Eriksen",2,2,"Ja","Aanvaller","Basisspeler","Sanharib Malki",20,10,"Nee","Aanvaller","Basisspeler","Dries Mertens",4,4,"Nee","Aanvaller","Basisspeler","Mitchell Schet",2,2,"Nee","Aanvaller","Basisspeler","Marc Höcher",2,2,"Nee","Aanvaller","Basisspeler","Tim Matavz",0,0]
["Nee","Middevelder","Basisspeler","Michael de Leeuw",0,0,"Nee","Middevelder","Basisspeler","Siem de Jong",2,2,"Nee","Middevelder","Basisspeler","Filip Djuricic",2,2,"Nee","Middevelder","Basisspeler","Evander Sno",0,0,"Nee","Middevelder","Basisspeler","Ola Toivonen",8,8,"Nee","Middevelder","Basisspeler","Willie Overtoom",8,8,"Ja","Middevelder","Basisspeler","Siem de Jong",4,2,"Nee","Middevelder","Basisspeler","Willie Overtoom",8,8,"Nee","Middevelder","Basisspeler","Filip Djuricic",2,2,"Nee","Middevelder","Basisspeler","Siem de Jong",2,2,"Nee","Middevelder","Basisspeler","Tjaronn Chery",2,2,"Ja","Middevelder","Basisspeler","Christian Eriksen",4,2,"Nee","Middevelder","Basisspeler","Siem de Jong",2,2,"Nee","Middevelder","Basisspeler","Filip Djuricic",2,2,"Nee","Middevelder","Basisspeler","Willie Overtoom",8,8,"Nee","Middevelder","Basisspeler","Siem de Jong",2,2,"Nee","Middevelder","Basisspeler","Jordy Clasie",2,2,"Nee","Middevelder","Basisspeler","Willie Overtoom",8,8,"Nee","Middevelder","Basisspeler","Siem de Jong",2,2]
["Nee","Middevelder","Basisspeler","Willie Overtoom",8,8,"Nee","Middevelder","Basisspeler","Filip Djuricic",2,2,"Nee","Middevelder","Basisspeler","Willie Overtoom",8,8,"Ja","Middevelder","Basisspeler","Willie Overtoom",16,8,"Nee","Middevelder","Basisspeler","Jens Toornstra",2,2,"Nee","Middevelder","Basisspeler","Jens Toornstra",2,2,"Nee","Middevelder","Basisspeler","Tjaronn Chery",2,2,"Nee","Middevelder","Basisspeler","Nana Asare",2,2,"Nee","Middevelder","Basisspeler","Willie Overtoom",8,8,"Nee","Middevelder","Basisspeler","Jordy Clasie",2,2,"Nee","Middevelder","Basisspeler","Siem de Jong",2,2,"Nee","Middevelder","Basisspeler","Rodney Sneijder",1,1,"Nee","Middevelder","Basisspeler","Kees Kwakman",2,2,"Nee","Middevelder","Basisspeler","Willie Overtoom",8,8,"Nee","Middevelder","Basisspeler","Jens Toornstra",2,2,"Nee","Middevelder","Basisspeler","Filip Djuricic",2,2,"Nee","Middevelder","Basisspeler","Leroy Fer",0,0,"Nee","Middevelder","Basisspeler","Theo Janssen",2,2,"Nee","Middevelder","Basisspeler","Joost Broerse",1,1]
["Nee","Middevelder","Basisspeler","Tjaronn Chery",2,2,"Nee","Middevelder","Basisspeler","Willie Overtoom",8,8,"Nee","Middevelder","Basisspeler","Leandro Bacuna",6,6,"Nee","Middevelder","Basisspeler","Rodney Sneijder",1,1,"Nee","Middevelder","Basisspeler","Willie Overtoom",8,8,"Nee","Middevelder","Basisspeler","Rodney Sneijder",1,1,"Nee","Middevelder","Basisspeler","Willie Overtoom",8,8,"Nee","Middevelder","Basisspeler","Rodney Sneijder",1,1,"Nee","Middevelder","Basisspeler","Siem de Jong",2,2,"Nee","Middevelder","Basisspeler","Willie Overtoom",8,8,"Ja","Middevelder","Basisspeler","Willie Overtoom",16,8,"Nee","Middevelder","Basisspeler","Leandro Bacuna",6,6,"Nee","Middevelder","Basisspeler","Rodney Sneijder",1,1,"Nee","Middevelder","Basisspeler","Jordy Clasie",2,2,"Nee","Middevelder","Basisspeler","Nemanja Gudelj",1,1,"Nee","Middevelder","Basisspeler","Willie Overtoom",8,8,"Ja","Middevelder","Basisspeler","Siem de Jong",4,2,"Nee","Middevelder","Basisspeler","Tim Sparv",2,2,"Ja","Middevelder","Basisspeler","Theo Janssen",4,2]
["Nee","Verdediger","Basisspeler","Jeffrey Gouweleeuw",0,0,"Nee","Middevelder","Basisspeler","Rodney Sneijder",1,1,"Nee","Middevelder","Basisspeler","Tjaronn Chery",2,2,"Nee","Verdediger","Basisspeler","Toby Alderweireld",2,2,"Nee","Middevelder","Basisspeler","Filip Djuricic",2,2,"Nee","Middevelder","Basisspeler","Ryan Koolwijk",2,2,"Nee","Middevelder","Basisspeler","Michael de Leeuw",0,0,"Nee","Verdediger","Basisspeler","Daryl Janmaat",-1,-1,"Nee","Verdediger","Basisspeler","Roberto Rosales",8,8,"Ja","Middevelder","Basisspeler","Ola Toivonen",16,8,"Nee","Verdediger","Basisspeler","Daryl Janmaat",-1,-1,"Nee","Verdediger","Basisspeler","Daryl Janmaat",-1,-1,"Nee","Middevelder","Basisspeler","Ryan Koolwijk",2,2,"Nee","Middevelder","Basisspeler","Leandro Bacuna",6,6,"Nee","Middevelder","Basisspeler","Leandro Bacuna",6,6,"Nee","Middevelder","Basisspeler","Nana Asare",2,2,"Nee","Middevelder","Basisspeler","Danny Holla",0,0,"Nee","Verdediger","Basisspeler","Niklas Moisander",2,2,"Nee","Verdediger","Basisspeler","Nick Viergever",-1,-1]
["Nee","Verdediger","Basisspeler","Daryl Janmaat",-1,-1,"Nee","Verdediger","Basisspeler","Michel Breuer",2,2,"Nee","Verdediger","Basisspeler","Niklas Moisander",2,2,"Nee","Verdediger","Basisspeler","Jan Wuytens",2,2,"Nee","Verdediger","Basisspeler","Ard van Peppen",1,1,"Nee","Verdediger","Basisspeler","Patrick van Aanholt",0,0,"Nee","Verdediger","Basisspeler","Guram Kashia",0,0,"Nee","Verdediger","Basisspeler","Guram Kashia",0,0,"Nee","Verdediger","Basisspeler","Michel Breuer",2,2,"Nee","Verdediger","Basisspeler","Douglas",7,7,"Nee","Verdediger","Basisspeler","Peter Wisgerhof",0,0,"Nee","Verdediger","Basisspeler","Nick Viergever",-1,-1,"Nee","Verdediger","Basisspeler","Bart van Hintum",-1,-1,"Nee","Verdediger","Basisspeler","Eric Botteghin",-2,-2,"Nee","Verdediger","Basisspeler","Mitchell Piqué",5,5,"Nee","Verdediger","Basisspeler","Nick Viergever",-1,-1,"Nee","Verdediger","Basisspeler","Michel Breuer",2,2,"Ja","Verdediger","Basisspeler","Marcelo",14,7,"Nee","Verdediger","Basisspeler","Pavel Cmovs",2,2]
["Nee","Verdediger","Basisspeler","Michel Breuer",2,2,"Nee","Verdediger","Basisspeler","Daryl Janmaat",-1,-1,"Nee","Verdediger","Basisspeler","Guram Kashia",0,0,"Nee","Verdediger","Basisspeler","Daryl Janmaat",-1,-1,"Nee","Verdediger","Basisspeler","Douglas",7,7,"Nee","Verdediger","Basisspeler","Niklas Moisander",2,2,"Nee","Verdediger","Basisspeler","Bruno Martins Indi",4,4,"Ja","Verdediger","Basisspeler","Niklas Moisander",4,2,"Nee","Verdediger","Basisspeler","Ard van Peppen",1,1,"Nee","Verdediger","Basisspeler","Guram Kashia",0,0,"Nee","Verdediger","Basisspeler","Jan Wuytens",2,2,"Nee","Verdediger","Basisspeler","Jeffrey Gouweleeuw",0,0,"Nee","Verdediger","Basisspeler","Bruno Martins Indi",4,4,"Nee","Verdediger","Basisspeler","Peter Wisgerhof",0,0,"Nee","Verdediger","Basisspeler","Niklas Moisander",2,2,"Nee","Verdediger","Basisspeler","Bruno Martins Indi",4,4,"Nee","Verdediger","Basisspeler","Nick Viergever",-1,-1,"Nee","Verdediger","Basisspeler","Daryl Janmaat",-1,-1,"Nee","Verdediger","Basisspeler","Jeffrey Gouweleeuw",0,0]
["Nee","Verdediger","Basisspeler","Jan Wuytens",2,2,"Nee","Verdediger","Basisspeler","Douglas",7,7,"Nee","Verdediger","Basisspeler","Daryl Janmaat",-1,-1,"Nee","Verdediger","Basisspeler","Jeffrey Gouweleeuw",0,0,"Ja","Verdediger","Basisspeler","Daryl Janmaat",-2,-1,"Nee","Verdediger","Basisspeler","Daryl Janmaat",-1,-1,"Nee","Verdediger","Basisspeler","Atiba Hutchinson",7,7,"Nee","Verdediger","Basisspeler","Douglas",7,7,"Nee","Verdediger","Basisspeler","Daryl Janmaat",-1,-1,"Nee","Verdediger","Basisspeler","Ard van Peppen",1,1,"Nee","Verdediger","Basisspeler","Ard van Peppen",1,1,"Nee","Verdediger","Basisspeler","Marcel Seip",-1,-1,"Nee","Verdediger","Basisspeler","Nick Viergever",-1,-1,"Nee","Verdediger","Basisspeler","Jetro Willems",0,0,"Nee","Verdediger","Basisspeler","Daryl Janmaat",-1,-1,"Nee","Verdediger","Basisspeler","Ruud van der Rijt",0,0,"Nee","Verdediger","Basisspeler","Kees Luijckx",-2,-2,"Nee","Verdediger","Basisspeler","Ard van Peppen",1,1,"Nee","Verdediger","Basisspeler","Robbie Wielaert",0,0]
["Nee","Keeper","Basisspeler","Nikolay Mihaylov",8,8,"Nee","Keeper","Basisspeler","Piet Velthuizen",0,0,"Nee","Keeper","Basisspeler","Jelle ten Rouwelaar",-2,-2,"Nee","Keeper","Basisspeler","Esteban",-1,-1,"Nee","Keeper","Basisspeler","Piet Velthuizen",0,0,"Nee","Keeper","Basisspeler","Nikolay Mihaylov",8,8,"Nee","Keeper","Basisspeler","Nikolay Mihaylov",8,8,"Nee","Keeper","Basisspeler","Esteban",-1,-1,"Nee","Keeper","Basisspeler","Esteban",-1,-1,"Nee","Keeper","Basisspeler","Esteban",-1,-1,"Nee","Keeper","Basisspeler","Esteban",-1,-1,"Nee","Keeper","Basisspeler","Nikolay Mihaylov",8,8,"Ja","Keeper","Basisspeler","Piet Velthuizen",0,0,"Nee","Keeper","Basisspeler","Gino Coutinho",0,0,"Nee","Keeper","Basisspeler","Nikolay Mihaylov",8,8,"Ja","Keeper","Basisspeler","Nikolay Mihaylov",16,8,"Nee","Keeper","Basisspeler","Jeroen Zoet",1,1,"Nee","Keeper","Basisspeler","Esteban",-1,-1,"Nee","Keeper","Basisspeler","Jeroen Zoet",1,1]
["Nee","Keeper","Bankspeler","Jelle ten Rouwelaar",-2,-2,"Nee","Keeper","Bankspeler","David Meul",8,8,"Nee","Keeper","Bankspeler","Przemyslaw Tyton",0,0,"Nee","Keeper","Bankspeler","Jelle ten Rouwelaar",-2,-2,"Nee","Keeper","Bankspeler","Luciano Da Silva",1,1,"Nee","Keeper","Bankspeler","David Meul",8,8,"Nee","Keeper","Bankspeler","David Meul",8,8,"Nee","Keeper","Bankspeler","Jelle ten Rouwelaar",-2,-2,"Nee","Keeper","Bankspeler","David Meul",8,8,"Nee","Keeper","Bankspeler","Gino Coutinho",0,0,"Nee","Keeper","Bankspeler","David Meul",8,8,"Nee","Keeper","Bankspeler","David Meul",8,8,"Nee","Keeper","Bankspeler","Gino Coutinho",0,0,"Nee","Keeper","Bankspeler","Esteban",-1,-1,"Nee","Keeper","Bankspeler","Gábor Babos",2,2,"Nee","Keeper","Bankspeler","Gino Coutinho",0,0,"Nee","Keeper","Bankspeler","Piet Velthuizen",0,0,"Nee","Keeper","Bankspeler","Diederik Boer",0,0,"Nee","Keeper","Bankspeler","Erwin Mulder",0,0]
["Nee","Verdediger","Bankspeler","Darryl Lachman",-1,-1,"Nee","Verdediger","Bankspeler","Jan Wuytens",2,2,"Nee","Verdediger","Bankspeler","Ard van Peppen",1,1,"Nee","Verdediger","Bankspeler","Nils Röseler",0,0,"Nee","Verdediger","Bankspeler","Nick Viergever",-1,-1,"Nee","Verdediger","Bankspeler","Nick Viergever",-1,-1,"Nee","Verdediger","Bankspeler","Bart van Hintum",-1,-1,"Nee","Verdediger","Bankspeler","Virgil van Dijk",6,6,"Nee","Verdediger","Bankspeler","Jan Wuytens",2,2,"Nee","Verdediger","Bankspeler","Jan Wuytens",2,2,"Nee","Verdediger","Bankspeler","Bart van Hintum",-1,-1,"Nee","Verdediger","Bankspeler","Darryl Lachman",-1,-1,"Nee","Verdediger","Bankspeler","Marcus Nilsson",0,0,"Nee","Verdediger","Bankspeler","Jan Wuytens",2,2,"Nee","Verdediger","Bankspeler","Gianni Zuiverloon",0,0,"Nee","Verdediger","Bankspeler","Ard van Peppen",1,1,"Nee","Verdediger","Bankspeler","Jan Wuytens",2,2,"Nee","Verdediger","Bankspeler","Roberto Rosales",8,8,"Nee","Verdediger","Bankspeler","Jan Wuytens",2,2]
["Nee","Middevelder","Bankspeler","Rodney Sneijder",1,1,"Nee","Verdediger","Bankspeler","Vito Wormgoor",2,2,"Nee","Verdediger","Bankspeler","Jan Wuytens",2,2,"Nee","Middevelder","Bankspeler","Arne Slot",0,0,"Nee","Verdediger","Bankspeler","Darryl Lachman",-1,-1,"Nee","Verdediger","Bankspeler","Bart van Hintum",-1,-1,"Nee","Verdediger","Bankspeler","Jan Wuytens",2,2,"Nee","Middevelder","Bankspeler","Evander Sno",0,0,"Nee","Verdediger","Bankspeler","Virgil van Dijk",6,6,"Nee","Verdediger","Bankspeler","Johan Kappelhof",1,1,"Nee","Verdediger","Bankspeler","Lorenzo Burnet",0,0,"Nee","Middevelder","Bankspeler","Jens Toornstra",2,2,"Nee","Verdediger","Bankspeler","Gianni Zuiverloon",0,0,"Nee","Verdediger","Bankspeler","Michel Breuer",2,2,"Nee","Verdediger","Bankspeler","Jan Wuytens",2,2,"Nee","Verdediger","Bankspeler","Marcel Seip",-1,-1,"Nee","Verdediger","Bankspeler","Bart van Hintum",-1,-1,"Nee","Middevelder","Bankspeler","Danny Holla",0,0,"Nee","Middevelder","Bankspeler","Willie Overtoom",8,8]
["Nee","Aanvaller","Bankspeler","Jonathan Reis",2,2,"Nee","Middevelder","Bankspeler","Nemanja Gudelj",1,1,"Nee","Middevelder","Bankspeler","Rochdi Achenteh",-1,-1,"Nee","Middevelder","Bankspeler","Leandro Bacuna",6,6,"Nee","Middevelder","Bankspeler","Evander Sno",0,0,"Nee","Middevelder","Bankspeler","Nana Asare",2,2,"Nee","Middevelder","Bankspeler","Evander Sno",0,0,"Nee","Middevelder","Bankspeler","Arne Slot",0,0,"Nee","Middevelder","Bankspeler","Danny Holla",0,0,"Nee","Middevelder","Bankspeler","Joost Broerse",1,1,"Nee","Middevelder","Bankspeler","Filip Djuricic",2,2,"Nee","Middevelder","Bankspeler","Evander Sno",0,0,"Nee","Middevelder","Bankspeler","Nemanja Gudelj",1,1,"Nee","Middevelder","Bankspeler","Rodney Sneijder",1,1,"Nee","Middevelder","Bankspeler","Joost Broerse",1,1,"Nee","Middevelder","Bankspeler","Navarone Foor",0,0,"Nee","Middevelder","Bankspeler","Lerin Duarte",4,4,"Nee","Middevelder","Bankspeler","Evander Sno",0,0,"Nee","Middevelder","Bankspeler","Leandro Bacuna",6,6]
["Nee","Aanvaller","Bankspeler","Sanharib Malki",10,10,"Nee","Aanvaller","Bankspeler","Yanic Wildschut",1,1,"Nee","Middevelder","Bankspeler","Evander Sno",0,0,"Nee","Aanvaller","Bankspeler","Sanharib Malki",10,10,"Nee","Aanvaller","Bankspeler","Alex Schalk",1,1,"Nee","Aanvaller","Bankspeler","Yanic Wildschut",1,1,"Nee","Aanvaller","Bankspeler","Alex Schalk",1,1,"Nee","Aanvaller","Bankspeler","Yanic Wildschut",1,1,"Nee","Middevelder","Bankspeler","Nemanja Gudelj",1,1,"Nee","Middevelder","Bankspeler","Evander Sno",0,0,"Nee","Middevelder","Bankspeler","Evander Sno",0,0,"Nee","Aanvaller","Bankspeler","Sanharib Malki",10,10,"Nee","Middevelder","Bankspeler","Hans Mulder",4,4,"Nee","Aanvaller","Bankspeler","Sanharib Malki",10,10,"Nee","Aanvaller","Bankspeler","Dries Mertens",4,4,"Nee","Aanvaller","Bankspeler","Youness Mokhtar",1,1,"Nee","Middevelder","Bankspeler","Niek Vossebelt",6,6,"Nee","Aanvaller","Bankspeler","Sanharib Malki",10,10,"Nee","Middevelder","Bankspeler","Ricky van Haaren",1,1]
["Nee","Aanvaller","Bankspeler","Marc Höcher",2,2,"Nee","Aanvaller","Bankspeler","Género Zeefuik",2,2,"Nee","Aanvaller","Bankspeler","Yanic Wildschut",1,1,"Nee","Aanvaller","Bankspeler","Rydell Poepon",2,2,"Nee","Aanvaller","Bankspeler","Marc Höcher",2,2,"Nee","Aanvaller","Bankspeler","Alfred Finnbogason",8,8,"Nee","Aanvaller","Bankspeler","Sanharib Malki",10,10,"Nee","Aanvaller","Bankspeler","Aurélien Joachim",7,7,"Nee","Aanvaller","Bankspeler","Sanharib Malki",10,10,"Nee","Aanvaller","Bankspeler","Virgil Misidjan",0,0,"Nee","Aanvaller","Bankspeler","Yanic Wildschut",1,1,"Nee","Aanvaller","Bankspeler","Cedric van der Gun",2,2,"Nee","Aanvaller","Bankspeler","Sanharib Malki",10,10,"Nee","Aanvaller","Bankspeler","Yanic Wildschut",1,1,"Nee","Aanvaller","Bankspeler","Florian Jozefzoon",-1,-1,"Nee","Aanvaller","Bankspeler","Anthony Lurling",1,1,"Nee","Aanvaller","Bankspeler","Yanic Wildschut",1,1,"Nee","Aanvaller","Bankspeler","Edouard Duplan",0,0,"Nee","Aanvaller","Bankspeler","Alex Schalk",1,1]
["Nee","Aanvaller","Bankspeler","Yanic Wildschut",1,1,"Nee","Aanvaller","Bankspeler","Wiljan Pluim",1,1,"Nee","Aanvaller","Bankspeler","Sanharib Malki",10,10,"Nee","Aanvaller","Bankspeler","Donny de Groot",0,0,"Nee","Aanvaller","Bankspeler","Edouard Duplan",0,0,"Nee","Aanvaller","Bankspeler","Alex Schalk",1,1,"Nee","Aanvaller","Bankspeler","Yanic Wildschut",1,1,"Nee","Aanvaller","Bankspeler","Sanharib Malki",10,10,"Nee","Aanvaller","Bankspeler","Denni Avdic",0,0,"Nee","Aanvaller","Bankspeler","Alex Schalk",1,1,"Nee","Aanvaller","Bankspeler","Alex Schalk",1,1,"Nee","Aanvaller","Bankspeler","Tim Matavz",0,0,"Nee","Aanvaller","Bankspeler","Yanic Wildschut",1,1,"Nee","Aanvaller","Bankspeler","Marc Höcher",2,2,"Nee","Aanvaller","Bankspeler","Uche Nwofor",0,0,"Nee","Aanvaller","Bankspeler","Sanharib Malki",10,10,"Nee","Aanvaller","Bankspeler","Sanharib Malki",10,10,"Nee","Aanvaller","Bankspeler","Alex Schalk",1,1,"Nee","Aanvaller","Bankspeler","Marc Höcher",2,2]
["Weekscore","Totaal",28,"Bank:",13,"Bst Sstm","Weekscore","Totaal",36,"Bank:",17,"Bst Sstm","Weekscore","Totaal",18,"Bank:",13,"Bst Sstm","Weekscore","Totaal",30,"Bank:",16,"Bst Sstm","Weekscore","Totaal",39,"Bank:",2,"Bst Sstm","Weekscore","Totaal",40,"Bank:",18,"Bst Sstm","Weekscore","Totaal",39,"Bank:",21,"Bst Sstm","Weekscore","Totaal",34,"Bank:",22,"Bst Sstm","Weekscore","Totaal",39,"Bank:",27,"Bst Sstm","Weekscore","Totaal",54,"Bank:",5,"Bst Sstm","Weekscore","Totaal",44,"Bank:",11,"Bst Sstm","Weekscore","Totaal",27,"Bank:",21,"Bst Sstm","Weekscore","Totaal",22,"Bank:",16,"Bst Sstm","Weekscore","Totaal",37,"Bank:",17,"Bst Sstm","Weekscore","Totaal",57,"Bank:",8,"Bst Sstm","Weekscore","Totaal",39,"Bank:",12,"Bst Sstm","Weekscore","Totaal",20,"Bank:",22,"Bst Sstm","Weekscore","Totaal",38,"Bank:",19,"Bst Sstm","Weekscore","Totaal",18,"Bank:",20,"Bst Sstm"]
["Rendement",0.5490196078431373,51,"Verspeelde pnt",23,"4-3-3","Rendement",0.61016949152542377,59,"Verspeelde pnt",23,"4-3-3","Rendement",0.36,50,"Verspeelde pnt",32,"4-3-3","Rendement",0.61224489795918369,49,"Verspeelde pnt",19,"4-3-3","Rendement",0.75,52,"Verspeelde pnt",13,"3-5-2","Rendement",0.72727272727272729,55,"Verspeelde pnt",15,"4-3-3","Rendement",0.61904761904761907,63,"Verspeelde pnt",24,"4-3-3","Rendement",0.54838709677419351,62,"Verspeelde pnt",28,"4-3-3","Rendement",0.54929577464788737,71,"Verspeelde pnt",32,"4-3-3","Rendement",0.9152542372881356,59,"Verspeelde pnt",5,"4-4-2","Rendement",0.75862068965517238,58,"Verspeelde pnt",14,"4-3-3","Rendement",0.5625,48,"Verspeelde pnt",21,"4-3-3","Rendement",0.51162790697674421,43,"Verspeelde pnt",21,"4-3-3","Rendement",0.69811320754716977,53,"Verspeelde pnt",16,"3-5-2","Rendement",0.85074626865671643,67,"Verspeelde pnt",10,"4-3-3","Rendement",0.73584905660377353,53,"Verspeelde pnt",14,"4-3-3","Rendement",0.4,50,"Verspeelde pnt",30,"4-3-3","Rendement",0.6333333333333333,60,"Verspeelde pnt",22,"4-3-3","Rendement",0.42857142857142855,42,"Verspeelde pnt",24,"4-3-3"]

{"sheet":"HIST-Teams","index":4,"n_rows":91,"n_cols":48,"rows_kept":91,"cut":false,"hidden":false,"merged":[]}
["Teamscore historie"]
[]
[]
["Speelronde 5",null,null,null,null,null,null,null,null,null,null,null,"Speelronde 6",null,null,null,null,null,null,null,null,null,null,null,"Speelronde 7",null,null,null,null,null,null,null,null,null,null,null,"Speelronde 7"]
["Pos","Teamnaam","Score","Bank","Rendement","MaxScore","Verspeeld","Bst Syst","Rank","Cum_Score","Cum_Bank","Cum_Max","Pos","Teamnaam","Score","Bank","Rendement","MaxScore","Verspeeld","Bst Syst","Rank","Cum_Score","Cum_Bank","Cum_Max","Pos_tot","Teamnaam","Score","Bank","Rendement","MaxScore","Verspeeld","Bst Syst","Wk_Rank","Cum_Score","Cum_Bank","Cum_Max","Pos_tot","Teamnaam","Score","Bank","Rendement","MaxScore","Verspeeld","Bst Syst","WK_Rank","Cum_Score","Cum_Bank","Cum_Max"]
[{"$f":"_xlfn.RANK.EQ(J6,$J$6:$J$24)","v":2},"De Woudlopers",58,18,0.71604938271604934,81,23,"4-3-3",2,{"$f":"C6","v":58},{"$f":"D6","v":18},{"$f":"F6","v":81},{"$f":"_xlfn.RANK.EQ(V6,$V$6:$V$24)","v":6},"De Woudlopers",26,20,0.57777777777777772,45,19,"3-5-2",13,{"$f":"J6+O6","v":84},{"$f":"K6+P6","v":38},{"$f":"L6+R6","v":126},{"$f":"_xlfn.RANK.EQ(AH6,$AH$6:$AH$24)","v":6},"De Woudlopers",48,13,0.66666666666666663,72,24,"4-3-3",7,{"$f":"V6+AA6","v":132},{"$f":"W6+AB6","v":51},{"$f":"X6+AD6","v":198},{"$f":"_xlfn.RANK.EQ(AT6,$AT$6:$AT$24)","v":9},"De Woudlopers",28,13,0.5490196078431373,51,23,"4-3-3",14,{"$f":"AH6+AM6","v":160},{"$f":"AI6+AN6","v":64},{"$f":"AJ6+AP6","v":249}]
[{"$f":"_xlfn.RANK.EQ(J7,$J$6:$J$24)","v":1},"Jong Belegen",61,10,0.80263157894736847,76,15,"4-3-3",1,{"$f":"C7","v":61},{"$f":"D7","v":10},{"$f":"F7","v":76},{"$f":"_xlfn.RANK.EQ(V7,$V$6:$V$24)","v":1},"Jong Belegen",51,11,0.9107142857142857,56,5,"4-3-3",1,{"$f":"J7+O7","v":112},{"$f":"K7+P7","v":21},{"$f":"L7+R7","v":132},{"$f":"_xlfn.RANK.EQ(AH7,$AH$6:$AH$24)","v":1},"Jong Belegen",52,2,0.82539682539682535,63,11,"4-3-3",6,{"$f":"V7+AA7","v":164},{"$f":"W7+AB7","v":23},{"$f":"X7+AD7","v":195},2,"Jong Belegen",36,17,0.61016949152542377,59,23,"4-3-3",11,200,40,254]
[2,"Ultimate Knooierd",58,23,0.69047619047619047,84,26,"4-3-3",3,58,23,84,13,"Ultimate Knooierd",14,20,0.35897435897435898,39,25,"4-3-3",19,72,43,123,13,"Ultimate Knooierd",41,-1,0.78846153846153844,52,11,"3-5-2",9,113,42,175,17,"Ultimate Knooierd",18,13,0.36,50,32,"4-3-3",18,131,55,225]
[4,"Master Krosse",57,10,0.86363636363636365,66,9,"4-3-3",4,57,10,66,4,"Master Krosse",31,9,0.73809523809523814,42,11,"3-5-2",10,88,19,108,9,"Master Krosse",34,7,0.53125,64,30,"3-5-2",17,122,26,172,12,"Master Krosse",30,16,0.61224489795918369,49,19,"4-3-3",13,152,42,221]
[5,"Rwobbie",56,6,0.91803278688524592,61,5,"4-3-3",5,56,6,61,13,"Rwobbie",16,18,0.41025641025641024,39,23,"4-3-3",18,72,24,100,15,"Rwobbie",40,14,0.7142857142857143,56,16,"3-5-2",11,112,38,156,13,"Rwobbie",39,2,0.75,52,13,"3-5-2",5,151,40,208]
[5,"Slyfox",56,2,0.94915254237288138,59,3,"4-3-3",6,56,2,59,2,"Slyfox",38,15,0.84444444444444444,45,7,"3-5-2",4,94,17,104,2,"Slyfox",69,13,0.78409090909090906,88,19,"4-4-2",1,163,30,192,1,"Slyfox",40,18,0.72727272727272729,55,15,"4-3-3",4,203,48,247]
[7,"Kesman",55,9,0.79710144927536231,69,14,"4-3-3",7,55,9,69,8,"Kesman",28,27,0.5957446808510638,47,19,"3-5-2",11,83,36,116,5,"Kesman",53,13,0.68831168831168832,77,24,"4-4-2",4,136,49,193,6,"Kesman",39,21,0.61904761904761907,63,24,"4-3-3",6,175,70,256]
[8,"Rising Star",54,8,0.83076923076923082,65,11,"4-3-3",8,54,8,65,4,"Rising Star",34,9,0.73913043478260865,46,12,"3-5-2",7,88,17,111,3,"Rising Star",59,0,0.921875,64,5,"4-3-3",2,147,17,175,3,"Rising Star",34,22,0.54838709677419351,62,28,"4-3-3",12,181,39,237]
[9,"Buttons",51,5,0.83606557377049184,61,10,"4-3-3",9,51,5,61,11,"Buttons",28,23,0.52830188679245282,53,25,"4-4-2",12,79,28,114,12,"Buttons",35,-5,0.7142857142857143,49,14,"4-3-3",15,114,23,163,11,"Buttons",39,27,0.54929577464788737,71,32,"4-3-3",7,153,50,234]
[9,"MASTER PLAYER",51,5,0.9107142857142857,56,5,"3-5-2",10,51,5,56,6,"MASTER PLAYER",33,11,0.71739130434782605,46,13,"4-3-3",8,84,16,102,10,"MASTER PLAYER",37,5,0.80434782608695654,46,9,"3-5-2",13,121,21,148,6,"MASTER PLAYER",54,5,0.9152542372881356,59,5,"4-4-2",2,175,26,207]
[11,"FC Bramovich",50,9,0.73529411764705888,68,18,"4-3-3",11,50,9,68,3,"FC Bramovich",39,12,0.76470588235294112,51,12,"4-3-3",2,89,21,119,4,"FC Bramovich",48,16,0.69565217391304346,69,21,"4-3-3",8,137,37,188,3,"FC Bramovich",44,11,0.75862068965517238,58,14,"4-3-3",3,181,48,246]
[11,"Kamp Nijbob",50,8,0.81967213114754101,61,11,"4-3-3",12,50,8,61,12,"Kamp Nijbob",26,20,0.65,40,14,"3-5-2",14,76,28,101,7,"Kamp Nijbob",53,-1,0.91379310344827591,58,5,"3-5-2",5,129,27,159,10,"Kamp Nijbob",27,21,0.5625,48,21,"4-3-3",15,156,48,207]
[14,"Denstar United",48,3,0.90566037735849059,53,5,"4-3-3",14,48,3,53,16,"Denstar United",23,8,0.74193548387096775,31,8,"3-5-2",15,71,11,84,15,"Denstar United",41,1,0.7321428571428571,56,15,"3-5-2",10,112,12,140,16,"Denstar United",22,16,0.51162790697674421,43,21,"4-3-3",16,134,28,183]
[15,"Voetbal Toestanden",43,17,0.69354838709677424,62,19,"4-3-3",15,43,17,62,9,"Voetbal Toestanden",37,13,0.80434782608695654,46,9,"4-3-3",5,80,30,108,13,"Voetbal Toestanden",33,4,0.7021276595744681,47,14,"3-5-2",18,113,34,155,14,"Voetbal Toestanden",37,17,0.69811320754716977,53,16,"3-5-2",10,150,51,208]
[16,"Amazing Crippled",41,27,0.53246753246753242,77,36,"4-3-3",16,41,27,77,9,"Amazing Crippled",39,14,0.82978723404255317,47,8,"4-3-3",3,80,41,124,11,"Amazing Crippled",39,18,0.54929577464788737,71,32,"4-3-3",12,119,59,195,5,"Amazing Crippled",57,8,0.85074626865671643,67,10,"4-3-3",1,176,67,262]
[18,"P.R.Utsers",38,2,0.82608695652173914,46,8,"4-3-3",18,38,2,46,16,"P.R.Utsers",33,15,0.71739130434782605,46,13,"4-3-3",9,71,17,92,17,"P.R.Utsers",35,-2,0.7,50,15,"4-3-3",16,106,15,142,15,"P.R.Utsers",39,12,0.73584905660377353,53,14,"4-3-3",8,145,27,195]
[19,"Maffioso's",31,23,0.5636363636363636,55,24,"3-5-2",19,31,23,55,18,"Maffioso's",35,13,0.67307692307692313,52,17,"4-3-3",6,66,36,107,18,"Maffioso's",36,12,0.5714285714285714,63,27,"4-3-3",14,102,48,170,18,"Maffioso's",20,22,0.4,50,30,"4-3-3",17,122,70,220]
[13,"FCLangsDeLijn",49,12,0.875,56,7,"4-3-3",13,49,12,56,13,"FCLangsDeLijn",23,17,0.53488372093023251,43,20,"3-5-2",16,72,29,99,7,"FCLangsDeLijn",57,-1,0.98275862068965514,58,1,"4-4-2",3,129,28,157,8,"FCLangsDeLijn",38,19,0.6333333333333333,60,22,"4-3-3",9,167,47,217]
[17,"Don_Diego",40,13,0.66666666666666663,60,20,"4-3-3",17,40,13,60,19,"Don_Diego",19,18,0.47499999999999998,40,21,"3-5-2",17,59,31,100,19,"Don_Diego",19,8,0.59375,32,13,"3-5-2",19,78,39,132,19,"Don_Diego",18,20,0.42857142857142855,42,24,"4-3-3",19,96,59,174]
[]
[]
["Teamscore score"]
[null,"Team","Week 5","Week 6","Week 7","Week 8"," Week 9",null,null,null,"Teamnaam","Week 7","Week 8","+/-"]
[null,{"$f":"B6","v":"De Woudlopers"},{"$f":"J6","v":58},{"$f":"V6","v":84},{"$f":"AH6","v":132},{"$f":"AT6","v":160},null,null,null,null,"Slyfox",2,1,{"$f":"L29-M29","v":1},{"$f":"IF(N29<0,\"▼\",IF(N29=0,\"◄\",\"▲\"))","v":"▲"}]
[null,{"$f":"B7","v":"Jong Belegen"},{"$f":"J7","v":61},{"$f":"V7","v":112},{"$f":"AH7","v":164},{"$f":"AT7","v":200},null,null,null,null,"Jong Belegen",1,2,{"$f":"L30-M30","v":-1},{"$f":"IF(N30<0,\"▼\",IF(N30=0,\"◄\",\"▲\"))","v":"▼"}]
[null,"Ultimate Knooierd",58,72,113,131,null,null,null,null,"Rising Star",3,3,0,"◄"]
[null,"Master Krosse",57,88,122,152,null,null,null,null,"FC Bramovich",4,3,1,"▲"]
[null,"Rwobbie",56,72,112,151,null,null,null,null,"Amazing Crippled",11,5,6,"▲"]
[null,"Slyfox",56,94,163,203,null,null,null,null,"Kesman",5,6,-1,"▼"]
[null,"Kesman",55,83,136,175,null,null,null,null,"MASTER PLAYER",10,6,4,"▲"]
[null,"Rising Star",54,88,147,181,null,null,null,null,"FCLangsDeLijn",7,8,-1,"▼"]
[null,"Buttons",51,79,114,153,null,null,null,null,"De Woudlopers",6,9,-3,"▼"]
[null,"MASTER PLAYER",51,84,121,175,null,null,null,null,"Kamp Nijbob",7,10,-3,"▼"]
[null,"FC Bramovich",50,89,137,181,null,null,null,null,"Buttons",12,11,1,"▲"]
[null,"Kamp Nijbob",50,76,129,156,null,null,null,null,"Master Krosse",9,12,-3,"▼"]
[null,"Denstar United",48,71,112,134,null,null,null,null,"Rwobbie",15,13,2,"▲"]
[null,"Voetbal Toestanden",43,80,113,150,null,null,null,null,"Voetbal Toestanden",13,14,-1,"▼"]
[null,"Amazing Crippled",41,80,119,176,null,null,null,null,"P.R.Utsers",17,15,2,"▲"]
[null,"P.R.Utsers",38,71,106,145,null,null,null,null,"Denstar United",15,16,-1,"▼"]
[null,"Maffioso's",31,66,102,122,null,null,null,null,"Ultimate Knooierd",13,17,-4,"▼"]
[null,"FCLangsDeLijn",49,72,129,167,null,null,null,null,"Maffioso's",18,18,0,"◄"]
[null,"Don_Diego",40,59,78,96,null,null,null,null,"Don_Diego",19,19,0,"◄"]
[]
["Teamscore rendement"]
[null,"Team","Week 5","Week 6","Week 7","Week 8"," Week 9"]
[null,{"$f":"B6","v":"De Woudlopers"},{"$f":"E6","v":0.71604938271604934},{"$f":"Q6","v":0.57777777777777772},{"$f":"AC6","v":0.66666666666666663},{"$f":"AO6","v":0.5490196078431373}]
[null,{"$f":"B7","v":"Jong Belegen"},{"$f":"E7","v":0.80263157894736847},{"$f":"Q7","v":0.9107142857142857},{"$f":"AC7","v":0.82539682539682535},{"$f":"AO7","v":0.61016949152542377}]
[null,"Ultimate Knooierd",0.69047619047619047,0.35897435897435898,0.78846153846153844,0.36]
[null,"Master Krosse",0.86363636363636365,0.73809523809523814,0.53125,0.61224489795918369]
[null,"Rwobbie",0.91803278688524592,0.41025641025641024,0.7142857142857143,0.75]
[null,"Slyfox",0.94915254237288138,0.84444444444444444,0.78409090909090906,0.72727272727272729]
[null,"Kesman",0.79710144927536231,0.5957446808510638,0.68831168831168832,0.61904761904761907]
[null,"Rising Star",0.83076923076923082,0.73913043478260865,0.921875,0.54838709677419351]
[null,"Buttons",0.83606557377049184,0.52830188679245282,0.7142857142857143,0.54929577464788737]
[null,"MASTER PLAYER",0.9107142857142857,0.71739130434782605,0.80434782608695654,0.9152542372881356]
[null,"FC Bramovich",0.73529411764705888,0.76470588235294112,0.69565217391304346,0.75862068965517238]
[null,"Kamp Nijbob",0.81967213114754101,0.65,0.91379310344827591,0.5625]
[null,"Denstar United",0.90566037735849059,0.74193548387096775,0.7321428571428571,0.51162790697674421]
[null,"Voetbal Toestanden",0.69354838709677424,0.80434782608695654,0.7021276595744681,0.69811320754716977]
[null,"Amazing Crippled",0.53246753246753242,0.82978723404255317,0.54929577464788737,0.85074626865671643]
[null,"P.R.Utsers",0.82608695652173914,0.71739130434782605,0.7,0.73584905660377353]
[null,"Maffioso's",0.5636363636363636,0.67307692307692313,0.5714285714285714,0.4]
[null,"FCLangsDeLijn",0.875,0.53488372093023251,0.98275862068965514,0.6333333333333333]
[null,"Don_Diego",0.66666666666666663,0.47499999999999998,0.59375,0.42857142857142855]
[]
["Teamscore maxscore"]
[null,"Team","Week 5","Week 6","Week 7","Week 8"," Week 9"]
[null,{"$f":"B6","v":"De Woudlopers"},{"$f":"L6","v":81},{"$f":"X6","v":126},{"$f":"X6","v":126},{"$f":"AV6","v":249}]
[null,{"$f":"B7","v":"Jong Belegen"},{"$f":"L7","v":76},{"$f":"X7","v":132},{"$f":"X7","v":132},{"$f":"AV7","v":254}]
[null,"Ultimate Knooierd",84,123,123,225]
[null,"Master Krosse",66,108,108,221]
[null,"Rwobbie",61,100,100,208]
[null,"Slyfox",59,104,104,247]
[null,"Kesman",69,116,116,256]
[null,"Rising Star",65,111,111,237]
[null,"Buttons",61,114,114,234]
[null,"MASTER PLAYER",56,102,102,207]
[null,"FC Bramovich",68,119,119,246]
[null,"Kamp Nijbob",61,101,101,207]
[null,"Denstar United",53,84,84,183]
[null,"Voetbal Toestanden",62,108,108,208]
[null,"Amazing Crippled",77,124,124,262]
[null,"P.R.Utsers",46,92,92,195]
[null,"Maffioso's",55,107,107,220]
[null,"FCLangsDeLijn",56,99,99,217]
[null,"Don_Diego",60,100,100,174]

{"sheet":"TABLE_GRAPH","index":5,"n_rows":24,"n_cols":36,"rows_kept":24,"cut":false,"hidden":false,"merged":[]}
["ProfCoach - DataOphalen"]
[]
[]
[]
[null,"","",null,null,null,"Teamnaam","Week 5","Week 6","Week 7","Week 8","","","","","","","","","","","","","","","","","","","","","","","","",""]
[null,"","",null,null,null,"De Woudlopers",2,6,6,9,"","","","","","","","","","","","","","","","","","","","","","","","",""]
[null,"","",null,null,null,"Jong Belegen",1,1,1,2,"","","","","","","","","","","","","","","","","","","","","","","","",""]
[null,"","",null,null,null,"Ultimate Knooierd",2,13,13,17,"","","","","","","","","","","","","","","","","","","","","","","","",""]
[null,"","",null,null,null,"Master Krosse",4,4,9,12,"","","","","","","","","","","","","","","","","","","","","","","","",""]
[null,"","",null,null,null,"Rwobbie",5,13,15,13,"","","","","","","","","","","","","","","","","","","","","","","","",""]
[null,"","",null,null,null,"Slyfox",5,2,2,1,"","","","","","","","","","","","","","","","","","","","","","","","",""]
[null,"","",null,null,null,"Kesman",7,8,5,6,"","","","","","","","","","","","","","","","","","","","","","","","",""]
[null,"","",null,null,null,"Rising Star",8,4,3,3,"","","","","","","","","","","","","","","","","","","","","","","","",""]
[null,null,null,null,null,null,"Buttons",9,11,12,11]
[null,null,null,null,null,null,"MASTER PLAYER",9,6,10,6]
[null,null,null,null,null,null,"FC Bramovich",11,3,4,3]
[null,null,null,null,null,null,"Kamp Nijbob",11,12,7,10]
[null,null,null,null,null,null,"Denstar United",14,16,15,16]
[null,null,null,null,null,null,"Voetbal Toestanden",15,9,13,14]
[null,null,null,null,null,null,"Amazing Crippled",16,9,11,5]
[null,null,null,null,null,null,"P.R.Utsers",18,16,17,15]
[null,null,null,null,null,null,"Maffioso's",19,18,18,18]
[null,null,null,null,null,null,"FCLangsDeLijn",13,13,7,8]
[null,null,null,null,null,null,"Don_Diego",17,19,19,19]